Workbook

Sheet Cover Sheet
C8: AES Indiana URT Repeal
C10: FAC-135 Schedules NOI Updated Authorized Level

Sheet Date Input
A2: Billing Cycle | B2: June | C2: 2022 | D2: enter as labels
B3: July | C3: 2022
B4: August | C4: 2022
B5: June, July, and August 2022
B7: August 2022
A9: Months to be Reconciled | B9: November | C9: 2021 | D9: enter as labels
B10: December | C10: 2021
B11: January | C11: 2022
B12: November, December 2021, and January 2022
B14: January 2022
B17: 2021-11-16
B18: =B17+31 -> 2021-12-17
B19: =B18+31 -> 2022-01-17
X46: `
P52: =NOW() -> 2022-05-04T12:30:11.360

Sheet Data Input
C1: use for | J1: ='Date Input'!$B$9 -> November | L1: =+'Date Input'!$B$10 -> December | N1: =+'Date Input'!$B$11 -> January
A2: 2021 Loss Percentage (Change in January) | B2: 0.04815 | C2: November | J2: ='Date Input'!$B$9 -> November | L2: =+'Date Input'!$B$10 -> December | N2: =+'Date Input'!$B$11 -> January
A3: 2021 Loss Percentage (Change in January) | B3: 0.04815 | C3: December | F3: Residential Sales - Kwh | J3: 327224 | L3: 459406 | N3: 552387
A4: 2022 Loss Percentage (Change in January) | B4: 0.04655 | C4: January | F4: Commercial Sales - Kwh | J4: 118722 | L4: 147221 | N4: 164049
F5: Industrial Sales - Kwh | J5: 453048 | L5: 475724 | N5: 491612
F6: EV Public Charging Stations - Kwh | J6: 3 | L6: 3 | N6: 3
A7: Cause No. 38703-FAC135 | F7: Lighting | J7: 5958 | L7: 6380 | N7: 6238
A9: FAC 134 Estimates
A11: MWH | B11: =+'Date Input'!B2 -> June | C11: =+'Date Input'!B3 -> July | D11: =+'Date Input'!B4 -> August | F11: Total Kwh Sales | J11: 904955 | L11: 1088734 | N11: 1214289
A12: Steam Generation | B12: 637289 | C12: 857258 | D12: 836652
A13: Gas Generation | B13: 605096 | C13: 719440 | D13: 683319 | F13: Cost of Fuel Billed - Dollars
A14: Oil Generation | B14: 0 | C14: 0 | D14: 0 | F14: residential | J14: -10374 | L14: 2457142 | N14: 2954441
A15: Purchased Power | F15: commercial | J15: -3835 | L15: 785318 | N15: 880326
A16: Wind Purchase Power Agreement Purchases | B16: 48142 | C16: 37263 | D16: 40692 | F16: industrial | J16: -16819 | L16: 2399891 | N16: 2673200
A17: Non-Wind PPA Market Purchases | B17: 52391 | C17: 14912 | D17: 17294 | F17: ev public charging stations | J17: -0.1 | L17: 17.17 | N17: 0
A18: Purchased Power Other Than MISO | B18: 18112 | C18: 17322 | D18: 16407 | F18: lighting | J18: -127 | L18: 38637 | N18: 37549
A19: Inter-System Sales | B19: 149162 | C19: 260380 | D19: 267629
A20: Energy Losses & Co. Use | B20: 39132 | C20: 44749 | D20: 42843 | H20: Cause # | J20: Deferred Fuel Amort- 132 | L20: Deferred Fuel Amort - 133 | N20: NOI Credit Amort | O20: TOTAL
A21: Control Area Losses | B21: 16648 | C21: 19037 | D21: 18226 | F21: =+'Date Input'!B9 -> November | H21: 38703-FAC132 | J21: -2164574.83 | L21: 0 | N21: 1110262.33 | O21: =N21+J21+L21 -> -1054312.5
A22: Non-Jurisdictional | F22: =+'Date Input'!B10 -> December | H22: 38703-FAC132/FAC133 | J22: -2164574.83 | L22: -2280603.67 | N22: 0 | O22: =N22+J22+L22 -> -4445178.5
F23: =+'Date Input'!B11 -> January | H23: 38703-FAC132/FAC133 | J23: -2164574.83 | L23: -2280603.67 | N23: 0 | O23: -4445178.5
A24: Total | B24: =B12+B13+B14+B15-B19-B20-B21+B16+B17+B18 -> 1156088 | C24: =C12+C13+C14+C15-C19-C20-C21+C16+C17+C18 -> 1322029 | D24: =D12+D13+D14+D15-D19-D20-D21+D16+D17+D18 -> 1265666 | J24: =SUM(J21:J23) -> -6493724.49 | L24: =SUM(L21:L23) -> -4561207.34 | N24: =SUM(N21:N23) -> 1110262.33 | O24: =N24+J24+L24 -> -9944669.5
H25: Company | J25: Battery | L25: Trans | N25: Excess over | O25: Lakefield
H26: Use | J26: Storage | L26: Losses | N26: Benchmark | O26: Credit
F27: =+F21 -> November | H27: 1548 | J27: 92 | L27: 0 | N27: 0 | O27: 71
A28: FUEL COST ($) | F28: =+F22 -> December | H28: 1819 | J28: 56 | L28: 40794.374 | N28: 0 | O28: 10114.02
A29: Steam Generation | B29: 16871101 | C29: 20961184 | D29: 19662899 | F29: =+F23 -> January | H29: 2235 | J29: 54 | L29: 212251 | N29: 0 | O29: 267374
A30: Gas Generation | B30: 21421883 | C30: 27389521 | D30: 25405189
A31: Oil Generation | B31: 0 | C31: 0 | D31: 0 | J31: FAC 132 | L31: FAC133 | N31: FAC133
A32: Purchased Power | F32: Forecast | J32: =+J2 -> November | L32: =+L2 -> December | N32: =+N2 -> January
A33: Wind Purchase Power Agreement Purchases | B33: 4940837 | C33: 3831018 | D33: 3499511 | F33: Steam Generation | J33: 795413 | L33: 940033 | N33: 967010
A34: Non-Wind PPA Market Purchases | B34: 2392839 | C34: 626766 | D34: 658357 | F34: Nuclear Generation | J34: 0 | L34: 0 | N34: 0
A35: Purchased Power Other Than MISO | B35: 3010839 | C35: 2819645 | D35: 2728627 | F35: Hydro Generation | J35: 0 | L35: 0 | N35: 0
A36: Other MISO Costs | B36: 1765347 | C36: 2018739 | D36: 1932675 | F36: Other Generation - Internal Combustion | J36: 0 | L36: 0 | N36: 0
A37: Control Area Losses (R10 X R35) | B37: 487424 | C37: 562813 | D37: 521402 | F37: Gas Combustion Turbine | J37: 378968 | L37: 449911 | N37: 593865
A38: Inter-System Sales | B38: 4367277 | C38: 7697815 | D38: 7656369 | F38: Purchases through MISO
A39: Lakefield Wind Wholesale Margin Credit | B39: 242955 | C39: 279703 | D39: 230564 | F39: Wind Purchase Power Agreement Purchases | J39: 72753 | L39: 73403 | N39: 76890
A40: Non-Jurisdictional | B40: 0 | C40: 0 | D40: 0 | F40: Non-Wind PPA Market Purchases | J40: 80527 | L40: 65136 | N40: 65912
F41: Other | J41: 0 | L41: 0 | N41: 0
A42: Total | B42: =B29+B30+B31+B32+B36-B37-B38-B39+B33+B34+B35 -> 45305190 | C42: =C29+C30+C31+C32+C36-C37-C38-C39+C33+C34+C35 -> 49106542 | D42: =D29+D30+D31+D32+D36-D37-D38-D39+D33+D34+D35 -> 45478923 | F42: Purchased Power other than MISO | J42: 11290 | L42: 5287 | N42: 5894
F43: LESS:
F44: Energy Losses and Company Use | J44: 53512 | L44: 65277 | N44: 70664
A45: $/MWH Cost | F45: Inter-System Sales through MISO | J45: 294402 | L45: 259559 | N45: 330195
A46: Steam Generation | B46: =ROUND(B29/B12,2) -> 26.47 | C46: 24.45 | D46: 23.5 | F46: Inter-System Sales other than MISO | J46: 0 | L46: 0 | N46: 0 | X46: `
A47: Gas Generation | B47: 35.4 | C47: 38.07 | D47: 37.18 | F47: Non-Jurisdictional Retail Sales | J47: 0 | L47: 0 | N47: 0
A48: Oil Generation
A49: Purchased Power | B49: =ROUND((B33+B34+B35)/(B16+B17+B18),2) -> 87.19 | C49: =ROUND((C33+C34+C35)/(C16+C17+C18),2) -> 104.72 | D49: =ROUND((D33+D34+D35)/(D16+D17+D18),2) -> 92.57 | F49: Sales (S) | J49: =SUM(J33:J42)-SUM(J44:J47) -> 991037 | L49: =SUM(L33:L42)-SUM(L44:L47) -> 1208934 | N49: =SUM(N33:N42)-SUM(N44:N47) -> 1308712
A50: Control Area Losses | B50: =ROUND(B37/B21,2) -> 29.28 | C50: =ROUND(C37/C21,2) -> 29.56 | D50: =ROUND(D37/D21,2) -> 28.61
A51: Inter-System Sales | B51: =ROUND(B38/B19,2) -> 29.28 | C51: =ROUND(C38/C19,2) -> 29.56 | D51: =ROUND(D38/D19,2) -> 28.61 | F51: Fuel Cost
A52: Non-Jurisdictional | B52: =ROUND(B40/B22,2) ->  | C52: =ROUND(C40/C22,2) ->  | D52: =ROUND(D40/D22,2) -> 
F53: Steam Generation | J53: 16027105 | L53: 19377649 | N53: 20157249
A54: Total | B54: =ROUND(B42/B24,2) -> 39.19 | C54: =ROUND(C42/C24,2) -> 37.14 | D54: =ROUND(D42/D24,2) -> 35.93 | F54: Nuclear Generation | J54: 0 | L54: 0 | N54: 0
F55: Hydro Generation | J55: 0 | L55: 0 | N55: 0
F56: Other Generation - Internal Combustion | J56: 0 | L56: 0 | N56: 0
F57: Gas Combustion Turbine | J57: 9276128 | L57: 15790027 | N57: 22604674
B58: State Tax | F58: Purchases through MISO
A59: Forecast Months | B59: Rate | F59: Wind Purchase Power Agreement Purchases | J59: 7927735 | L59: 8101072 | N59: 7923164
A60: Cause No. 38703-FAC96 | B60: 0.0825 | F60: Non-Wind PPA Market Purchases | J60: 1908695 | L60: 1851402 | N60: 3075250
A61: Cause No. 38703-FAC97 | B61: 0.0792 | F61: Other | J61: 0 | L61: 0 | N61: 0
A62: Cause No. 38703-FAC98 | B62: 0.0775 | F62: MISO Components of Cost of Fuel | J62: 1246724 | L62: 1496660 | N62: 1620185
A63: Cause No. 38703-FAC99 | B63: 0.0775 | F63: Purchased Power other than MISO | J63: 1863671 | L63: 875857 | N63: 1004936
A64: Cause No. 38703-FAC100 | B64: 0.0775
A65: Cause No. 38703-FAC101 | B65: 0.0742 | F65: LESS:
A66: Cause No. 38703-FAC102 | B66: 0.0725
A67: Cause No. 38703-FAC103 | B67: 0.0725 | F67: Inter-System Sales through MISO | J67: 5925787 | L67: 6268405 | N67: 8657771
A68: Cause No. 38703-FAC104 | B68: 0.0725 | F68: Inter-System Sales other than MISO | J68: 0 | L68: 0 | M68: 0 | N68: 0
A69: Cause No. 38703-FAC105 | B69: 0.0683 | F69: Non-Jurisdictional Retail Sales | J69: 0 | L69: 0 | M69: 0 | N69: 0
A70: Cause No. 38703-FAC106 | B70: 0.0675 | F70: Transmission Losses | J70: 287249 | L70: 420422 | N70: 494131
A71: Cause No. 38703-FAC107 | B71: 0.0675 | F71: Lakefield PPA Adjustment | J71: 209181 | L71: 350525 | N71: 642380
A72: Cause No. 38703-FAC108 | B72: 0.0675 | F72: Purchased Power in Excess | J72: 0 | L72: 0 | N72: 0
A73: Cause No. 38703-FAC109 | B73: 0.0658
A74: Cause No. 38703-FAC110 | B74: 0.065 | F74: Total Fuel Costs (F) | J74: =SUM(J53:J63)-SUM(J66:J72) -> 31827841 | L74: =SUM(L53:L63)-SUM(L66:L72) -> 40453315 | N74: =SUM(N53:N63)-SUM(N66:N72) -> 46591176
A75: Cause No. 38703-FAC111 | B75: 0.06375
A76: Cause No. 38703-FAC112 | B76: 0.06375 | F76: F / S (Mills/kWh) | J76: =IF(J49=0,0,ROUND(J74/J49,3)) -> 32.116 | L76: =IF(L49=0,0,ROUND(L74/L49,3)) -> 33.462 | N76: =IF(N49=0,0,ROUND(N74/N49,3)) -> 35.601
A77: Cause No. 38703-FAC113 | B77: 0.06208
A78: Cause No. 38703-FAC114 | B78: 0.06125
A79: Cause No. 38703-FAC115 | B79: 0.06125
A80: Cause No. 38703-FAC116 | B80: 0.06125
A81: Cause No. 38703-FAC117 | B81: 0.05958
A82: Cause No. 38703-FAC118 | B82: 0.05875
A83: Cause No. 38703-FAC119 | B83: 0.05875
A84: Cause No. 38703-FAC120 | B84: 0.05875
A85: Cause No. 38703-FAC121 | B85: 0.05708
A86: Cause No. 38703-FAC122 | B86: 0.05625
A87: Cause No. 38703-FAC123 | B87: 0.05625
A88: Cause No. 38703-FAC124 | B88: 0.05875
A89: Cause No. 38703-FAC125 | B89: 0.05542
A90: Cause No. 38703-FAC126 | B90: 0.05375
A91: Cause No. 38703-FAC127 | B91: 0.05375
A92: Cause No. 38703-FAC128 | B92: 0.05375
A93: Cause No. 38703-FAC129 | B93: 0.05175
A94: Cause No. 38703-FAC130 | B94: 0.05075
A95: Cause No. 38703-FAC131 | B95: 0.05075
A96: Cause No. 38703-FAC132 | B96: 0.05075
A97: Cause No. 38703-FAC133 | B97: 0.04958
A98: Cause No. 38703-FAC134 | B98: 0.049
A99: Cause No. 38703-FAC135 | B99: 0.049
B102: State Tax
A103: Actual (Trueup) Months | B103: Rate
A104: Revenues for February, 2012 | B104: 0.0825
A105: Revenues for March, 2012 | B105: 0.0825
A106: Revenues for April, 2012 | B106: 0.0825
A107: Revenues for May, 2012 | B107: 0.0825
A108: Revenues for June, 2012 | B108: 0.0825
A109: Revenues for July, 2012 | B109: 0.0825
A110: Revenues for August, 2012 | B110: 0.0825
A111: Revenues for September, 2012 | B111: 0.0825
A112: Revenues for October, 2012 | B112: 0.0825
A113: Revenues for November, 2012 | B113: 0.0825
A114: Revenues for December, 2012 | B114: 0.0825
A115: Revenues for January, 2013 | B115: 0.0775
A116: Revenues for February, 2013 | B116: 0.0775
A117: Revenues for March, 2013 | B117: 0.0775
A118: Revenues for April, 2013 | B118: 0.0775
A119: Revenues for May, 2013 | B119: 0.0775
A120: Revenues for June, 2013 | B120: 0.0775
A121: Revenues for July, 2013 | B121: 0.0775
A122: Revenues for August, 2013 | B122: 0.0775
A123: Revenues for September, 2013 | B123: 0.0775
A124: Revenues for October, 2013 | B124: 0.0775
A125: Revenues for November, 2013 | B125: 0.0775
A126: Revenues for December, 2013 | B126: 0.0775
A127: Revenues for January, 2014 | B127: 0.0725
A128: Revenues for February, 2014 | B128: 0.0725
A129: Revenues for March, 2014 | B129: 0.0725
A130: Revenues for April, 2014 | B130: 0.0725
A131: Revenues for May, 2014 | B131: 0.0725
A132: Revenues for June, 2014 | B132: 0.0725
A133: Revenues for July, 2014 | B133: 0.0725
A134: Revenues for August, 2014 | B134: 0.0725
A135: Revenues for September, 2014 | B135: 0.0725
A136: Revenues for October, 2014 | B136: 0.0725
A137: Revenues for November, 2014 | B137: 0.0725
A138: Revenues for December, 2014 | B138: 0.0725
A139: Revenues for January, 2015 | B139: 0.0675
A140: Revenues for February, 2015 | B140: 0.0675
A141: Revenues for March, 2015 | B141: 0.0675
A142: Revenues for April, 2015 | B142: 0.0675
A143: Revenues for May, 2015 | B143: 0.0675
A144: Revenues for June, 2015 | B144: 0.0675
A145: Revenues for July, 2015 | B145: 0.0675
A146: Revenues for August, 2015 | B146: 0.0675
A147: Revenues for September, 2015 | B147: 0.0675
A148: Revenues for October, 2015 | B148: 0.0675
A149: Revenues for November, 2015 | B149: 0.0675
A150: Revenues for December, 2015 | B150: 0.0675
A151: Revenues for January, 2016 | B151: 0.06375
A152: Revenues for February, 2016 | B152: 0.06375
A153: Revenues for March, 2016 | B153: 0.06375
A154: Revenues for April, 2016 | B154: 0.06375
A155: Revenues for May, 2016 | B155: 0.06375
A156: Revenues for June, 2016 | B156: 0.06375
A157: Revenues for July, 2016 | B157: 0.06375
A158: Revenues for August, 2016 | B158: 0.06375
A159: Revenues for September, 2016 | B159: 0.06375
A160: Revenues for October, 2016 | B160: 0.06375
A161: Revenues for November, 2016 | B161: 0.06375
A162: Revenues for December, 2016 | B162: 0.06375
A163: Revenues for January, 2017 | B163: 0.06125
A164: Revenues for February, 2017 | B164: 0.06125
A165: Revenues for March, 2017 | B165: 0.06125
A166: Revenues for April, 2017 | B166: 0.06125
A167: Revenues for May, 2017 | B167: 0.06125
A168: Revenues for June, 2017 | B168: 0.06125
A169: Revenues for July, 2017 | B169: 0.06125
A170: Revenues for August, 2017 | B170: 0.06125
A171: Revenues for September, 2017 | B171: 0.06125
A172: Revenues for October, 2017 | B172: 0.06125
A173: Revenues for November, 2017 | B173: 0.06125
A174: Revenues for December, 2017 | B174: 0.06125
A175: Revenues for January, 2018 | B175: 0.05875
A176: Revenues for February, 2018 | B176: 0.05875
A177: Revenues for March, 2018 | B177: 0.05875
A178: Revenues for April, 2018 | B178: 0.05875
A179: Revenues for May, 2018 | B179: 0.05875
A180: Revenues for June, 2018 | B180: 0.05875
A181: Revenues for July, 2018 | B181: 0.05875
A182: Revenues for August, 2018 | B182: 0.05875
A183: Revenues for September, 2018 | B183: 0.05875
A184: Revenues for October, 2018 | B184: 0.05875
A185: Revenues for November, 2018 | B185: 0.05875
A186: Revenues for December, 2018 | B186: 0.05875
A187: Revenues for January, 2019 | B187: 0.05625
A188: Revenues for February, 2019 | B188: 0.05625
A189: Revenues for March, 2019 | B189: 0.05625
A190: Revenues for April, 2019 | B190: 0.05625
A191: Revenues for May, 2019 | B191: 0.05625
A192: Revenues for June, 2019 | B192: 0.05625
A193: Revenues for July, 2019 | B193: 0.05625
A194: Revenues for August, 2019 | B194: 0.05625
A195: Revenues for September, 2019 | B195: 0.05625
A196: Revenues for October, 2019 | B196: 0.05625
A197: Revenues for November, 2019 | B197: 0.05625
A198: Revenues for December, 2019 | B198: 0.05625
A199: Revenues for January, 2020 | B199: 0.05375
A200: Revenues for February, 2020 | B200: 0.05375
A201: Revenues for March, 2020 | B201: 0.05375
A202: Revenues for April, 2020 | B202: 0.05375
A203: Revenues for May, 2020 | B203: 0.05375
A204: Revenues for June, 2020 | B204: 0.05375
... 30 more rows

Sheet Sch 1
A1: ='Data Input'!A7 -> Cause No. 38703-FAC135 | L1: Applicant's Attachment NHC-1
L2: Schedule 1-Updated
L3: Page 1 of 1
A4: AES INDIANA
A5: Determination of Fuel Cost Adjustment
A6: ="Beginning with " &'Date Input'!B7&" Based on the Estimated" -> Beginning with August 2022 Based on the Estimated
A7: ="Three Months Average of " &'Date Input'!B5 -> Three Months Average of June, July, and August 2022
D8: (A) | F8: (B) | H8: (C) | J8: (D) | L8: (E)
A9: Line | L9: Estimated | M9: Line
A10: No. | B10: Description | D10: Estimated Month of: | L10: Three Month | M10: No.
B11: kWh Source (000's) | D11: ='Date Input'!B2 -> June | F11: ='Date Input'!B3 -> July | H11: ='Date Input'!B4 -> August | J11: Total | L11: Average
A12: 1 | B12: Coal and Oil Generation | D12: =+'Data Input'!B12 -> 637289 | F12: =+'Data Input'!C12 -> 857258 | H12: =+'Data Input'!D12 -> 836652 | J12: =D12+F12+H12 -> 2331199 | L12: =ROUND(J12/3,0) -> 777066 | M12: =A12 -> 1
A13: 2 | B13: Nuclear Generation | D13: 0 | F13: 0 | H13: 0 | J13: =D13+F13+H13 -> 0 | L13: =ROUND(J13/3,0) -> 0 | M13: 2
A14: 3 | B14: Hydro Generation | D14: 0 | F14: 0 | H14: 0 | J14: =D14+F14+H14 -> 0 | L14: 0 | M14: 3
A15: 4 | B15: Other Generation - Internal Combustion | D15: =+'Data Input'!B14 -> 0 | F15: =+'Data Input'!C14 -> 0 | H15: =+'Data Input'!D14 -> 0 | J15: =D15+F15+H15 -> 0 | L15: 0 | M15: 4
A16: 5 | B16: Gas Generation | D16: =+'Data Input'!B13 -> 605096 | F16: =+'Data Input'!C13 -> 719440 | H16: =+'Data Input'!D13 -> 683319 | J16: =D16+F16+H16 -> 2007855 | L16: =ROUND(J16/3,0) -> 669285 | M16: 5
B17: Purchases through MISO:
A18: 6 | B18: Wind Purchase Power Agreement Purchases | D18: ='Sch 2'!D16 -> 48142 | F18: ='Sch 2'!D27 -> 37263 | H18: ='Sch 2'!D38 -> 40692 | J18: =D18+F18+H18 -> 126097 | L18: =ROUND(J18/3,0) -> 42032 | M18: 6
A19: 7 | B19: Non-Wind PPA Market Purchases | D19: ='Sch 2'!D17 -> 52391 | F19: ='Sch 2'!D28 -> 14912 | H19: ='Sch 2'!D39 -> 17294 | J19: 84597 | L19: =ROUND(J19/3,0) -> 28199 | M19: 7
A20: 8 | B20: Other | D20: ='Sch 2'!D18 -> 0 | F20: ='Sch 2'!D29 -> 0 | H20: ='Sch 2'!D40 -> 0 | J20: 0 | L20: =ROUND(J20/3,0) -> 0 | M20: 8
A21: 9 | B21: Purchased Power other than MISO | D21: ='Sch 2'!D20 -> 18112 | F21: ='Sch 2'!D31 -> 17322 | H21: ='Sch 2'!D42 -> 16407 | J21: 51841 | L21: 17280 | M21: 9
B22: LESS:
A23: =A21+1 -> 10 | B23: Energy Losses and Company Use | D23: =+'Data Input'!B20+'Data Input'!B21 -> 55780 | F23: =+'Data Input'!C20+'Data Input'!C21 -> 63786 | H23: =+'Data Input'!D20+'Data Input'!D21 -> 61069 | J23: 180635 | L23: 60212 | M23: =A23 -> 10
A24: =A23+1 -> 11 | B24: Inter-System Sales through MISO | D24: =+'Data Input'!B19 -> 149162 | F24: =+'Data Input'!C19 -> 260380 | H24: =+'Data Input'!D19 -> 267629 | J24: 677171 | L24: 225724 | M24: =A24 -> 11
A25: =A24+1 -> 12 | B25: Inter-System Sales other than MISO | D25: ='Sch 3'!D18 -> 0 | F25: ='Sch 3'!F18 -> 0 | H25: 0 | J25: 0 | L25: 0 | M25: =A25 -> 12
A26: =A25+1 -> 13 | B26: Non-Jurisdictional Retail Sales | D26: =+'Data Input'!B22 -> 0 | F26: =+'Data Input'!C22 -> 0 | H26: =+'Data Input'!D22 -> 0 | J26: =D26+F26+H26 -> 0 | L26: =ROUND(J26/3,0) -> 0 | M26: =A26 -> 13
A27: =A26+1 -> 14 | B27: Sales (S) | D27: =SUM(D12:D21)-SUM(D23:D26) -> 1156088 | F27: =SUM(F12:F21)-SUM(F23:F26) -> 1322029 | H27: =SUM(H12:H21)-SUM(H23:H26) -> 1265666 | J27: =SUM(J12:J21)-SUM(J23:J26) -> 3743783 | L27: =SUM(L12:L21)-SUM(L23:L26) -> 1247926 | M27: =A27 -> 14
B29: Fuel Cost ($)
A30: =A27+1 -> 15 | B30: Coal and Oil Generation | D30: =+'Data Input'!B29 -> 16871101 | F30: =+'Data Input'!C29 -> 20961184 | H30: =+'Data Input'!D29 -> 19662899 | J30: =D30+F30+H30 -> 57495184 | L30: =ROUND(J30/3,0) -> 19165061 | M30: =A30 -> 15
A31: =A30+1 -> 16 | B31: Nuclear Generation | D31: 0 | F31: 0 | H31: 0 | J31: 0 | L31: 0 | M31: 16
A32: 17 | B32: Hydro Generation | D32: 0 | F32: 0 | H32: 0 | J32: 0 | L32: 0 | M32: 17
A33: 18 | B33: Other Generation - Internal Combustion | D33: =+'Data Input'!B31 -> 0 | F33: =+'Data Input'!C31 -> 0 | H33: =+'Data Input'!D31 -> 0 | J33: 0 | L33: 0 | M33: 18
A34: 19 | B34: Gas Generation | D34: =+'Data Input'!B30 -> 21421883 | F34: =+'Data Input'!C30 -> 27389521 | H34: =+'Data Input'!D30 -> 25405189 | J34: 74216593 | L34: 24738864 | M34: 19
B35: Purchases through MISO:
A36: 20 | B36: Wind Purchase Power Agreement Purchases | D36: ='Sch 2'!G16 -> 4940837 | F36: ='Sch 2'!G27 -> 3831018 | H36: ='Sch 2'!G38 -> 3499511 | J36: 12271366 | L36: =ROUND(J36/3,0) -> 4090455 | M36: 20
A37: 21 | B37: Non-Wind PPA Market Purchases | D37: ='Sch 2'!G17 -> 2392839 | F37: ='Sch 2'!G28 -> 626766 | H37: ='Sch 2'!G39 -> 658357 | J37: 3677962 | L37: =ROUND(J37/3,0) -> 1225987 | M37: 21
A38: 22 | B38: Other | D38: ='Sch 2'!G18 -> 0 | F38: ='Sch 2'!G29 -> 0 | H38: ='Sch 2'!G40 -> 0 | J38: 0 | L38: =ROUND(J38/3,0) -> 0 | M38: 22
A39: 23 | B39: MISO Components of Cost of Fuel | D39: =+'Data Input'!B36 -> 1765347 | F39: =+'Data Input'!C36 -> 2018739 | H39: =+'Data Input'!D36 -> 1932675 | J39: 5716761 | L39: 1905587 | M39: 23
A40: 24 | B40: Purchased Power other than MISO | D40: ='Sch 2'!G20 -> 3010839 | F40: ='Sch 2'!G31 -> 2819645 | H40: ='Sch 2'!G42 -> 2728627 | J40: 8559111 | L40: 2853037 | M40: 24
B41: Less:
A42: =A40+1 -> 25 | B42: Inter-System Sales through MISO | D42: ='Sch 3'!F17 -> 4367277 | F42: ='Sch 3'!F25 -> 7697815 | H42: ='Sch 3'!F33 -> 7656369 | J42: =D42+F42+H42 -> 19721461 | L42: =ROUND(J42/3,0) -> 6573820 | M42: 25
A43: =A42+1 -> 26 | B43: Inter-System Sales other than MISO | D43: ='Sch 3'!F19 -> 0 | E43: ='Sch 3'!G19 -> 0 | F43: ='Sch 3'!F27 -> 0 | G43: ='Sch 3'!I19 -> 0 | H43: ='Sch 3'!F35 -> 0 | J43: =D43+F43+H43 -> 0 | L43: =ROUND(J43/3,0) -> 0 | M43: 26
A44: =A43+1 -> 27 | B44: Non-Jurisdictional Retail Sales | D44: ='Sch 3'!F20 -> 0 | E44: ='Sch 3'!G20 -> 0 | F44: ='Sch 3'!F28 -> 0 | G44: ='Sch 3'!I20 -> 0 | H44: ='Sch 3'!F36 -> 0 | J44: =D44+F44+H44 -> 0 | L44: =ROUND(J44/3,0) -> 0 | M44: 27
A45: =A44+1 -> 28 | B45: Transmission Losses | D45: =+'Data Input'!B37 -> 487424 | F45: =+'Data Input'!C37 -> 562813 | H45: =+'Data Input'!D37 -> 521402 | J45: =+D45+F45+H45 -> 1571639 | L45: =ROUND(+J45/3,0) -> 523880 | M45: 28
A46: =A45+1 -> 29 | B46: Lakefield PPA Adjustment | D46: ='Data Input'!B39 -> 242955 | F46: ='Data Input'!C39 -> 279703 | H46: ='Data Input'!D39 -> 230564 | J46: =+D46+F46+H46 -> 753222 | L46: =ROUND(+J46/3,0) -> 251074 | M46: 29 | X46: `
A47: =A46+1 -> 30 | B47: Total Fuel Cost (F) | D47: =SUM(D30:D40)-SUM(D42:D46) -> 45305190 | F47: =SUM(F29:F40)-SUM(F42:F46) -> 49106542 | H47: =SUM(H29:H40)-SUM(H42:H46) -> 45478923 | J47: =SUM(J29:J40)-SUM(J42:J46) -> 139890655 | L47: =SUM(L29:L40)-SUM(L42:L46) -> 46630217 | M47: 30
A49: =A47+1 -> 31 | B49: F ÷ S (Line 30 ÷ Line 14) (Mills/kWh) | L49: =IF(L27=0,0,ROUND(L47/L27,3)) -> 37.366 | M49: =A49 -> 31
A51: 32 | B51: Reduction from Earnings Test | J51: ='Exhibit 4a'!G26 -> -282364.16 | M51: 32
A52: 33 | B52: Reduction in Fuel Factor (Line 32 divided by estimated Indiana jurisdictional sales of | F52: =J27 -> 3743783 | G52: kWh (000's) | J52: (Mills/kWh) | L52: =+J51/F52 -> -0.0754221492 | M52: 33
D54: Months to be Reconciled
D57: ='Date Input'!$B$9 -> November | F57: ='Date Input'!$B$10 -> December | H57: ='Date Input'!$B$11 -> January | J57: Total
A58: =A52+1 -> 34 | B58: Fuel Cost Variance | D58: =ROUND('Sch 4 p1'!T34,0) -> 36943851 | F58: =ROUND('Sch 4 p2'!T35,0) -> 14618271 | H58: =ROUND('Sch 4 p3'!T33,0) -> 12764694 | J58: =D58+F58+H58 -> 64326816 | M58: =A58 -> 34
B59: (Mills/kWh)
A61: =A58+1 -> 35 | B61: Fuel Cost Variance - FAC 133 | J61: 13683621.11 | M61: 35
A62: =A61+1 -> 36 | B62: Fuel Cost Variance- FAC 133- 50% Collected | J62: =-J61*0.5 -> -6841810.555 | M62: 36
A63: =A62+1 -> 37 | B63: Fuel Cost Variance - FAC 134 (1) | J63: 32281690 | M63: 37
A64: 38 | B64: Subtotal Variances | J64: =SUM(J58:J63)-1 -> 103450315.6 | M64: 38
A65: 39 | B65: Estimated Eagle Valley Outage Impact | J65: -35168380 | M65: 39
A66: 40 | B66: Estimated Non Outage Related Fuel Cost Variances not yet Collected | J66: =+J64+J65 -> 68281935.56 | M66: 40
A68: =A66+1 -> 41 | B68: TOTAL Fuel Cost Variance Included in this Filing- 50% (Mitigated by Collecting over FAC 135 and 136) | L68: =+J66*0.5 -> 34140967.78 | M68: 41
A71: =A68+1 -> 42 | B71: Variance Charge (Line 32 Total divided by estimated Indiana jurisdictional sales of | F71: =J27 -> 3743783 | G71: kWh (000's) | L71: =IF(F71=0,0,ROUND(L68/F71,3)) -> 9.119 | M71: 42
A72: =A71+1 -> 43 | B72: Adjusted Fuel Cost Charge (Line 31 + Line 33) | L72: =ROUND(L49+L71+L52,3) -> 46.41 | M72: 43
A73: =A72+1 -> 44 | B73: Less: Base Cost of Fuel Included in Rates | L73: 32.938 | M73: 44
A74: =A73+1 -> 45 | B74: Fuel Cost Charge | L74: =ROUND(L72-L73,3) -> 13.472 | M74: 45
A75: =A74+1 -> 46 | B75: Fuel Cost Charge Adjusted for Indiana Utility Receipts Tax (2) | L75: =ROUND(L$74/(1-(0/(1-(VLOOKUP(A1,'Data Input'!A60:B99,2,FALSE))))),3) -> 13.472 | M75: 46
B77: (1) As filed variances of $29,879,749 plus October tie line correction of $2,401,941
B78: =CONCATENATE("(2) Line 45 Divided By (1-(1.40% URT Rate/(1-",TEXT(VLOOKUP(A1,'Data Input'!A60:B99,2,FALSE),"0.00000"),")))") -> (2) Line 45 Divided By (1-(1.40% URT Rate/(1-0.04900)))
B83: Formula checks:
B84: Should equal zero | C84: =SUM(D12:H21)-SUM(D23:H26)-J27 -> 0 | D84: =SUM(D30:H40)-SUM(D42:H46)-J47 -> 0
B85: Should be less than 1 | C85: =+J27/3-L27 -> 1.666666667
B86: Should equal zero | C86: =+L49+L71-L73-L74 -> 0.075

Sheet Sch 2
A1: ='Data Input'!A7 -> Cause No. 38703-FAC135 | I1: Applicant's Attachment NHC-1
I2: Schedule 2
I3: Page 1 of 1
A4: ='Sch 1'!$A$4 -> AES INDIANA
A5: Determination of Net Energy Cost of Purchased Power
A6: ="For the Estimated Months of " &'Date Input'!B5 -> For the Estimated Months of June, July, and August 2022
D8: kWh
A9: Line | D9: Purchased | I9: Line
A10: No | B10: Supplier | D10: (000's) | G10: Energy * | I10: No
D11: (A) | G11: (B)
B13: ='Sch 1'!D11 -> June
B15: Purchases through MISO:
A16: 1 | B16: Wind Purchase Power Agreement Purchases | D16: ='Data Input'!B16 -> 48142 | G16: ='Data Input'!B33 -> 4940837 | I16: =A16 -> 1
A17: 2 | B17: Non-Wind PPA Market Purchases | D17: ='Data Input'!B17 -> 52391 | G17: ='Data Input'!B34 -> 2392839 | I17: =A17 -> 2
A18: 3 | B18: Other | D18: 0 | G18: 0 | I18: =A18 -> 3
A19: 4 | B19: MISO Components of Cost of Fuel | D19: 0 | G19: =ROUND(+'Data Input'!B36,0) -> 1765347 | I19: =A19 -> 4
A20: =A19+1 -> 5 | B20: Purchased Power other than MISO | D20: ='Data Input'!B18 -> 18112 | G20: ='Data Input'!B35 -> 3010839 | I20: =A20 -> 5
A22: =A20+1 -> 6 | B22: Total | D22: =SUM(D15:D20) -> 118645 | G22: =SUM(G15:G20) -> 12109862 | I22: =A22 -> 6
B24: ='Sch 1'!F11 -> July
B26: Purchases through MISO:
A27: 7 | B27: Wind Purchase Power Agreement Purchases | D27: ='Data Input'!C16 -> 37263 | G27: ='Data Input'!C33 -> 3831018 | I27: =A27 -> 7
A28: 8 | B28: Non-Wind PPA Market Purchases | D28: ='Data Input'!C17 -> 14912 | G28: ='Data Input'!C34 -> 626766 | I28: =A28 -> 8
A29: 9 | B29: Other | D29: 0 | G29: 0 | I29: =A29 -> 9
A30: 10 | B30: MISO Components of Cost of Fuel | D30: 0 | G30: =ROUND(+'Data Input'!C36,0) -> 2018739 | I30: =A30 -> 10
A31: =A30+1 -> 11 | B31: Purchased Power other than MISO | D31: ='Data Input'!C18 -> 17322 | G31: ='Data Input'!C35 -> 2819645 | I31: =A31 -> 11
A33: =A31+1 -> 12 | B33: Total | D33: =SUM(D26:D31) -> 69497 | G33: =SUM(G26:G31) -> 9296168 | I33: =A33 -> 12
B35: =+'Sch 1'!H11 -> August
B37: Purchases through MISO:
A38: 13 | B38: Wind Purchase Power Agreement Purchases | D38: ='Data Input'!D16 -> 40692 | G38: ='Data Input'!D33 -> 3499511 | I38: =A38 -> 13
A39: 14 | B39: Non-Wind PPA Market Purchases | D39: ='Data Input'!D17 -> 17294 | G39: ='Data Input'!D34 -> 658357 | I39: =A39 -> 14
A40: 15 | B40: Other | D40: 0 | G40: 0 | I40: =A40 -> 15
A41: 16 | B41: MISO Components of Cost of Fuel | D41: 0 | G41: =ROUND(+'Data Input'!D36,0) -> 1932675 | I41: =A41 -> 16
A42: =A41+1 -> 17 | B42: Purchased Power other than MISO | D42: ='Data Input'!D18 -> 16407 | G42: ='Data Input'!D35 -> 2728627 | I42: =A42 -> 17
A44: =A42+1 -> 18 | B44: Total | D44: =SUM(D37:D42) -> 74393 | G44: =SUM(G37:G42) -> 8819170 | I44: =A44 -> 18
B46: Total Net Energy Cost of | X46: `
A47: =A44+1 -> 19 | B47: Purchased Power | D47: =D22+D33+D44 -> 262535 | G47: =G22+G33+G44 -> 30225200 | I47: =A47 -> 19
B51: * Demand Charges have not been estimated.
B57: Formula Checks
B58: Should equal zero | D58: =SUM(D16:D20,D27:D31,D38:D42)-D47 -> 0 | G58: =SUM(G16:G20,G27:G31,G38:G42)-G47 -> 0

Sheet Sch 3
A1: ='Data Input'!A7 -> Cause No. 38703-FAC135 | H1: Applicant's Attachment NHC-1
H2: Schedule 3
H3: Page 1 of 1
A5: ='Sch 1'!$A$4 -> AES INDIANA
A6: Determination of Fuel Costs Recovered Through
A7: Inter-System and Non-Jurisdictional Retail Sales by Month
A8: ='Sch 2'!A6 -> For the Estimated Months of June, July, and August 2022
D10: kWh | H10: Line
A11: Line | D11: Sold | H11: No.
A12: No. | B12: Purchaser | D12: (000's) | F12: Fuel Cost *
D13: (A) | F13: (B)
B15: ='Sch 2'!B13 -> June
A17: 1 | B17: Inter-System Sales through MISO | D17: =ROUND(+'Data Input'!B19,0) -> 149162 | F17: =+'Data Input'!B38 -> 4367277 | H17: =A17 -> 1
A18: =A17+1 -> 2 | B18: Inter-System Sales other than MISO | D18: 0 | F18: 0 | H18: =A18 -> 2
A19: =A18+1 -> 3 | B19: Non-Jurisdictional Retail Sales | D19: =ROUND(+'Data Input'!B22,0) -> 0 | F19: =+'Data Input'!B40 -> 0 | H19: =A19 -> 3
A21: =A19+1 -> 4 | B21: Total | D21: =SUM(D17:D19) -> 149162 | F21: =SUM(F17:F19) -> 4367277 | H21: =A21 -> 4
B23: ='Sch 2'!B24 -> July
A25: =A21+1 -> 5 | B25: Inter-System Sales through MISO | D25: =ROUND(+'Data Input'!C19,0) -> 260380 | F25: =+'Data Input'!C38 -> 7697815 | H25: =A25 -> 5
A26: =A25+1 -> 6 | B26: Inter-System Sales other than MISO | D26: 0 | F26: 0 | H26: =A26 -> 6
A27: =A26+1 -> 7 | B27: Non-Jurisdictional Retail Sales | D27: =ROUND(+'Data Input'!C22,0) -> 0 | F27: =+'Data Input'!C40 -> 0 | H27: =A27 -> 7
A29: =A27+1 -> 8 | B29: Total | D29: =SUM(D25:D27) -> 260380 | F29: =SUM(F25:F27) -> 7697815 | H29: =A29 -> 8
B31: =+'Sch 1'!H11 -> August
A33: =A29+1 -> 9 | B33: Inter-System Sales through MISO | D33: =ROUND(+'Data Input'!D19,0) -> 267629 | F33: =+'Data Input'!D38 -> 7656369 | H33: =A33 -> 9
A34: =A33+1 -> 10 | B34: Inter-System Sales other than MISO | D34: 0 | F34: 0 | H34: =A34 -> 10
A35: =A34+1 -> 11 | B35: Non-Jurisdictional Retail Sales | D35: =ROUND(+'Data Input'!D22,0) -> 0 | F35: =+'Data Input'!D40 -> 0 | H35: =A35 -> 11
A37: =A35+1 -> 12 | B37: Total | D37: =SUM(D33:D35) -> 267629 | F37: =SUM(F33:F35) -> 7656369 | H37: =A37 -> 12
B39: Total Inter-System and
A40: =A37+1 -> 13 | B40: Non-Jurisdictional Retail Sales | D40: =D21+D29+D37 -> 677171 | F40: =F21+F29+F37 -> 19721461 | H40: =A40 -> 13
B43: * Demand Charges have not been estimated.
X46: `
B47: Formula Checks
B48: Should equal zero | D48: =SUM(D17:D19)+SUM(D25:D27)+SUM(D33:D35)-D40 -> 0 | F48: =SUM(F17:F19)+SUM(F25:F27)+SUM(F33:F35)-F40 -> 0 | G48: =SUM(G6:G10,G17:G21,G28:G32)-G37 -> 0

Sheet Sch 4 p1
A1: ='Data Input'!A7 -> Cause No. 38703-FAC135 | V1: Applicant's Attachment NHC-1
V2: Schedule 4
V3: Page 1 of 3
A4: ='Sch 1'!$A$4 -> AES INDIANA
A5: Reconciliation of Actual Incremental Cost of Fuel
A6: Incurred to Applicable Incremental Retail Fuel Clause
A7: Revenues for November, 2021
R9: Incremental
L10: Actual | N10: Actual | R10: Fuel Clause
F11: Base Cost | L11: Incremental | N11: Incremental | R11: Revenues to
F12: of Fuel | H12: Actual Cost | J12: Actual | L12: Cost of Fuel | N12: Cost of Fuel | P12: Fuel Cost (2) | R12: be Reconciled
F13: Included | H13: of Fuel | J13: Incremental | L13: Billed | N13: Billed | P13: Variance | R13: with Actual
D14: kWh | F14: in Rates | H14: Incurred | J14: Cost of | L14: Including | N14: Excluding | P14: From | R14: Incremental
A15: Line | D15: Sales | F15: 32.938 | H15: ='Sch 5 p1'!E58 -> 72.563 | J15: Fuel | L15: Utility | N15: Utility | P15: Cause No. | R15: Cost of Fuel | T15: Fuel Cost | U15: Line
A16: No. | B16: Class of Customers | D16: (In 000's) | F16: Mills/kWh | H16: Mills/kWh | J16: Incurred | L16: Receipts Tx | N16: Receipts Tx (1) | P16: =+'Data Input'!H21 -> 38703-FAC132 | R16: Incurred | T16: Variance | U16: No.
D17: (A) | F17: (B) | H17: (C) | J17: (D) | L17: (E) | N17: (F) | P17: (G) | R17: (H) | T17: (I)
F18: (Col A * mills above) | H18: (Col A * mills above) | J18: (Col C - Col B) | R18: (Col F - Col G) | T18: (Col D - Col H)
A20: 1 | B20: Total Residential | D20: =+'Data Input'!J3 -> 327224 | F20: =ROUND(F15*D20,0) -> 10778104 | H20: =ROUND(H15*D20,0)+1 -> 23744356 | J20: =H20-F20 -> 12966252 | L20: ='Data Input'!J14 -> -10374 | N20: =ROUND(L20*(1-(0.014/(1-(VLOOKUP($A$7,'Data Input'!$A$104:$B$234,2,FALSE))))),0)-1 -> -10222 | U20: =A20 -> 1
A22: 2 | B22: Total Commercial | D22: =+'Data Input'!J4 -> 118722 | F22: =ROUND(F15*D22,0) -> 3910465 | H22: =ROUND(H15*D22,0) -> 8614824 | J22: =H22-F22 -> 4704359 | L22: ='Data Input'!J15 -> -3835 | N22: =ROUND(L22*(1-(0.014/(1-(VLOOKUP($A$7,'Data Input'!$A$104:$B$234,2,FALSE))))),0) -> -3778 | U22: =A22 -> 2
A24: 3 | B24: Total Industrial | D24: =+'Data Input'!J5 -> 453048 | F24: =ROUND(F15*D24,0) -> 14922495 | H24: =ROUND(H15*D24,0) -> 32874522 | J24: =H24-F24 -> 17952027 | L24: ='Data Input'!J16 -> -16819 | N24: =ROUND(L24*(1-(0.014/(1-(VLOOKUP($A$7,'Data Input'!$A$104:$B$234,2,FALSE))))),0) -> -16571 | U24: =A24 -> 3
B26: Total Electric Vehicle
A27: 4 | B27: Public Charging Stations | D27: =+'Data Input'!J6 -> 3 | F27: =ROUND(F15*D27,0) -> 99 | H27: =ROUND(H15*D27,0) -> 218 | J27: =H27-F27 -> 119 | L27: ='Data Input'!J17 -> -0.1 | N27: =ROUND(L27*(1-(0.014/(1-(VLOOKUP($A$7,'Data Input'!$A$104:$B$234,2,FALSE))))),0) -> 0 | U27: =A27 -> 4
A29: 5 | B29: Total Lighting | D29: =+'Data Input'!J7 -> 5958 | F29: =ROUND(F15*D29,0) -> 196245 | H29: =+D29*H15 -> 432330.354 | J29: =H29-F29 -> 236085.354 | L29: ='Data Input'!J18 -> -127 | N29: =ROUND(L29*(1-(0.014/(1-(VLOOKUP($A$7,'Data Input'!$A$104:$B$234,2,FALSE))))),0) -> -125 | U29: =A29 -> 5
A31: 6 | B31: Total Other | U31: =A31 -> 6
B33: Total Retail Sales
A34: 7 | B34: Subject to FAC | D34: =SUM(D20:D33) -> 904955 | F34: =SUM(F20:F33) -> 29807408 | H34: =SUM(H20:H33) -> 65666250.35 | J34: =SUM(J20:J33) -> 35858842.35 | L34: =SUM(L20:L31) -> -31155.1 | N34: =SUM(N20:N33) -> -30696 | P34: =-'Data Input'!O21 -> 1054312.5 | R34: =N34-P34 -> -1085008.5 | T34: =J34-R34 -> 36943850.85 | U34: =A34 -> 7
B36: Total Retail Sales NOT
A37: 8 | B37: Subject to FAC | D37: =+D43-D34-D40 -> 0 | U37: =A37 -> 8
B39: Total Non-jurisdictional
A40: 9 | B40: Retail Sales | D40: 0 | U40: =A40 -> 9
A43: 10 | B43: Sales | D43: ='Data Input'!J11 -> 904955 | U43: =A43 -> 10
B45: (1) Column E Multiplied By (1-(1.4% URT Rate/(1-.05075)))
X46: `
B47: (2) Column G includes amortization of the prior period (over)/under collections of fuel costs and the NOI credit. FAC 132 included an NOI credit of -$3,330,787 and a fuel cost variance of $12,987,449
B51: Formula checks:
B52: Should be zero | R52: =+P34+R34-N34 -> 0 | T52: =+T34+R34-J34 -> 0

Sheet Sch 4 p2
A1: ='Data Input'!A7 -> Cause No. 38703-FAC135 | V1: Applicant's Attachment NHC-1
V2: Schedule 4
V3: Page 2 of 3
A4: ='Sch 1'!$A$4 -> AES INDIANA
A5: Reconciliation of Actual Incremental Cost of Fuel
A6: Incurred to Applicable Incremental Retail Fuel Clause
A7: Revenues for December, 2021
R10: Incremental
L11: Actual | N11: Actual | R11: Fuel Clause
F12: Base Cost | L12: Incremental | N12: Incremental | R12: Revenues to
F13: of Fuel | H13: Actual Cost | J13: Actual | L13: Cost of Fuel | N13: Cost of Fuel | P13: Fuel Cost (2) | R13: be Reconciled
F14: Included | H14: of Fuel | J14: Incremental | L14: Billed | N14: Billed | P14: Variance | R14: with Actual
D15: kWh | F15: in Rates | H15: Incurred | J15: Cost of | L15: Including | N15: Excluding | P15: From | R15: Incremental
A16: Line | D16: Sales | F16: 32.938 | H16: =+'Sch 5 p2'!E58 -> 47.423 | J16: Fuel | L16: Utility | N16: Utility | P16: Cause No. | R16: Cost of Fuel | T16: Fuel Cost | U16: Line
A17: No. | B17: Class of Customers | D17: (In 000's) | F17: Mills/kWh | H17: Mills/kWh | J17: Incurred | L17: Receipts Tx | N17: Receipts Tx (1) | P17: =+'Data Input'!H22 -> 38703-FAC132/FAC133 | R17: Incurred | T17: Variance | U17: No.
D18: (A) | F18: (B) | H18: (C) | J18: (D) | L18: (E) | N18: (F) | P18: (G) | R18: (H) | T18: (I)
F19: (Col A * mills above) | H19: (Col A * mills above) | J19: (Col C - Col B) | R19: (Col F - Col G) | T19: (Col D - Col H)
A21: 1 | B21: Total Residential | D21: ='Data Input'!L3 -> 459406 | F21: =ROUND(F16*D21,0) -> 15131915 | H21: =ROUND(H16*D21,0) -> 21786411 | J21: =H21-F21 -> 6654496 | L21: =+'Data Input'!L14 -> 2457142 | N21: =ROUND(L21*(1-(0.014/(1-(VLOOKUP($A$7,'Data Input'!$A$104:$B$234,2,FALSE))))),0) -> 2420903 | U21: =A21 -> 1
A23: 2 | B23: Total Commercial | D23: ='Data Input'!L4 -> 147221 | F23: =ROUND(F16*D23,0) -> 4849165 | H23: =ROUND(H16*D23,0) -> 6981661 | J23: =H23-F23 -> 2132496 | L23: =+'Data Input'!L15 -> 785318 | N23: =ROUND(L23*(1-(0.014/(1-(VLOOKUP($A$7,'Data Input'!$A$104:$B$234,2,FALSE))))),0) -> 773736 | U23: =A23 -> 2
A25: 3 | B25: Total Industrial | D25: ='Data Input'!L5 -> 475724 | F25: =ROUND(F16*D25,0) -> 15669397 | H25: =ROUND(H16*D25,0) -> 22560259 | J25: =H25-F25 -> 6890862 | L25: =+'Data Input'!L16 -> 2399891 | N25: =ROUND(L25*(1-(0.014/(1-(VLOOKUP($A$7,'Data Input'!$A$104:$B$234,2,FALSE))))),0) -> 2364496 | U25: =A25 -> 3
B27: Total Electric Vehicle
A28: 4 | B28: Public Charging Stations | D28: ='Data Input'!L6 -> 3 | F28: =ROUND(F16*D28,0) -> 99 | H28: =ROUND(H16*D28,0) -> 142 | J28: =H28-F28 -> 43 | L28: =+'Data Input'!L17 -> 17.17 | N28: =ROUND(L28*(1-(0.014/(1-(VLOOKUP($A$7,'Data Input'!$A$104:$B$234,2,FALSE))))),0) -> 17 | U28: =A28 -> 4
A30: 5 | B30: Total Lighting | D30: ='Data Input'!L7 -> 6380 | F30: =ROUND(F16*D30,0) -> 210144 | H30: =ROUND(H16*D30,0) -> 302559 | J30: =H30-F30 -> 92415 | L30: =+'Data Input'!L18 -> 38637 | N30: =ROUND(L30*(1-(0.014/(1-(VLOOKUP($A$7,'Data Input'!$A$104:$B$234,2,FALSE))))),0) -> 38067 | U30: =A30 -> 5
A32: 6 | B32: Total Other | U32: =A32 -> 6
B34: Total Retail Sales
A35: 7 | B35: Subject to FAC | D35: =SUM(D21:D34) -> 1088734 | F35: =SUM(F21:F34) -> 35860720 | H35: =SUM(H21:H34) -> 51631032 | J35: =SUM(J21:J34) -> 15770312 | L35: =SUM(L21:L32) -> 5681005.17 | N35: =SUM(N21:N34) -> 5597219 | P35: =-'Data Input'!O22 -> 4445178.5 | R35: =N35-P35 -> 1152040.5 | T35: =J35-R35-1 -> 14618270.5 | U35: =A35 -> 7
B37: Total Retail Sales NOT
A38: 8 | B38: Subject to FAC | D38: =+D44-D35-D41 -> 0 | U38: =A38 -> 8
B40: Total Non-jurisdictional
A41: 9 | B41: Retail Sales | D41: =+'Data Input'!L8 -> 0 | U41: =A41 -> 9
A44: 10 | B44: Sales | D44: =+'Data Input'!L11 -> 1088734 | U44: =A44 -> 10
X46: `
B47: (1) Column E Multiplied By (1-(1.4% URT Rate/(1-.05075)))
B49: (2) Column G includes amortization of the prior period (over)/under collections of fuel costs. Includes FAC 132 fuel cost variance of $12,987,449 and FAC 133 fuel cost variance of $13,683,622.
B55: Formula checks:
B56: Should be zero | R56: =+P35+R35-N35 -> 0 | T56: =+T35+R35-J35 -> -1

Sheet Sch 4 p3
A1: ='Data Input'!A7 -> Cause No. 38703-FAC135 | U1: Applicant's Attachment NHC-1
U2: Schedule 4
U3: Page 3 of 3
A4: ='Sch 1'!$A$4 -> AES INDIANA
A5: Reconciliation of Actual Incremental Cost of Fuel
A6: Incurred to Applicable Incremental Retail Fuel Clause
A7: Revenues for January, 2022
R8: Incremental
L9: Actual | N9: Actual | R9: Fuel Clause
F10: Base Cost | L10: Incremental | N10: Incremental | R10: Revenues to
F11: of Fuel | H11: Actual Cost | J11: Actual | L11: Cost of Fuel | N11: Cost of Fuel | P11: Fuel Cost (2) | R11: be Reconciled
F12: Included | H12: of Fuel | J12: Incremental | L12: Billed | N12: Billed | P12: Variance | R12: with Actual
D13: kWh | F13: in Rates | H13: Incurred | J13: Cost of | L13: Including | N13: Excluding | P13: From | R13: Incremental | U13: Line
A14: Line | D14: Sales | F14: 32.938 | H14: ='Sch 5 p3'!E58 -> 45.097 | J14: Fuel | L14: Utility | N14: Utility | P14: Cause No. | R14: Cost of Fuel | T14: Fuel Cost | U14: No.
A15: No. | B15: Class of Customers | D15: (In 000's) | F15: Mills/kWh | H15: Mills/kWh | J15: Incurred | L15: Receipts Tx | N15: Receipts Tx (1) | P15: =+'Data Input'!H23 -> 38703-FAC132/FAC133 | R15: Incurred | T15: Variance
D16: (A) | F16: (B) | H16: (C) | J16: (D) | L16: (E) | N16: (F) | P16: (G) | R16: (H) | T16: (I)
F17: (Col A * mills above) | H17: (Col A * mills above) | J17: (Col C - Col B) | R17: (Col F - Col G) | T17: (Col D - Col H)
A19: 1 | B19: Total Residential | D19: ='Data Input'!N3 -> 552387 | F19: =ROUND(F14*D19,0) -> 18194523 | H19: =ROUND(H14*D19,0) -> 24910997 | J19: =H19-F19 -> 6716474 | L19: ='Data Input'!N14-3 -> 2954438 | N19: =ROUND(L19*(1-(0.0146/(1-(VLOOKUP($A$7,'Data Input'!$A$104:$B$234,2,FALSE))))),0) -> 2909081 | U19: 1
A21: 2 | B21: Total Commercial | D21: ='Data Input'!N4 -> 164049 | F21: =ROUND(F14*D21,0) -> 5403446 | H21: =ROUND(H14*D21,0) -> 7398118 | J21: =H21-F21 -> 1994672 | L21: ='Data Input'!N15 -> 880326 | N21: =ROUND(L21*(1-(0.0146/(1-(VLOOKUP($A$7,'Data Input'!$A$104:$B$234,2,FALSE))))),0) -> 866811 | U21: 2
A23: 3 | B23: Total Industrial | D23: ='Data Input'!N5 -> 491612 | F23: =ROUND(F14*D23,0) -> 16192716 | H23: =ROUND(H14*D23,0) -> 22170226 | J23: =H23-F23 -> 5977510 | L23: ='Data Input'!N16 -> 2673200 | N23: =ROUND(L23*(1-(0.0146/(1-(VLOOKUP($A$7,'Data Input'!$A$104:$B$234,2,FALSE))))),0) -> 2632160 | U23: 3
B25: Total Electric Vehicle
A26: 4 | B26: Public Charging Stations | D26: ='Data Input'!N6 -> 3 | F26: =ROUND(F14*D26,0) -> 99 | H26: =ROUND(H14*D26,0) -> 135 | J26: =H26-F26 -> 36 | L26: ='Data Input'!N17 -> 0 | N26: =ROUND(L26*(1-(0.0146/(1-(VLOOKUP($A$7,'Data Input'!$A$104:$B$234,2,FALSE))))),0) -> 0 | U26: 4
A28: 5 | B28: Total Lighting | D28: ='Data Input'!N7 -> 6238 | F28: =ROUND(F14*D28,0) -> 205467 | H28: =ROUND(H14*D28,0) -> 281315 | J28: =H28-F28 -> 75848 | L28: ='Data Input'!N18 -> 37549 | N28: =ROUND(L28*(1-(0.0146/(1-(VLOOKUP($A$7,'Data Input'!$A$104:$B$234,2,FALSE))))),0) -> 36973 | U28: 5
A30: 6 | B30: Total Other | U30: 6
B32: Total Retail Sales
A33: 7 | B33: Subject to FAC | D33: =SUM(D19:D32) -> 1214289 | F33: =SUM(F19:F32) -> 39996251 | H33: =SUM(H19:H32) -> 54760791 | J33: =SUM(J19:J32) -> 14764540 | L33: =SUM(L19:L29) -> 6545513 | N33: =SUM(N19:N32) -> 6445025 | P33: =-'Data Input'!O23 -> 4445178.5 | R33: =N33-P33 -> 1999846.5 | T33: =J33-R33 -> 12764693.5 | U33: 7
B35: Total Retail Sales NOT
A36: 8 | B36: Subject to FAC | D36: =+D41-D33-D39 -> 0 | U36: 8
B38: Total Non-jurisdictional
A39: 9 | B39: Retail Sales | D39: 0 | U39: 9
A41: 10 | B41: Sales | D41: ='Data Input'!N11 -> 1214289 | U41: 10
B46: (1) Column E Multiplied By (1-(1.46% URT Rate/(1-.049))) | X46: `
B48: (2) Column G includes amortization of the prior period (over)/under collections of fuel costs. Includes FAC 132 fuel cost variance of $12,987,449 and FAC 133 fuel cost variance of $13,683,622.
B51: Formula checks: | R51: =+P33+R33-N33 -> 0 | T51: =+T33+R33-J33 -> 0
B52: Should be zero

Sheet Sch 5 p1
A1: ='Data Input'!A7 -> Cause No. 38703-FAC135 | G1: Applicant's Attachment NHC-1
G2: Schedule 5
G3: Page 1 of 4
A4: ='Sch 1'!$A$4 -> AES INDIANA
A5: Comparison of Actual and Estimated Cost of Fuel
A6: Reconciliation November, 2021
A10: Line | H10: Line
A11: No. | B11: Description | E11: ='Date Input'!$B$9 -> November | H11: No.
B12: kWh Source (000's) | E12: Actual | G12: Forecast
A14: 1 | B14: Coal and Oil Generation | E14: =FCA_A8A!C16 -> 184482 | G14: =+'Data Input'!J33 -> 795413 | H14: =A14 -> 1
A15: =1+A14 -> 2 | B15: Nuclear Generation | E15: 0 | G15: =+'Data Input'!J34 -> 0 | H15: =A15 -> 2
A16: =1+A15 -> 3 | B16: Hydro Generation | E16: 0 | G16: =+'Data Input'!J35 -> 0 | H16: 3
A17: =1+A16 -> 4 | B17: Other Generation - Internal Combustion | E17: =+FCA_A8A!C23+FCA_A8A!C27+FCA_A8A!C24 -> 19 | G17: =+'Data Input'!J36 -> 0 | H17: 4
A18: =1+A17 -> 5 | B18: Gas Generation | E18: =+FCA_A8A!C25+FCA_A8A!C22+FCA_A8A!C20 -> 382977 | G18: =+'Data Input'!J37 -> 378968 | H18: 5
B19: Purchases through MISO:
A20: =1+A18 -> 6 | B20: Wind Purchase Power Agreement Purchases | E20: =ROUND(FCA_A10A!F22+FCA_A10A!F23,0) -> 59790 | G20: ='Data Input'!J39 -> 72753 | H20: 6
A21: =A20+1 -> 7 | B21: Non-Wind PPA Market Purchases | E21: =ROUND(FCA_A10A!F66,0) -> 427674 | G21: ='Data Input'!J40 -> 80527 | H21: 7
A22: =A21+1 -> 8 | B22: Other | E22: =ROUND(FCA_A10A!F14+FCA_A10A!F15+FCA_A10A!F68,0) -> 19 | G22: ='Data Input'!J41 -> 0 | H22: 8
A23: =A22+1 -> 9 | B23: Purchased Power other than MISO | E23: =SUM(FCA_A10A!F24:F64) -> 7585 | G23: =+'Data Input'!J42 -> 11290 | H23: 9
B24: LESS:
A25: =A23+1 -> 10 | B25: Energy Losses and Company Use | E25: =ROUND(+(+E14+E15+E16+E17+E18+E20+E21+E22+E23-E26-E27)*'Data Input'!B2+'Data Input'!H27+'Data Input'!J27,0) -> 52802 | G25: =+'Data Input'!J44 -> 53512 | H25: 10
A26: =A25+1 -> 11 | B26: Inter-System Sales through MISO | E26: =+FCA_A11A!D25+FCA_A11A!D23 -> 0 | G26: =+'Data Input'!J45 -> 294402 | H26: 11
A27: =A26+1 -> 12 | B27: Inter-System Sales other than MISO | E27: =SUM(FCA_A11A!D19:D21) -> 0 | G27: =+'Data Input'!J46 -> 0 | H27: 12
A28: =A27+1 -> 13 | B28: Non-Jurisdictional Retail Sales | E28: =ROUND(+FCA_A11A!D49*((1-'Data Input'!B2)),0) -> 0 | G28: =+'Data Input'!J47 -> 0 | H28: 13
A30: =A28+1 -> 14 | B30: Sales (S) | E30: =SUM(E14:E23)-SUM(E25:E28) -> 1009744 | G30: =SUM(G14:G23)-SUM(G25:G28) -> 991037 | H30: 14
B32: Fuel Cost
A34: =1+A30 -> 15 | B34: Coal and Oil Generation | E34: =ROUND(+FCA_A8A!S16,0) -> 4974914 | G34: =+'Data Input'!J53 -> 16027105 | H34: =A34 -> 15
A35: =A34+1 -> 16 | B35: Nuclear Generation | E35: 0 | G35: =+'Data Input'!J54 -> 0 | H35: 16
A36: =A35+1 -> 17 | B36: Hydro Generation | E36: 0 | G36: =+'Data Input'!J55 -> 0 | H36: 17
A37: =A36+1 -> 18 | B37: Other Generation - Internal Combustion | E37: =ROUND(+FCA_A8A!M23+FCA_A8A!M24+FCA_A8A!M27,0) -> 2954 | G37: =+'Data Input'!J56 -> 0 | H37: 18
A38: =A37+1 -> 19 | B38: Gas Generation | E38: =ROUND(+FCA_A8A!M25+FCA_A8A!P25+FCA_A8A!P22+FCA_A8A!P20,0) -> 24572739 | G38: =+'Data Input'!J57 -> 9276128 | H38: 19
A39: =1+A38 -> 20 | B39: Financial Hedges Gains/Losses & Transactional Fees | E39: =FCA_A10A!J69 -> 0 | G39: 0 | H39: =A39 -> 20
B40: Purchases through MISO:
A41: =A39+1 -> 21 | B41: Wind Purchase Power Agreement Purchases | E41: =ROUND(FCA_A10A!J22+FCA_A10A!J23,0) -> 7929986 | G41: ='Data Input'!J59 -> 7927735 | H41: 21
A42: =A41+1 -> 22 | B42: Non-Wind PPA Market Purchases | E42: =ROUND(FCA_A10A!J66,0) -> 27481782 | G42: ='Data Input'!J60 -> 1908695 | H42: 22
A43: =A42+1 -> 23 | B43: Other | E43: =ROUND(FCA_A10A!J14+FCA_A10A!J15+FCA_A10A!J68,0) -> 472 | G43: ='Data Input'!J61 -> 0 | H43: 23
A44: =A43+1 -> 24 | B44: MISO Components of Cost of Fuel | E44: =ROUND(+FCA_A10A!J67,0) -> 7081450 | G44: =+'Data Input'!J62 -> 1246724 | H44: 24
A45: =A44+1 -> 25 | B45: Purchased Power other than MISO | E45: =ROUND(SUM(FCA_A10A!J24:J64),0) -> 1225785 | G45: =+'Data Input'!J63 -> 1863671 | H45: 25
X46: `
B47: LESS:
A49: =A45+1 -> 26 | B49: Inter-System Sales through MISO | E49: =ROUND(+FCA_A11A!J25+FCA_A11A!T25+FCA_A11A!J23+FCA_A11A!T23,0) -> 0 | G49: =+'Data Input'!J67 -> 5925787 | H49: =A49 -> 26
A50: =A49+1 -> 27 | B50: Inter-System Sales other than MISO | E50: =ROUND(SUM(FCA_A11A!J19:J21)+FCA_A11A!T19+FCA_A11A!T21,0) -> 0 | G50: =+'Data Input'!J68 -> 0 | H50: 27
A51: =A50+1 -> 28 | B51: Non-Jurisdictional Retail Sales | E51: =+FCA_A11A!J49+FCA_A11A!T49+FCA_A11A!AB49 -> 0 | G51: =+'Data Input'!J69 -> 0 | H51: 28
A52: =A51+1 -> 29 | B52: Transmission Losses | E52: =ROUND(+'Data Input'!L27,0) -> 0 | G52: =+'Data Input'!J70 -> 287249 | H52: 29
A53: =A52+1 -> 30 | B53: Lakefield PPA Adjustment | E53: =ROUND('Data Input'!O27,0)-2 -> 69 | G53: =+'Data Input'!J71 -> 209181 | H53: 30
A54: =A53+1 -> 31 | B54: Purchased Power in Excess | E54: =ROUND(+'Data Input'!N27,0) -> 0 | G54: =+'Data Input'!J72 -> 0 | H54: 31
A56: =A54+1 -> 32 | B56: Total Fuel Costs (F) | E56: =ROUND(SUM(E34:E45)-SUM(E48:E54),0) -> 73270013 | G56: =SUM(G34:G45)-SUM(G48:G54) -> 31827841 | H56: 32
A58: =A56+1 -> 33 | B58: F / S (Mills/kWh) | E58: =IF(E30=0,0,ROUND(E56/E30,3)) -> 72.563 | G58: =IF(G30=0,0,ROUND(G56/G30,3)) -> 32.116 | H58: 33
B60: Weighted Average Deviation | E60: =IF(E58=0,0,ROUND((G58-E58)/E58,4)) -> -0.5574
B64: Does not appear on printout - Check figures only
B65: Analysis of variance between actual and estimated costs
C67: Formula checks:
C68: should be zero | E68: =SUM(E14:E23)-SUM(E25:E28)-E30 -> 0
C69: should be zero - rounding | E69: =E44-'Sch 6'!D28 -> 0
C70: should be zero - rounding | E70: =SUM(E34:E38)-FCA_A8A!S31 -> -0.799999997
C71: should be zero | E71: =SUM(E14:E18)-FCA_A8A!C31 -> 0
C72: should be zero | E72: =SUM(E39:E45)-FCA_A10A!J70 -> -0.3999999985

Sheet Sch 5 p2
A1: ='Data Input'!A7 -> Cause No. 38703-FAC135 | G1: Applicant's Attachment NHC-1
G2: Schedule 5
G3: Page 2 of 4
A4: ='Sch 1'!$A$4 -> AES INDIANA
A5: Comparison of Actual and Estimated Cost of Fuel
A6: Reconciliation December, 2021
A10: Line | H10: Line
A11: No. | B11: Description | E11: ='Date Input'!B10 -> December | H11: No.
B12: kWh Source (000's) | E12: Actual | G12: Forecast
A14: 1 | B14: Coal and Oil Generation | E14: =FCA_A8B!C16 -> 623008 | G14: =+'Data Input'!L33 -> 940033 | H14: =A14 -> 1
A15: =1+A14 -> 2 | B15: Nuclear Generation | E15: 0 | G15: =+'Data Input'!L34 -> 0 | H15: =A15 -> 2
A16: =1+A15 -> 3 | B16: Hydro Generation | E16: 0 | G16: =+'Data Input'!L35 -> 0 | H16: 3
A17: =1+A16 -> 4 | B17: Other Generation - Internal Combustion | E17: =+FCA_A8B!C23+FCA_A8B!C27+FCA_A8B!C24 -> 15 | G17: =+'Data Input'!L36 -> 0 | H17: 4
A18: =A17+1 -> 5 | B18: Gas Generation | E18: =+FCA_A8B!C25+FCA_A8B!C22+FCA_A8B!C20 -> 211212 | G18: =+'Data Input'!L37 -> 449911 | H18: 5
B19: Purchases through MISO
A20: =A18+1 -> 6 | B20: Wind Purchase Power Agreement Purchases | E20: =ROUND(FCA_A10B!F22+FCA_A10B!F21,0) -> 74863 | G20: ='Data Input'!L39 -> 73403 | H20: 6
A21: =A20+1 -> 7 | B21: Non-Wind PPA Market Purchases | E21: =+FCA_A10B!F65 -> 226904 | G21: ='Data Input'!L40 -> 65136 | H21: 7
A22: =A21+1 -> 8 | B22: Other | E22: =+FCA_A10B!F14+FCA_A10B!F15+FCA_A10B!F67 -> 14 | G22: ='Data Input'!L41 -> 0 | H22: 8
A23: =A22+1 -> 9 | B23: Purchased Power other than MISO | E23: =SUM(FCA_A10B!F23:F63) -> 6768 | G23: =+'Data Input'!L42 -> 5287 | H23: 9
B24: LESS:
A25: =A23+1 -> 10 | B25: Energy Losses and Company Use | E25: =ROUND(+(+E14+E15+E16+E17+E18+E20+E21+E22+E23-E26-E27)*'Data Input'!B3+'Data Input'!H28+'Data Input'!J28,0) -> 56393 | G25: =+'Data Input'!L44 -> 65277 | H25: 10
A26: =A25+1 -> 11 | B26: Inter-System Sales through MISO | E26: =+FCA_A11B!D25+FCA_A11B!D23 -> 10527 | G26: =+'Data Input'!L45 -> 259559 | H26: 11
A27: =A26+1 -> 12 | B27: Inter-System Sales other than MISO | E27: =SUM(FCA_A11B!D17:D21) -> 0 | G27: =+'Data Input'!L46 -> 0 | H27: 12
A28: =A27+1 -> 13 | B28: Non-Jurisdictional Retail Sales | E28: =ROUND(+FCA_A11B!D49*((1-'Data Input'!B3)),0) -> 0 | G28: =+'Data Input'!L47 -> 0 | H28: 13
A30: =A28+1 -> 14 | B30: Sales (S) | E30: =SUM(E14:E23)-SUM(E25:E28) -> 1075864 | G30: =SUM(G14:G23)-SUM(G25:G28) -> 1208934 | H30: 14
B32: Fuel Cost
A34: =1+A30 -> 15 | B34: Coal and Oil Generation | E34: =ROUND(+FCA_A8B!S16,0) -> 14770615 | G34: =+'Data Input'!L53 -> 19377649 | H34: =A34 -> 15
A35: =A34+1 -> 16 | B35: Nuclear Generation | E35: 0 | G35: =+'Data Input'!L54 -> 0 | H35: 16
A36: =A35+1 -> 17 | B36: Hydro Generation | E36: 0 | G36: =+'Data Input'!L55 -> 0 | H36: 17
A37: =A36+1 -> 18 | B37: Other Generation - Internal Combustion | E37: =ROUND(+FCA_A8B!M23+FCA_A8B!M24+FCA_A8B!M27,0) -> 1009 | G37: =+'Data Input'!L56 -> 0 | H37: 18
A38: =A37+1 -> 19 | B38: Gas Generation | E38: =ROUND(+FCA_A8B!M25+FCA_A8B!P25+FCA_A8B!P22+FCA_A8B!P20,0) -> 15481539 | G38: =+'Data Input'!L57 -> 15790027 | H38: 19
A39: =A38+1 -> 20 | B39: Financial Hedges Gains/Losses & Transactional Fees | E39: =FCA_A10B!J68 -> 482546 | G39: 0 | H39: =A39 -> 20
B40: Purchases through MISO
A41: =A39+1 -> 21 | B41: Wind Purchase Power Agreement Purchases | E41: =ROUND(FCA_A10B!J22+FCA_A10B!J21,0) -> 7483356 | G41: ='Data Input'!L59 -> 8101072 | H41: 21
A42: =A41+1 -> 22 | B42: Non-Wind PPA Market Purchases | E42: =ROUND(+FCA_A10B!J65,0) -> 9524139 | G42: ='Data Input'!L60 -> 1851402 | H42: 22
A43: =A42+1 -> 23 | B43: Other | E43: =ROUND(+FCA_A10B!J14+FCA_A10B!J15+FCA_A10B!J17+FCA_A10B!J67,0) -> 337 | G43: ='Data Input'!L61 -> 0 | H43: 23
A44: =A43+1 -> 24 | B44: MISO Components of Cost of Fuel | E44: =ROUND(+FCA_A10B!J66,0) -> 2546715 | G44: =+'Data Input'!L62 -> 1496660 | H44: 24
A45: =A44+1 -> 25 | B45: Purchased Power other than MISO | E45: =ROUND(SUM(FCA_A10B!J23:J63),0) -> 1112262 | G45: =+'Data Input'!L63 -> 875857 | H45: 25
X46: `
B47: LESS:
A49: =A45+1 -> 26 | B49: Inter-System Sales through MISO | E49: =ROUND(+FCA_A11B!J25+FCA_A11B!T25+FCA_A11B!J23+FCA_A11B!T23,0) -> 331296 | G49: =+'Data Input'!L67 -> 6268405 | H49: =A49 -> 26
A50: =A49+1 -> 27 | B50: Inter-System Sales other than MISO | E50: =ROUND(SUM(FCA_A11B!J17:J21)+SUM(FCA_A11B!T17:T21),0) -> 0 | G50: =+'Data Input'!L68 -> 0 | H50: 27
A51: =A50+1 -> 28 | B51: Non-Jurisdictional Retail Sales | E51: =ROUND(+FCA_A11B!J49+FCA_A11B!T49+FCA_A11B!AB49,0) -> 0 | G51: =+'Data Input'!L69 -> 0 | H51: 28
A52: =A51+1 -> 29 | B52: Transmission Losses | E52: =ROUND(+'Data Input'!L28,0)-1 -> 40793 | G52: =+'Data Input'!L70 -> 420422 | H52: 29
A53: =A52+1 -> 30 | B53: Lakefield PPA Adjustment | E53: =ROUND('Data Input'!O28,0) -> 10114 | G53: =+'Data Input'!L71 -> 350525 | H53: 30
A54: =A53+1 -> 31 | B54: Purchased Power in Excess | E54: =ROUND(+'Data Input'!N28,0) -> 0 | G54: =+'Data Input'!L72 -> 0 | H54: 31
A56: =A54+1 -> 32 | B56: Total Fuel Costs (F) | E56: =SUM(E34:E45)-SUM(E48:E54) -> 51020315 | G56: =SUM(G34:G45)-SUM(G48:G54) -> 40453315 | H56: 32
A58: =A56+1 -> 33 | B58: F / S (Mills/kWh) | E58: =IF(E30=0,0,ROUND(E56/E30,3)) -> 47.423 | G58: =IF(G30=0,0,ROUND(G56/G30,3)) -> 33.462 | H58: 33
B60: Weighted Average Deviation | E60: =IF(E58=0,0,ROUND((G58-E58)/E58,4)) -> -0.2944
B64: Does not appear on printout - Check figures only
B65: Analysis of variance between actual and estimated costs
E66: Actual per FAC | G66: Estimated
B67: Avg cost of fuel (mills / kWh) | C67: Formula checks:
B68: Steam Generation | C68: should be zero | E68: =SUM(E14:E23)-SUM(E25:E28)-E30 -> 0
B69: Other Generation | C69: should be zero - Rounding | E69: =E44-'Sch 6'!F28 -> 0
B70: Total Generation | C70: should be zero | E70: =SUM(E34:E38)-FCA_A8B!S31 -> 0
B71: Purchased Power | C71: should be zero | E71: =SUM(E14:E18)-FCA_A8B!C31 -> 0
B72: Intersystem sales | C72: should be zero | E72: =SUM(E39:E45)-FCA_A10B!J69 -> 0
B76: =$B$68 -> Steam Generation
B77: =$B$69 -> Other Generation
B78: Total Generation
B79: =$B$71 -> Purchased Power
B80: =$B$72 -> Intersystem sales
B84: =$B$68 -> Steam Generation
B85: =$B$69 -> Other Generation
B86: Total Generation
B87: =$B$71 -> Purchased Power
B88: =$B$72 -> Intersystem sales
B92: =$B$68 -> Steam Generation
B93: =$B$69 -> Other Generation
B94: Total Generation
B95: =$B$71 -> Purchased Power
B96: =$B$72 -> Intersystem sales

Sheet Sch 5 p3
A1: ='Data Input'!A7 -> Cause No. 38703-FAC135 | G1: Applicant's Attachment NHC-1
G2: Schedule 5
G3: Page 3 of 4
A4: ='Sch 1'!$A$4 -> AES INDIANA
A5: Comparison of Actual and Estimated Cost of Fuel
A6: Reconciliation January, 2022
A10: Line | H10: Line
A11: No. | B11: Description | E11: ='Date Input'!B11 -> January | H11: No.
B12: kWh Source (000's) | E12: Actual | G12: Forecast
A14: 1 | B14: Coal and Oil Generation | E14: =FCA_A8C!C16 -> 913115 | G14: =+'Data Input'!N33 -> 967010 | H14: =A14 -> 1
A15: =1+A14 -> 2 | B15: Nuclear Generation | E15: 0 | G15: =+'Data Input'!N34 -> 0 | H15: =A15 -> 2
A16: =1+A15 -> 3 | B16: Hydro Generation | E16: 0 | G16: =+'Data Input'!N35 -> 0 | H16: 3
A17: =1+A16 -> 4 | B17: Other Generation - Internal Combustion | E17: =+FCA_A8C!C23+FCA_A8C!C27+FCA_A8C!C24 -> 14 | G17: =+'Data Input'!N36 -> 0 | H17: 4
A18: =A17+1 -> 5 | B18: Gas Generation | E18: =+FCA_A8C!C25+FCA_A8C!C22+FCA_A8C!C20 -> 273678 | G18: =+'Data Input'!N37 -> 593865 | H18: 5
B19: Purchases through MISO
A20: 6 | B20: Wind Purchase Power Agreement Purchases | E20: =ROUND(FCA_A10C!F20+FCA_A10C!F19,0) -> 90717 | G20: ='Data Input'!N39 -> 76890 | H20: 6
A21: 7 | B21: Non-Wind PPA Market Purchases | E21: =ROUND(FCA_A10C!F58,0) -> 141264 | G21: ='Data Input'!N40 -> 65912 | H21: 7
A22: 8 | B22: Other | E22: =ROUND(FCA_A10C!F60,0) -> 280 | G22: ='Data Input'!N41 -> 0 | H22: 8
A23: 9 | B23: Purchased Power other than MISO | E23: =SUM(FCA_A10C!F21:F57) -> 7292 | G23: =+'Data Input'!N42 -> 5894 | H23: 9
B24: LESS:
A25: =A23+1 -> 10 | B25: Energy Losses and Company Use | E25: =ROUND(+(+E14+E15+E16+E17+E18+E20+E21+E22+E23-E26-E27)*'Data Input'!B4+'Data Input'!H29+'Data Input'!J29,0) -> 66608 | G25: =+'Data Input'!N44 -> 70664 | H25: 10
A26: =A25+1 -> 11 | B26: Inter-System Sales through MISO | E26: =+FCA_A11C!D25+FCA_A11C!D23 -> 44636 | G26: =+'Data Input'!N45 -> 330195 | H26: 11
A27: =A26+1 -> 12 | B27: Inter-System Sales other than MISO | E27: =SUM(FCA_A11C!D18:D21) -> 0 | G27: =+'Data Input'!N46 -> 0 | H27: 12
A28: =A27+1 -> 13 | B28: Non-Jurisdictional Retail Sales | E28: =ROUND(+FCA_A11C!D49*((1-'Data Input'!B4)),0) -> 0 | G28: =+'Data Input'!N47 -> 0 | H28: 13
A30: =A28+1 -> 14 | B30: Sales (S) | E30: =SUM(E14:E23)-SUM(E25:E28) -> 1315116 | G30: =SUM(G14:G23)-SUM(G25:G28) -> 1308712 | H30: 14
B32: Fuel Cost
A34: =1+A30 -> 15 | B34: Coal and Oil Generation | E34: =ROUND(+FCA_A8C!S16,0) -> 23001892 | G34: =+'Data Input'!N53 -> 20157249 | H34: =A34 -> 15
A35: =A34+1 -> 16 | B35: Nuclear Generation | E35: 0 | G35: =+'Data Input'!N54 -> 0 | H35: 16
A36: =A35+1 -> 17 | B36: Hydro Generation | E36: 0 | G36: =+'Data Input'!N55 -> 0 | H36: 17
A37: =A36+1 -> 18 | B37: Other Generation - Internal Combustion | E37: =ROUND(+FCA_A8C!M23+FCA_A8C!M24+FCA_A8C!M27,0) -> 2203 | G37: =+'Data Input'!N56 -> 0 | H37: 18
A38: =A37+1 -> 19 | B38: Gas Generation | E38: =ROUND(+FCA_A8C!M25+FCA_A8C!P25+FCA_A8C!P22+FCA_A8C!P20,0) -> 20227469 | G38: =+'Data Input'!N57 -> 22604674 | H38: 19
A39: =A38+1 -> 20 | B39: Financial Hedges Gains/Losses & Transactional Fees | E39: =FCA_A10C!J61 -> 0 | G39: 0 | H39: 20
B40: Purchases through MISO
A41: =A39+1 -> 21 | B41: Wind Purchase Power Agreement Purchases | E41: =ROUND(FCA_A10C!J19+FCA_A10C!J20,0) -> 8162108 | G41: ='Data Input'!N59 -> 7923164 | H41: 21
A42: =A41+1 -> 22 | B42: Non-Wind PPA Market Purchases | E42: =ROUND(+FCA_A10C!J58,0) -> 7659290 | G42: ='Data Input'!N60 -> 3075250 | H42: 22
A43: =A42+1 -> 23 | B43: Other | E43: =ROUND(FCA_A10C!J12+FCA_A10C!J14+FCA_A10C!J13+FCA_A10C!J60,0) -> 6673 | G43: ='Data Input'!N61 -> 0 | H43: 23
A44: =A43+1 -> 24 | B44: MISO Components of Cost of Fuel | E44: =ROUND(+FCA_A10C!J59,0) -> 1516613 | G44: =+'Data Input'!N62 -> 1620185 | H44: 24
A45: =A44+1 -> 25 | B45: Purchased Power other than MISO | E45: =ROUND(SUM(FCA_A10C!J21:J57),0) -> 1086815 | G45: =+'Data Input'!N63 -> 1004936 | H45: 25
X46: `
B47: LESS:
A49: =A45+1 -> 26 | B49: Inter-System Sales through MISO | E49: =ROUND(+FCA_A11C!J25+FCA_A11C!T25+FCA_A11C!J23+FCA_A11C!T23,0) -> 1875771 | G49: =+'Data Input'!N67 -> 8657771 | H49: =A49 -> 26
A50: =A49+1 -> 27 | B50: Inter-System Sales other than MISO | E50: =ROUND(SUM(FCA_A11C!J19:J21)+FCA_A11C!T19+FCA_A11C!T21,0) -> 0 | G50: =+'Data Input'!N68 -> 0 | H50: 27
A51: =A50+1 -> 28 | B51: Non-Jurisdictional Retail Sales | E51: =ROUND(+FCA_A11C!J49+FCA_A11C!T49+FCA_A11C!AB49,0) -> 0 | G51: =+'Data Input'!N69 -> 0 | H51: 28
A52: =A51+1 -> 29 | B52: Transmission Losses | E52: =ROUND(+'Data Input'!L29,0) -> 212251 | G52: =+'Data Input'!N70 -> 494131 | H52: 29
A53: =A52+1 -> 30 | B53: Lakefield PPA Adjustment | E53: =ROUND('Data Input'!O29,0)+1 -> 267375 | G53: =+'Data Input'!N71 -> 642380 | H53: 30
A54: =A53+1 -> 31 | B54: Purchased Power in Excess | E54: =ROUND(+'Data Input'!N29,0) -> 0 | G54: =+'Data Input'!N72 -> 0 | H54: 31
A56: =A54+1 -> 32 | B56: Total Fuel Costs (F) | E56: =SUM(E34:E45)-SUM(E48:E54) -> 59307666 | G56: =SUM(G34:G45)-SUM(G48:G54) -> 46591176 | H56: 32
A58: =A56+1 -> 33 | B58: F / S (Mills/kWh) | E58: =IF(E30=0,0,ROUND(E56/E30,3)) -> 45.097 | G58: =IF(G30=0,0,ROUND(G56/G30,3)) -> 35.601 | H58: 33
B60: Weighted Average Deviation | E60: =IF(E58=0,0,ROUND((G58-E58)/E58,4)) -> -0.2106
B64: Does not appear on printout - Check figures only
B65: Analysis of variance between actual and estimated costs
E66: Actual per FAC | G66: Estimated
B67: Avg cost of fuel (mills / kWh) | C67: Formula checks:
B68: Steam Generation | C68: should be zero | E68: =SUM(E14:E23)-SUM(E25:E28)-E30 -> 0
B69: Other Generation | C69: should be zero | E69: =E44-'Sch 6'!H28 -> 0
B70: Total Generation | C70: should be zero | E70: =SUM(E34:E38)-FCA_A8C!S31 -> -0.1200000048
B71: Purchased Power | C71: should be zero | E71: =SUM(E14:E18)-FCA_A8C!C31 -> 0
B72: Intersystem sales | C72: should be zero | E72: =SUM(E39:E45)-FCA_A10C!J62 -> 0
B76: =$B$68 -> Steam Generation
B77: =$B$69 -> Other Generation
B78: Total Generation
B79: =$B$71 -> Purchased Power
B80: =$B$72 -> Intersystem sales
B84: =$B$68 -> Steam Generation
B85: =$B$69 -> Other Generation
B86: Total Generation
B87: =$B$71 -> Purchased Power
B88: =$B$72 -> Intersystem sales
B92: =$B$68 -> Steam Generation
B93: =$B$69 -> Other Generation
B94: Total Generation
B95: =$B$71 -> Purchased Power
B96: =$B$72 -> Intersystem sales

Sheet Sch 5 p4
A1: ='Data Input'!A7 -> Cause No. 38703-FAC135 | G1: Applicant's Attachment NHC-1
G2: Schedule 5
G3: Page 4 of 4
A4: ='Sch 1'!$A$4 -> AES INDIANA
A5: Comparison of Actual and Estimated Cost of Fuel
A6: ='Date Input'!B12 -> November, December 2021, and January 2022
A10: Line | H10: Line
A11: No. | B11: Description | E11: Total | H11: No. | R11: Check Figure
B12: kWh Source (000's) | E12: Actual | G12: Forecast
A14: 1 | B14: Coal and Oil Generation | E14: ='Sch 5 p1'!E14+'Sch 5 p2'!E14+'Sch 5 p3'!E14 -> 1720605 | G14: ='Sch 5 p1'!G14+'Sch 5 p2'!G14+'Sch 5 p3'!G14 -> 2702456 | H14: =A14 -> 1 | R14: =E14-'Sch 5 p3'!E14-'Sch 5 p2'!E14-'Sch 5 p1'!E14 -> 0 | S14: =G14-'Sch 5 p3'!G14-'Sch 5 p2'!G14-'Sch 5 p1'!G14 -> 0
A15: =1+A14 -> 2 | B15: Nuclear Generation | E15: ='Sch 5 p1'!E15+'Sch 5 p2'!E15+'Sch 5 p3'!E15 -> 0 | G15: ='Sch 5 p1'!G15+'Sch 5 p2'!G15+'Sch 5 p3'!G15 -> 0 | H15: =A15 -> 2 | R15: =E15-'Sch 5 p3'!E15-'Sch 5 p2'!E15-'Sch 5 p1'!E15 -> 0 | S15: =G15-'Sch 5 p3'!G15-'Sch 5 p2'!G15-'Sch 5 p1'!G15 -> 0
A16: =1+A15 -> 3 | B16: Hydro Generation | E16: ='Sch 5 p1'!E16+'Sch 5 p2'!E16+'Sch 5 p3'!E16 -> 0 | G16: ='Sch 5 p1'!G16+'Sch 5 p2'!G16+'Sch 5 p3'!G16 -> 0 | H16: 3 | R16: =E16-'Sch 5 p3'!E16-'Sch 5 p2'!E16-'Sch 5 p1'!E16 -> 0 | S16: =G16-'Sch 5 p3'!G16-'Sch 5 p2'!G16-'Sch 5 p1'!G16 -> 0
A17: =1+A16 -> 4 | B17: Other Generation - Internal Combustion | E17: ='Sch 5 p1'!E17+'Sch 5 p2'!E17+'Sch 5 p3'!E17 -> 48 | G17: ='Sch 5 p1'!G17+'Sch 5 p2'!G17+'Sch 5 p3'!G17 -> 0 | H17: 4 | R17: =E17-'Sch 5 p3'!E17-'Sch 5 p2'!E17-'Sch 5 p1'!E17 -> 0 | S17: =G17-'Sch 5 p3'!G17-'Sch 5 p2'!G17-'Sch 5 p1'!G17 -> 0
A18: =A17+1 -> 5 | B18: Gas Generation | E18: ='Sch 5 p1'!E18+'Sch 5 p2'!E18+'Sch 5 p3'!E18 -> 867867 | G18: ='Sch 5 p1'!G18+'Sch 5 p2'!G18+'Sch 5 p3'!G18 -> 1422744 | H18: 5 | R18: =E18-'Sch 5 p3'!E18-'Sch 5 p2'!E18-'Sch 5 p1'!E18 -> 0 | S18: =G18-'Sch 5 p3'!G18-'Sch 5 p2'!G18-'Sch 5 p1'!G18 -> 0
B19: Purchases through MISO
A20: 6 | B20: Wind Purchase Power Agreement Purchases | E20: ='Sch 5 p1'!E20+'Sch 5 p2'!E20+'Sch 5 p3'!E20 -> 225370 | G20: ='Sch 5 p1'!G20+'Sch 5 p2'!G20+'Sch 5 p3'!G20 -> 223046 | H20: 6 | R20: =E20-'Sch 5 p3'!E20-'Sch 5 p2'!E20-'Sch 5 p1'!E20 -> 0 | S20: =G20-'Sch 5 p3'!G20-'Sch 5 p2'!G20-'Sch 5 p1'!G20 -> 0
A21: 7 | B21: Non-Wind PPA Market Purchases | E21: ='Sch 5 p1'!E21+'Sch 5 p2'!E21+'Sch 5 p3'!E21 -> 795842 | G21: ='Sch 5 p1'!G21+'Sch 5 p2'!G21+'Sch 5 p3'!G21 -> 211575 | H21: 7 | R21: =E21-'Sch 5 p3'!E21-'Sch 5 p2'!E21-'Sch 5 p1'!E21 -> 0 | S21: =G21-'Sch 5 p3'!G21-'Sch 5 p2'!G21-'Sch 5 p1'!G21 -> 0
A22: 8 | B22: Other | E22: ='Sch 5 p1'!E22+'Sch 5 p2'!E22+'Sch 5 p3'!E22 -> 313 | G22: ='Sch 5 p1'!G22+'Sch 5 p2'!G22+'Sch 5 p3'!G22 -> 0 | H22: 8 | R22: =E22-'Sch 5 p3'!E22-'Sch 5 p2'!E22-'Sch 5 p1'!E22 -> 0 | S22: =G22-'Sch 5 p3'!G22-'Sch 5 p2'!G22-'Sch 5 p1'!G22 -> 0
A23: 9 | B23: Purchased Power other than MISO | E23: ='Sch 5 p1'!E23+'Sch 5 p2'!E23+'Sch 5 p3'!E23 -> 21645 | G23: ='Sch 5 p1'!G23+'Sch 5 p2'!G23+'Sch 5 p3'!G23 -> 22471 | H23: 9 | R23: =E23-'Sch 5 p3'!E23-'Sch 5 p2'!E23-'Sch 5 p1'!E23 -> 0 | S23: =G23-'Sch 5 p3'!G23-'Sch 5 p2'!G23-'Sch 5 p1'!G23 -> 0
B24: LESS:
A25: =A23+1 -> 10 | B25: Energy Losses and Company Use | E25: ='Sch 5 p1'!E25+'Sch 5 p2'!E25+'Sch 5 p3'!E25 -> 175803 | G25: ='Sch 5 p1'!G25+'Sch 5 p2'!G25+'Sch 5 p3'!G25 -> 189453 | H25: 10 | R25: =E25-'Sch 5 p3'!E25-'Sch 5 p2'!E25-'Sch 5 p1'!E25 -> 0 | S25: =G25-'Sch 5 p3'!G25-'Sch 5 p2'!G25-'Sch 5 p1'!G25 -> 0
A26: =A25+1 -> 11 | B26: Inter-System Sales through MISO | E26: ='Sch 5 p1'!E26+'Sch 5 p2'!E26+'Sch 5 p3'!E26 -> 55163 | G26: ='Sch 5 p1'!G26+'Sch 5 p2'!G26+'Sch 5 p3'!G26 -> 884156 | H26: 11 | R26: =E26-'Sch 5 p3'!E26-'Sch 5 p2'!E26-'Sch 5 p1'!E26 -> 0 | S26: =G26-'Sch 5 p3'!G26-'Sch 5 p2'!G26-'Sch 5 p1'!G26 -> 0
A27: =A26+1 -> 12 | B27: Inter-System Sales other than MISO | E27: ='Sch 5 p1'!E27+'Sch 5 p2'!E27+'Sch 5 p3'!E27 -> 0 | G27: ='Sch 5 p1'!G27+'Sch 5 p2'!G27+'Sch 5 p3'!G27 -> 0 | H27: 12 | R27: =E27-'Sch 5 p3'!E27-'Sch 5 p2'!E27-'Sch 5 p1'!E27 -> 0 | S27: =G27-'Sch 5 p3'!G27-'Sch 5 p2'!G27-'Sch 5 p1'!G27 -> 0
A28: =A27+1 -> 13 | B28: Non-Jurisdictional Retail Sales | E28: ='Sch 5 p1'!E28+'Sch 5 p2'!E28+'Sch 5 p3'!E28 -> 0 | G28: ='Sch 5 p1'!G28+'Sch 5 p2'!G28+'Sch 5 p3'!G28 -> 0 | H28: 13 | R28: =E28-'Sch 5 p3'!E28-'Sch 5 p2'!E28-'Sch 5 p1'!E28 -> 0 | S28: =G28-'Sch 5 p3'!G28-'Sch 5 p2'!G28-'Sch 5 p1'!G28 -> 0
A30: =A28+1 -> 14 | B30: Sales (S) | E30: =SUM(E14:E23)-SUM(E25:E28) -> 3400724 | G30: =SUM(G14:G23)-SUM(G25:G28) -> 3508683 | H30: 14 | R30: =E30-'Sch 5 p3'!E30-'Sch 5 p2'!E30-'Sch 5 p1'!E30 -> 0 | S30: =G30-'Sch 5 p3'!G30-'Sch 5 p2'!G30-'Sch 5 p1'!G30 -> 0
B32: Fuel Cost
A34: =1+A30 -> 15 | B34: Coal and Oil Generation | E34: ='Sch 5 p1'!E34+'Sch 5 p2'!E34+'Sch 5 p3'!E34 -> 42747421 | G34: ='Sch 5 p1'!G34+'Sch 5 p2'!G34+'Sch 5 p3'!G34 -> 55562003 | H34: =A34 -> 15 | R34: =E34-'Sch 5 p3'!E34-'Sch 5 p2'!E34-'Sch 5 p1'!E34 -> 0 | S34: =G34-'Sch 5 p3'!G34-'Sch 5 p2'!G34-'Sch 5 p1'!G34 -> 0
A35: =A34+1 -> 16 | B35: Nuclear Generation | E35: ='Sch 5 p1'!E35+'Sch 5 p2'!E35+'Sch 5 p3'!E35 -> 0 | G35: ='Sch 5 p1'!G35+'Sch 5 p2'!G35+'Sch 5 p3'!G35 -> 0 | H35: 16 | R35: =E35-'Sch 5 p3'!E35-'Sch 5 p2'!E35-'Sch 5 p1'!E35 -> 0 | S35: =G35-'Sch 5 p3'!G35-'Sch 5 p2'!G35-'Sch 5 p1'!G35 -> 0
A36: =A35+1 -> 17 | B36: Hydro Generation | E36: ='Sch 5 p1'!E36+'Sch 5 p2'!E36+'Sch 5 p3'!E36 -> 0 | G36: ='Sch 5 p1'!G36+'Sch 5 p2'!G36+'Sch 5 p3'!G36 -> 0 | H36: 17 | R36: =E36-'Sch 5 p3'!E36-'Sch 5 p2'!E36-'Sch 5 p1'!E36 -> 0 | S36: =G36-'Sch 5 p3'!G36-'Sch 5 p2'!G36-'Sch 5 p1'!G36 -> 0
A37: =A36+1 -> 18 | B37: Other Generation - Internal Combustion | E37: ='Sch 5 p1'!E37+'Sch 5 p2'!E37+'Sch 5 p3'!E37 -> 6166 | G37: ='Sch 5 p1'!G37+'Sch 5 p2'!G37+'Sch 5 p3'!G37 -> 0 | H37: 18 | R37: =E37-'Sch 5 p3'!E37-'Sch 5 p2'!E37-'Sch 5 p1'!E37 -> 0 | S37: =G37-'Sch 5 p3'!G37-'Sch 5 p2'!G37-'Sch 5 p1'!G37 -> 0
A38: =A37+1 -> 19 | B38: Gas Generation | E38: ='Sch 5 p1'!E38+'Sch 5 p2'!E38+'Sch 5 p3'!E38 -> 60281747 | G38: ='Sch 5 p1'!G38+'Sch 5 p2'!G38+'Sch 5 p3'!G38 -> 47670829 | H38: 19 | R38: =E38-'Sch 5 p3'!E38-'Sch 5 p2'!E38-'Sch 5 p1'!E38 -> 0 | S38: =G38-'Sch 5 p3'!G38-'Sch 5 p2'!G38-'Sch 5 p1'!G38 -> 0
A39: =A38+1 -> 20 | B39: Financial Hedges Gains/Losses & Transactional Fees | E39: ='Sch 5 p1'!E39+'Sch 5 p2'!E39+'Sch 5 p3'!E39 -> 482546 | G39: ='Sch 5 p1'!G39+'Sch 5 p2'!G39+'Sch 5 p3'!G39 -> 0 | H39: 20
B40: Purchases through MISO
A41: =A39+1 -> 21 | B41: Wind Purchase Power Agreement Purchases | E41: ='Sch 5 p1'!E41+'Sch 5 p2'!E41+'Sch 5 p3'!E41 -> 23575450 | G41: ='Sch 5 p1'!G41+'Sch 5 p2'!G41+'Sch 5 p3'!G41 -> 23951971 | H41: 21 | R41: =E41-'Sch 5 p3'!E41-'Sch 5 p2'!E41-'Sch 5 p1'!E41 -> 0 | S41: =G41-'Sch 5 p3'!G41-'Sch 5 p2'!G41-'Sch 5 p1'!G41 -> 0
A42: =A41+1 -> 22 | B42: Non-Wind PPA Market Purchases | E42: ='Sch 5 p1'!E42+'Sch 5 p2'!E42+'Sch 5 p3'!E42 -> 44665211 | G42: ='Sch 5 p1'!G42+'Sch 5 p2'!G42+'Sch 5 p3'!G42 -> 6835347 | H42: 22 | R42: =E42-'Sch 5 p3'!E42-'Sch 5 p2'!E42-'Sch 5 p1'!E42 -> 0 | S42: =G42-'Sch 5 p3'!G42-'Sch 5 p2'!G42-'Sch 5 p1'!G42 -> 0
A43: =A42+1 -> 23 | B43: Other | E43: ='Sch 5 p1'!E43+'Sch 5 p2'!E43+'Sch 5 p3'!E43 -> 7482 | G43: ='Sch 5 p1'!G43+'Sch 5 p2'!G43+'Sch 5 p3'!G43 -> 0 | H43: 23 | R43: =E43-'Sch 5 p3'!E43-'Sch 5 p2'!E43-'Sch 5 p1'!E43 -> 0 | S43: =G43-'Sch 5 p3'!G43-'Sch 5 p2'!G43-'Sch 5 p1'!G43 -> 0
A44: =A43+1 -> 24 | B44: MISO Components of Cost of Fuel | E44: ='Sch 5 p1'!E44+'Sch 5 p2'!E44+'Sch 5 p3'!E44 -> 11144778 | G44: ='Sch 5 p1'!G44+'Sch 5 p2'!G44+'Sch 5 p3'!G44 -> 4363569 | H44: 24 | R44: =E44-'Sch 5 p3'!E44-'Sch 5 p2'!E44-'Sch 5 p1'!E44 -> 0 | S44: =G44-'Sch 5 p3'!G44-'Sch 5 p2'!G44-'Sch 5 p1'!G44 -> 0
A45: =A44+1 -> 25 | B45: Purchased Power other than MISO | E45: ='Sch 5 p1'!E45+'Sch 5 p2'!E45+'Sch 5 p3'!E45 -> 3424862 | G45: ='Sch 5 p1'!G45+'Sch 5 p2'!G45+'Sch 5 p3'!G45 -> 3744464 | H45: 25 | R45: =E45-'Sch 5 p3'!E45-'Sch 5 p2'!E45-'Sch 5 p1'!E45 -> 0 | S45: =G45-'Sch 5 p3'!G45-'Sch 5 p2'!G45-'Sch 5 p1'!G45 -> 0
X46: `
B47: LESS:
A49: =A45+1 -> 26 | B49: Inter-System Sales through MISO | E49: ='Sch 5 p1'!E49+'Sch 5 p2'!E49+'Sch 5 p3'!E49 -> 2207067 | G49: ='Sch 5 p1'!G49+'Sch 5 p2'!G49+'Sch 5 p3'!G49 -> 20851963 | H49: =A49 -> 26 | R49: =E49-'Sch 5 p3'!E49-'Sch 5 p2'!E49-'Sch 5 p1'!E49 -> 0 | S49: =G49-'Sch 5 p3'!G49-'Sch 5 p2'!G49-'Sch 5 p1'!G49 -> 0
A50: =A49+1 -> 27 | B50: Inter-System Sales other than MISO | E50: ='Sch 5 p1'!E50+'Sch 5 p2'!E50+'Sch 5 p3'!E50 -> 0 | G50: ='Sch 5 p1'!G50+'Sch 5 p2'!G50+'Sch 5 p3'!G50 -> 0 | H50: 27 | R50: =E50-'Sch 5 p3'!E50-'Sch 5 p2'!E50-'Sch 5 p1'!E50 -> 0 | S50: =G50-'Sch 5 p3'!G50-'Sch 5 p2'!G50-'Sch 5 p1'!G50 -> 0
A51: =A50+1 -> 28 | B51: Non-Jurisdictional Retail Sales | E51: ='Sch 5 p1'!E51+'Sch 5 p2'!E51+'Sch 5 p3'!E51 -> 0 | G51: ='Sch 5 p1'!G51+'Sch 5 p2'!G51+'Sch 5 p3'!G51 -> 0 | H51: 28 | R51: =E51-'Sch 5 p3'!E51-'Sch 5 p2'!E51-'Sch 5 p1'!E51 -> 0 | S51: =G51-'Sch 5 p3'!G51-'Sch 5 p2'!G51-'Sch 5 p1'!G51 -> 0
A52: =A51+1 -> 29 | B52: Transmission Losses | E52: ='Sch 5 p1'!E52+'Sch 5 p2'!E52+'Sch 5 p3'!E52 -> 253044 | G52: ='Sch 5 p1'!G52+'Sch 5 p2'!G52+'Sch 5 p3'!G52 -> 1201802 | H52: 29 | R52: =E52-'Sch 5 p3'!E52-'Sch 5 p2'!E52-'Sch 5 p1'!E52 -> 0 | S52: =G52-'Sch 5 p3'!G52-'Sch 5 p2'!G52-'Sch 5 p1'!G52 -> 0
A53: =A52+1 -> 30 | B53: Lakefield PPA Adjustment | E53: ='Sch 5 p1'!E53+'Sch 5 p2'!E53+'Sch 5 p3'!E53 -> 277558 | G53: ='Sch 5 p1'!G53+'Sch 5 p2'!G53+'Sch 5 p3'!G53 -> 1202086 | H53: 30 | R53: =E53-'Sch 5 p3'!E53-'Sch 5 p2'!E53-'Sch 5 p1'!E53 -> 0 | S53: =G53-'Sch 5 p3'!G53-'Sch 5 p2'!G53-'Sch 5 p1'!G53 -> 0
A54: =A53+1 -> 31 | B54: Purchased Power in Excess | E54: ='Sch 5 p1'!E54+'Sch 5 p2'!E54+'Sch 5 p3'!E54 -> 0 | G54: ='Sch 5 p1'!G54+'Sch 5 p2'!G54+'Sch 5 p3'!G54 -> 0 | H54: 31 | R54: =E54-'Sch 5 p3'!E54-'Sch 5 p2'!E54-'Sch 5 p1'!E54 -> 0 | S54: =G54-'Sch 5 p3'!G54-'Sch 5 p2'!G54-'Sch 5 p1'!G54 -> 0
A56: =A54+1 -> 32 | B56: Total Fuel Costs (F) | E56: =SUM(E34:E45)-SUM(E48:E54) -> 183597994 | G56: =SUM(G34:G45)-SUM(G48:G54) -> 118872332 | H56: 32 | R56: =E56-'Sch 5 p3'!E56-'Sch 5 p2'!E56-'Sch 5 p1'!E56 -> 0 | S56: =G56-'Sch 5 p3'!G56-'Sch 5 p2'!G56-'Sch 5 p1'!G56 -> 0
A58: =A56+1 -> 33 | B58: F / S (Mills/kWh) | E58: =IF(E30=0,0,ROUND(E56/E30,3)) -> 53.988 | G58: =IF(G30=0,0,ROUND(G56/G30,3)) -> 33.879 | H58: 33
B60: Weighted Average Deviation | E60: =IF(E58=0,0,ROUND((G58-E58)/E58,4)) -> -0.3725
B64: Does not appear on printout - Check figures only
B65: Analysis of variance between actual and estimated costs
E66: Actual per FAC | G66: Estimated
B67: Avg cost of fuel (mills / kWh) | C67: Formula checks:
B68: Steam Generation | C68: should be zero | E68: =SUM(E14:E23)-SUM(E25:E28)-E30 -> 0
B69: Other Generation | C69: should be zero | E69: =E44-'Sch 6'!H28-'Sch 6'!F28-'Sch 6'!D28 -> 0
B70: Total Generation | C70: should be zero - rounding | E70: =SUM(E34:E38)-FCA_A8C!S31-FCA_A8B!S31-FCA_A8A!S31 -> -0.9200000018
B71: Purchased Power | C71: should be zero | E71: =SUM(E14:E18)-FCA_A8C!C31-FCA_A8B!C31-FCA_A8A!C31 -> 0
B72: Intersystem sales | C72: should be zero | E72: =SUM(E39:E45)-FCA_A10C!J62-FCA_A10B!J69-FCA_A10A!J70 -> -0.3999999985
B76: =$B$68 -> Steam Generation
B77: =$B$69 -> Other Generation
B78: Total Generation
B79: =$B$71 -> Purchased Power
B80: =$B$72 -> Intersystem sales
B84: =$B$68 -> Steam Generation
B85: =$B$69 -> Other Generation
B86: Total Generation
B87: =$B$71 -> Purchased Power
B88: =$B$72 -> Intersystem sales
B92: =$B$68 -> Steam Generation
B93: =$B$69 -> Other Generation
B94: Total Generation
B95: =$B$71 -> Purchased Power
B96: =$B$72 -> Intersystem sales

Sheet Sch 6
B1: ='Data Input'!A7 -> Cause No. 38703-FAC135 | H1: Applicant's Attachment NHC-1
H2: Schedule 6
H3: Page 1 of 1
A5: ='Sch 1'!A4 -> AES INDIANA
A6: Determination of MISO Components of Fuel Cost
A7: ='Date Input'!B12 -> November, December 2021, and January 2022
D9: Total | F9: Total | H9: Total
D10: ='Date Input'!B9 -> November | F10: ='Date Input'!B10 -> December | H10: ='Date Input'!B11 -> January
D11: (A) | F11: (B) | H11: (C)
A12: Line | I12: Line
A13: No. | B13: Energy Market FAC Adjustment Components | I13: No.
A14: 1 | B14: Delta LMP1 | D14: 7304202 | F14: 2957873 | H14: 5817848 | I14: =A14 -> 1
A15: 2 | B15: FTR (Revenue) / Expenses | D15: 660058 | F15: -127372 | H15: -3683354 | I15: =A15 -> 2
A16: 3 | B16: RT Marg. Loss Surplus Credit | D16: -843785 | F16: -444694 | H16: -804405 | I16: 3
A17: 4 | B17: Virtuals Bids and Offers for Load | D17: 0 | F17: 0 | H17: 0 | I17: 4
A18: 5 | B18: DA & RAC Recovery of Unit Commitment Costs | D18: -253839 | F18: -49895 | H18: -106434 | I18: 5
A19: 5a | B19: RSG 1st Pass Charges | D19: 68995 | F19: 29176 | H19: 95606 | I19: 5a
A20: 5b | B20: RSG 2nd Pass Distribution Correction | D20: 0 | F20: 0 | H20: 0 | I20: 5b
A21: 6 | B21: Inadvertent Energy | D21: -59739 | F21: 23638 | H21: -3850 | I21: 6
A22: 7 | B22: Ancillary Services Revenue | D22: -47938 | F22: -30384 | H22: -19250 | I22: 7
A23: 8 | B23: Ancillary Services Costs | D23: 120547 | F23: 119276 | H23: 136250 | I23: 8
A24: 9 | B24: Ancillary Services Incentive to Follow Dispatch2 | D24: 137229 | F24: 70905 | H24: 80927 | I24: 9
A25: 10 | B25: Ramp Capability3 | D25: -4280 | F25: -1808 | H25: 3275 | I25: 10
A26: 11 | B26: MISO Transmission Owner's Payment not on Settlement Statement - credit to FAC. | D26: 0 | F26: 0 | H26: 0 | I26: 11
A28: 11 | B28: Total (Columns A, B, & C to Schedule 5, line 24) | D28: =SUM(D14:D26) -> 7081450 | F28: =SUM(F14:F26) -> 2546715 | H28: =SUM(H14:H26) -> 1516613 | I28: 11
B33: Negative amount is a credit to expense (payment from MISO)
B34: Positive amount is a debit to expense (payment to MISO)
B37: 1Differential of MCC and MLC between the load zone and generation pricing nodes
B38: 2Net of Contingency Reserve Deployment Failure Credit
B39: 3Ramp Capability Payments Net of Uplift
B46: Formula Check | D46: =SUM(D14:H26)-SUM(D28:H28) -> 0 | X46: `

Sheet Sch 7
B1: ='Data Input'!A7 -> Cause No. 38703-FAC135 | G1: Applicant's Attachment NHC-1
G2: Schedule 7
G3: Page 1 of 1
A4: AES INDIANA
A5: MISO Charges by Month by Charge Type
A8: Line | C8: ='Date Input'!B17 -> 2021-11-16 | E8: ='Date Input'!B18 -> 2021-12-17 | G8: ='Date Input'!B19 -> 2022-01-17 | H8: Line
A9: No. | B9: Charge Type | C9: Invoice Total | E9: Invoice Total | G9: Invoice Total | H9: No.
A11: 1 | B11: Day Ahead Market Administration Amount | C11: 148918 | E11: 183018 | G11: 216761 | H11: =A11 -> 1
A12: =A11+1 -> 2 | B12: Day Ahead Regulation Amount | C12: -9648 | E12: -6778 | G12: -1283 | H12: =A12 -> 2
A13: =A12+1 -> 3 | B13: Day Ahead Spinning Reserve Amount | C13: -37475 | E13: -2196 | G13: -214 | H13: 3
A14: 4 | B14: Day-Ahead Short-Term Reserve Amount | C14: 0 | E14: -6287 | G14: -2896
A15: 5 | B15: Day Ahead Supplemental Reserve Amount | C15: 0 | E15: 0 | G15: 0 | H15: 5
A16: 6 | B16: Day Ahead Asset Energy Amount | C16: 28292539 | E16: 10302693 | G16: 6734382 | H16: 6
A17: 7 | B17: Day Ahead Financial Bilateral Transaction Congestion Amount | C17: 0 | E17: 0 | G17: 0 | H17: 7
A18: 8 | B18: Day Ahead Financial Bilateral Transaction Loss Amount | C18: 0 | E18: 0 | G18: 0 | H18: 8
A19: 9 | B19: Day Ahead Congestion Rebate on Carve-Out Grandfathered Agrmnts | C19: 0 | E19: 0 | G19: 0 | H19: 9
A20: 10 | B20: Day Ahead Losses Rebate on Carve-Out Grandfathered Agrmnts | C20: 0 | E20: 0 | G20: 0 | H20: 10
A21: 11 | B21: Day Ahead Congestion Rebate on Option B Grandfathered Agrmnts | C21: 0 | E21: 0 | G21: 0 | H21: 11
A22: 12 | B22: Day Ahead Losses Rebate on Option B Grandfathered Agrmnts | C22: 0 | E22: 0 | G22: 0 | H22: 12
A23: 13 | B23: Day Ahead Non-Asset Energy Amount | C23: 0 | E23: 0 | G23: 0 | H23: 13
A24: 14 | B24: Day Ahead Ramp Capability Amount | C24: -11938 | E24: -5263 | G24: -2391 | H24: 14
A25: 15 | B25: Day Ahead Revenue Sufficiency Guarantee Distribution Amount | C25: 64595 | E25: 30814 | G25: 50760 | H25: 15
A26: 16 | B26: Day Ahead Revenue Sufficiency Guarantee Make Whole Payment Amt | C26: -131579 | E26: -40344 | G26: -101960 | H26: 16
A27: 17 | B27: Day Ahead Schedule 24 Allocation Amount | C27: 22586 | E27: 25910 | G27: 33581 | H27: 17
A28: 18 | B28: Day Ahead Virtual Energy Amount | C28: 0 | E28: 0 | G28: 0 | H28: 18
B29: Day Ahead Subtotal | C29: =SUM(C11:C28) -> 28337998 | E29: =SUM(E11:E28) -> 10481567 | G29: =SUM(G11:G28) -> 6926740
A31: =A28+1 -> 19 | B31: Financial Transmission Rights Market Administration Amount | C31: 5228 | E31: 7453 | G31: 8975 | H31: =A31 -> 19
A32: =A31+1 -> 20 | B32: Auction Revenue Rights Transaction Amount | C32: -231072 | E32: -264066 | G32: -264066 | H32: 20
A33: =A32+1 -> 21 | B33: Financial Transmission Rights Annual Transaction Amount | C33: 189043 | E33: 229027 | G33: 229027 | H33: 21
A34: 22 | B34: Auction Revenue Rights Infeasible Uplift Amount | C34: 60108 | E34: 23861 | G34: 23861 | H34: 22
A35: 23 | B35: Auction Revenue Rights Stage 2 Distribution Amount | C35: -146019 | E35: -110708 | G35: -110708 | H35: 23
A36: 24 | B36: Financial Transmission Rights Full Funding Guarantee Amount | C36: -15826 | E36: 103407 | G36: 0 | H36: 24
A37: 25 | B37: Financial Transmission Guarantee Uplift Amount | C37: 12866 | E37: -128357 | G37: 0 | H37: 25
A38: 26 | B38: Financial Transmission Rights Hourly Allocation Amount | C38: 806623 | E38: 154565 | G38: -3521487 | H38: 26
A39: 27 | B39: Financial Transmission Rights Monthly Allocation Amount | C39: -15665 | E39: -31694 | G39: -39981 | H39: 27
A40: 28 | B40: Financial Transmission Rights Monthly Transaction Amount | C40: 0 | E40: 0 | G40: 0 | H40: 28
A41: 29 | B41: Financial Transmission Rights Transaction Amount | C41: 0 | E41: 0 | G41: 0 | H41: 29
A42: 30 | B42: Financial Transmission Rights Yearly Allocation Amount | C42: 0 | E42: -103407 | G42: 0 | H42: 30
B43: Financial Transmission Rights Subtotal | C43: =SUM(C31:C42) -> 665286 | E43: =SUM(E31:E42) -> -119919 | G43: =SUM(G31:G42) -> -3674379
A45: =A42+1 -> 31 | B45: Real Time Market Administration Amount | C45: 18296 | E45: 22305 | G45: 25347 | H45: =A45 -> 31
A46: =A45+1 -> 32 | B46: Contingency Reserve Deployment Failure Charge Amount | C46: 21124 | E46: 0 | G46: 0 | H46: 32
A47: =A46+1 -> 33 | B47: Excessive Energy Amount | C47: -28447 | E47: -19948 | G47: -15372 | H47: 33 | X47: `
A48: 34 | B48: Real Time Excessive Deficient Energy Deployment Charge Amount | C48: 7979 | E48: 8950 | G48: 7768 | H48: 34
A49: 35 | B49: Net Regulation Adjustment Amount | C49: 0 | E49: 0 | G49: 0 | H49: 35
A50: 36 | B50: Non-Excessive Energy Amount | C50: 3397244 | E50: 1400811 | G50: 4556831 | H50: 36
A51: 37 | B51: Real Time Regulation Amount | C51: -6115 | E51: 10495 | G51: -2817 | H51: 37
A52: 38 | B52: Regulation Cost Distribution Amount | C52: 58361 | E52: 46568 | G52: 56440 | H52: 38
A53: 39 | B53: Real Time Spinning Reserve Amount | C53: 5303 | E53: -12444 | G53: -593 | H53: 39
A54: 40 | B54: Spinning Reserve Cost Distribution Amount | C54: 54924 | E54: 39436 | G54: 35674 | H54: 40
A55: 41 | B55: Real Time Short-Term Reserve Amount | C55: 0 | E55: -12547 | G55: -11447 | H55: 41
A56: 42 | B56: Real-Time Short-Term Reserve Deployment Failure Charge Amount | C56: 0 | E56: 0 | G56: 0 | H56: 42
A57: 43 | B57: Short-Term Reserve Cost Distribution Amount | C57: 0 | E57: 26609 | G57: 35042 | H57: 43
A58: 44 | B58: Real Time Supplemental Reserve Amount | C58: -2 | E58: -627 | G58: 0 | H58: 44
A59: 45 | B59: Supplemental Reserve Cost Distribution Amount | C59: 7262 | E59: 6664 | G59: 9093 | H59: 45
A60: 46 | B60: Real Time Asset Energy Amount | C60: 3257478 | E60: 510698 | G60: -251609 | H60: 46
A61: 47 | B61: Real Time Demand Response Allocation Uplift Charge | C61: 111934 | E61: 62128 | G61: 73466 | H61: 47
A62: 48 | B62: Real Time Financial Bilateral Transaction Congestion Amount | C62: 0 | E62: 0 | G62: 0 | H62: 48
A63: 49 | B63: Real Time Financial Bilateral Transaction Loss Amount | C63: 0 | E63: 0 | G63: 0 | H63: 49
A64: 50 | B64: Real Time Congestion Rebate on Carve-Out Grandfathered Agrmnts | C64: 0 | E64: 0 | G64: 0 | H64: 50
A65: 51 | B65: Real Time Losses Rebate on Carve-Out Grandfathered Agrmnts | C65: 0 | E65: 0 | G65: 0 | H65: 51
A66: 52 | B66: Real Time Distribution of Losses Amount | C66: -843785 | E66: -444694 | G66: -804405 | H66: 52
A67: 53 | B67: Real Time Miscellaneous Amount | C67: 2857 | E67: -395 | G67: 9161 | H67: 53
A68: 54 | B68: Real Time MVP Distribution Amount | C68: -3055 | E68: -6501 | G68: -6977 | H68: 54
A69: 55 | B69: Real Time Non-Asset Energy Amount | C69: 0 | E69: 0 | G69: 0 | H69: 55
A70: 56 | B70: Real Time Net Inadvertent Distribution Amount | C70: -59739 | E70: 23638 | G70: -3850 | H70: 56
A71: 57 | B71: Real Time Price Volatility Make Whole Payment | C71: -132831 | E71: -133499 | G71: -319348 | H71: 57
A72: 58 | B72: Real Time Resource Adequacy Auction Amount | C72: -24416 | E72: -25230 | G72: -25230 | H72: 58
A73: 59 | B73: Real Time Ramp Capability Amount | C73: -3911 | E73: -4551 | G73: -2071 | H73: 59
A74: 60 | B74: Real Time Revenue Neutrality Uplift Amount | C74: 1138444 | E74: 209478 | G74: 212313 | H74: 60
A75: 61 | B75: Real Time Revenue Sufficiency Guarantee First Pass Dist Amount | C75: 67651 | E75: 31393 | G75: 109089 | H75: 61
A76: 62 | B76: Real Time Revenue Sufficiency Guarantee Make Whole Payment Amt | C76: -187684 | E76: -46442 | G76: -73505 | H76: 62
A77: 63 | B77: Real Time Schedule 24 Allocation Amount | C77: 2780 | E77: 3160 | G77: 3923 | H77: 63
A78: 64 | B78: Real Time Schedule 24 Distribution Amount | C78: -63425 | E78: -65202 | G78: -72769 | H78: 64
A79: 65 | B79: Real Time Schedule 49 Cost Distribution Amount | C79: 4937 | E79: 4843 | G79: 5366 | H79: 65
A80: 66 | B80: Real Time Virtual Energy Amount | C80: 0 | E80: 0 | G80: 0 | H80: 66
B81: Real Time Subtotal | C81: =SUM(C45:C80) -> 6803164 | E81: =SUM(E45:E80) -> 1635096 | G81: =SUM(G45:G80) -> 3549520
B83: Grand Total | C83: =C81+C43+C29 -> 35806448 | E83: =E81+E43+E29 -> 11996744 | G83: =G81+G43+G29 -> 6801881
B92: Check Figures
B93: Should be less than 5; rounding | C93: =SUM(C11:G28)-SUM(C29:G29) -> 0
B94: Should be less than 5; rounding | C94: =SUM(C31:G42)-SUM(C43:G43) -> 0
B95: Should be less than 5; rounding | C95: =SUM(C45:G80)-SUM(C81:G81) -> 0
B96: Should be less than 5; rounding | C96: =SUM(C11:G28)+SUM(C31:G42)+SUM(C45:G80)-SUM(C83:G83) -> 0

Sheet Ex2, pg 1
A3: =+'Data Input'!A7 -> Cause No. 38703-FAC135 | X3: Applicant's Attachment NHC-2
A5: AES INDIANA
A6: Statement of Jurisdictional Electric Operating Income for the Twelve Months Ended January 31, 2022
A7: (In $000's except where otherwise stated)
H9: Per Books For The Twelve Months Ended
H10: 2022-01-31
H11: Total Electric | O11: Applicable to
A12: Line | H12: For the Twelve Months | M12: MISO | O12: Jurisdictional | S12: Line
A13: No. | C13: Description | H13: Ended January 31, 2022 | M13: Attachment GG | O13: Retail Customers | S13: No.
A16: 1 | C16: Operating Revenues | H16: $ | I16: 1452350 | L16: $ | M16: 2636.11207 | O16: $ | P16: =I16-M16 -> 1449713.888 | S16: =A16 -> 1
A18: 2 | C18: Operating Expenses: | S18: =A18 -> 2
A19: 3 | C19: Operation and Maintenance Expenses | H19: $ | I19: 882293 | L19: $ | M19: 969.1519069 | O19: $ | P19: =I19-M19 -> 881323.8481 | S19: 3
A20: 4 | C20: Depreciation and Amortization | I20: 257105 | M20: 366.38506 | P20: =I20-M20 -> 256738.6149 | S20: 4
A22: =A20+1 -> 5 | C22: Taxes Other than Income Taxes: | I22: 45305 | M22: 73.56198818 | P22: =I22-M22 -> 45231.43801 | S22: 5
A23: 9 | P23: =I23-M23 -> 0 | S23: 9
A24: 10 | C24: Miscellaneous - Other Expenses | I24: 0 | P24: =I24-M24 -> 0 | S24: 10
A26: =+A22+1 -> 6 | C26: Income Taxes: | I26: 39365.98526 | M26: 307 | P26: =I26-M26 -> 39058.98526 | S26: =A26 -> 6
A28: =A26+1 -> 7 | C28: Total Operating Expenses | H28: $ | I28: =SUM(I19:I26) -> 1224068.985 | L28: $ | M28: =SUM(M19:M26) -> 1716.098955 | O28: $ | P28: =SUM(P19:P26) -> 1222352.886 | S28: =A28 -> 7
A30: =A28+1 -> 8 | C30: Operating Income | H30: $ | I30: =I16-I28 -> 228281.0147 | L30: $ | M30: =+M16-M28 -> 920.0131149 | O30: $ | P30: =I30-M30 -> 227361.0016 | S30: =A30 -> 8
C36: (d)(2) Test (In $000's)
C37: Summary of Increase in Operating Expenses Applicable to Jurisdictional Retail Customers
C38: For the Twelve Months Ended January 31, 2022
F40: Per Cause Nos. | H40: Per Books | M40: Increase
F41: 45029 | I41: 2022-01-31 | M41: (Decrease) | X41: `
A43: =A30+1 -> 9 | C43: Total Operating Expenses | E43: $ | F43: 1193106 | H43: $ | I43: =+P28 -> 1222352.886 | L43: $ | M43: =+I43-F43 -> 29246.88631 | S43: =A43 -> 9
A44: =A43+1 -> 10 | C44: Fuel Costs | F44: 436216 | I44: 432388 | M44: =+I44-F44 -> -3828 | S44: =A44 -> 10
A45: =A44+1 -> 11 | C45: Operating Expenses Excluding Fuel Costs | E45: $ | F45: =+F43-F44 -> 756890 | H45: $ | I45: =+I43-I44 -> 789964.8863 | L45: $ | M45: =+I45-F45 -> 33074.88631 | S45: =A45 -> 11
C52: (d)(3) Test (In $'s)
A54: =A45+1 -> 12 | C54: Jurisdictional Retail Electric Operating Income (January 31, 2022) | H54: $ | I54: =ROUND($P30*1000,6-LEN(INT($P30*1000))) -> 227361000 | S54: =A54 -> 12
A55: =A54+1 -> 13 | C55: Total Authorized Operating Income (1) | I55: =+'Ex 3-Authorized Return'!E53 -> 226529000 | S55: =A55 -> 13
A56: =A55+1 -> 14 | C56: Excess/(Deficiency) | H56: $ | I56: =+I54-I55 -> 832000 | S56: =A56 -> 14
C59: (1 ) Calculated on Applicant's Exhibit 3.

Sheet Ex 3-Authorized Return
A1: ='Data Input'!A7 -> Cause No. 38703-FAC135 | E1: Applicant's Attachment NHC-3
A4: ='Sch 1'!$A$4 -> AES INDIANA
A5: Determination of Authorized Return
A6: ="For the Twelve Months Ended " &'Date Input'!B14 -> For the Twelve Months Ended January 2022
A7: Line | F7: Line
A8: No. | F8: No.
A10: 1 | B10: Operating Income per Cause No. 45029 | E10: 220076000 | F10: =A10 -> 1
H11: .
A12: =A10+1 -> 2 | B12: Effective February 2021 | F12: =A12 -> 2
A13: =A12+1 -> 3 | B13: Allowed Return on CCT Utility Plant per Cause No. 42170-ECR33 (2) | C13: 1483145 | F13: 3
A14: =A13+1 -> 4 | B14: Jurisdictional Portion | C14: 1 | F14: 4
A15: =A14+1 -> 5 | B15: Jurisdictional Total for Cause No. 42170-ECR33 | C15: =ROUND(C13*C14,0) -> 1483145 | F15: 5
A16: =A15+1 -> 6 | B16: Proration for Cause No. 42170-ECR33 | C16: 28/365 | F16: 6
A17: =A16+1 -> 7 | B17: Total for Cause No. 42170-ECR33 | E17: =ROUND(C15*H17/1000,0)*1000 -> 114000 | F17: 7 | H17: =ROUND(28/365,6) -> 0.076712
A19: =A17+1 -> 8 | B19: Effective for March 2021 - January 2022 | F19: =A19 -> 8
A20: =A19+1 -> 9 | B20: Allowed Return on CCT Utility Plant per Cause No. 42170-ECR34 (2) | C20: 1541335 | F20: 9
A21: =A20+1 -> 10 | B21: Jurisdictional Portion | C21: 1 | F21: 10
A22: =A21+1 -> 11 | B22: Jurisdictional Total for Cause No. 42170-ECR34 | C22: =ROUND(C20*C21,0) -> 1541335 | F22: 11
A23: =A22+1 -> 12 | B23: Proration for Cause No. 42170-ECR34 | C23: 337/365 | F23: 12
A24: =A23+1 -> 13 | B24: Total for Cause No. 42170-ECR34 | E24: =ROUND(C22*H24/1000,0)*1000 -> 1423000 | F24: 13 | H24: =ROUND(337/365,6) -> 0.923288
A26: =A24+1 -> 14 | B26: Effective for February 2021 - October 2021 | F26: =A26 -> 14
A27: =A26+1 -> 15 | B27: Allowed Return on TDISC-1 Distribution Utility Plant per Cause No. 45264-TDSIC-1 (2) | C27: 2551960 | F27: 15
A28: =A27+1 -> 16 | B28: Jurisdictional Portion | C28: 1 | F28: 16
A29: =A28+1 -> 17 | B29: Jurisdictional Total for Cause No. 45264-TDSIC-1 | C29: =ROUND(C27*C28,0) -> 2551960 | F29: 17
A30: =A29+1 -> 18 | B30: Proration for Cause No.45264-TDSIC-1 | C30: 273/365 | F30: 18
A31: =A30+1 -> 19 | B31: Total for Cause No. 45264-TDSIC-1 | E31: =ROUND(C29*H31/1000,0)*1000 -> 1909000 | F31: 19 | H31: =ROUND(273/365,6) -> 0.747945
A33: =A31+1 -> 20 | B33: Effective for February 2021 - October 2021 | F33: =A33 -> 20
A34: =A33+1 -> 21 | B34: Allowed Return on TDISC-1 - Transmission Utility Plant per Cause No. 45264-TDSIC-1 (2) | C34: 530592 | F34: 21
A35: =A34+1 -> 22 | B35: Jurisdictional Portion | C35: 1 | F35: 22
A36: =A35+1 -> 23 | B36: Jurisdictional Total for Cause No. 45264-TDSIC-1 | C36: =ROUND(C34*C35,0) -> 530592 | F36: 23
A37: =A36+1 -> 24 | B37: Proration for Cause No.45264-TDSIC-1 | C37: 273/365 | F37: 24
A38: =A37+1 -> 25 | B38: Total for Cause No. 45264-TDSIC-1 | E38: =ROUND(C36*H38/1000,0)*1000 -> 397000 | F38: 25 | H38: =ROUND(273/365,6) -> 0.747945
A40: =+A38+1 -> 26 | B40: Effective for November 2021 - January 2022 | F40: =A40 -> 26
A41: =+A40+1 -> 27 | B41: Allowed Return on TDISC-3 Distribution Utility Plant per Cause No. 45264-TDSIC-3 (2) | C41: 8370218 | F41: 27
A42: =+A41+1 -> 28 | B42: Jurisdictional Portion | C42: 1 | F42: 28
A43: 29 | B43: Jurisdictional Total for Cause No. 45264-TDSIC-3 | C43: =ROUND(C41*C42,0) -> 8370218 | F43: 29
A44: 30 | B44: Proration for Cause No.45264-TDSIC-3 | C44: 92/365 | F44: 30
A45: 31 | B45: Total for Cause No. 45264-TDSIC-3 | E45: =ROUND(C43*H45/1000,0)*1000 -> 2110000 | F45: 31 | H45: =ROUND(92/365,6) -> 0.252055
A47: =A45+1 -> 32 | B47: Effective for November 2021 - January 2022 | F47: =A47 -> 32
A48: =A47+1 -> 33 | B48: Allowed Return on TDISC-3 - Transmission Utility Plant per Cause No. 45264-TDSIC-3 (2) | C48: 1982306 | F48: 33
A49: =A48+1 -> 34 | B49: Jurisdictional Portion | C49: 1 | F49: 34
A50: =A49+1 -> 35 | B50: Jurisdictional Total for Cause No. 45264-TDSIC-3 | C50: =ROUND(C48*C49,0) -> 1982306 | F50: 35
A51: =A50+1 -> 36 | B51: Proration for Cause No.45264-TDSIC-3 | C51: 92/365 | F51: 36
A52: =A51+1 -> 37 | B52: Total for Cause No. 45264-TDSIC-3 | E52: =ROUND(C50*H52/1000,0)*1000 -> 500000 | F52: 37 | H52: =ROUND(92/365,6) -> 0.252055
A53: =A38+1 -> 26 | B53: Total Authorized Operating Income | E53: =SUM(E10:E52) -> 226529000 | F53: =A53 -> 26
A57: (2) The Commission requires that, for purposes of computing the authorized net operating income for IC 8-1-2-42(d)(2) and IC 8-1-2-42(d)(3), the jurisdictional portion of the increased return shall be phased-in over the appropriate period of time that the Applicant's net operating income is affected by this earnings modification resulting from the Commission's approval of the QPCP Construction Cost Rider. The following example may be helpful in implementing the appropriate phase-in: Assume a ECCRA Order is effective and implemented Feb. 1, 2015. Assume the test period for the first FAC filing after the ECCRA Order covers the twelve months ended March 31, 2015. The increase to net operating income resulting from the ECCRA Order should be 59/365 of the total additional earnings authorized by the Commission's Order in the ECCRA. Assuming all things remain constant, the next FAC filing would reflect 150/365 of the total additional ECCRA earnings.
X72: `

Sheet Ex 4-Earnings Test
A1: ='Data Input'!A7 -> Cause No. 38703-FAC135 | I1: Applicant's Attachment NHC-4
A4: AES INDIANA
A5: Earnings Test Summary
C7: Reporting | E7: Determined | G7: Authorized
A8: FAC No. | C8: Period | E8: Return | G8: Return | I8: Differential
A10: 135 | C10: 2022-01-31 | E10: ='Ex2, pg 1'!I54 -> 227361000 | G10: ='Ex 3-Authorized Return'!E53 -> 226529000 | I10: =E10-G10 -> 832000 | K10: 3
A11: 134 | C11: 2021-10-31 | E11: 226080000 | G11: 224682000 | I11: =E11-G11 -> 1398000 | K11: 3
A12: 133 | C12: 2021-07-31 | E12: 219585000 | G12: 223889000 | I12: -4304000 | K12: 3
A13: 132 | C13: 2021-04-30 | E13: 232893000 | G13: 223097000 | I13: 9796000 | K13: 3
A14: 131 | C14: 2021-01-31 | E14: 227171000 | G14: 222310000 | I14: =E14-G14 -> 4861000 | K14: 3
A15: 130 | C15: 2020-10-31 | E15: 229881000 | G15: 221451000 | I15: =E15-G15 -> 8430000 | K15: 3
A16: 129 | C16: 2020-07-31 | E16: 242467000 | G16: 221368000 | I16: =E16-G16 -> 21099000 | K16: 3
A17: 128 | C17: 2020-04-30 | E17: 236917000 | G17: 221285000 | I17: 15632000 | K17: 3
A18: 127 | C18: 2020-01-31 | E18: 234075000 | G18: 221201000 | I18: 12874000 | K18: 3
A19: 126 | C19: 2019-10-31 | E19: 230875000 | G19: 218710000 | I19: =+E19-G19 -> 12165000 | K19: 3
A20: 125 | C20: 2019-07-31 | E20: 229431000 | G20: 206716000 | I20: =+E20-G20 -> 22715000 | K20: 3
A21: 124 | C21: 2019-04-30 | E21: 217179000 | G21: 194654170 | I21: 22524830.01 | K21: 3
A22: 123 | C22: 2019-01-31 | E22: 212078000 | G22: 182107611.8 | I22: =+E22-G22 -> 29970388.16 | K22: 3
A23: 122 | C23: 2018-10-31 | E23: 201730000 | G23: 172128000 | I23: 29602000 | K23: 3
A24: 121 | C24: 2018-07-31 | E24: 190971000 | G24: 171399000 | I24: 19572000 | K24: 3
A25: 120 | C25: 2018-04-30 | E25: 180892000 | G25: 170247000 | I25: 10645000 | K25: 3
A26: 119 | C26: 2018-01-31 | E26: 177867000 | G26: 169205000 | I26: 8662000 | K26: 3
A27: 118 | C27: 2017-10-31 | E27: 180108000 | G27: 168291000 | I27: 11817000 | K27: 3
A28: 117 | C28: 2017-07-31 | E28: 185397000 | G28: 167012000 | I28: 18385000 | K28: 3
A29: 116 | C29: 2017-04-30 | E29: 183962000 | G29: 165030000 | I29: 18932000 | K29: 3
I30: =SUM(I10:I29) -> 275608218.2 | K30: =SUM(K10:K29) -> 60
C34: Should be zero | E34: =SUM(E10:E29)-SUM(G10:G29)-I30 -> 0
X45: `

Sheet Exhibit 4a
A1: ='Data Input'!A7 -> Cause No. 38703-FAC135 | L1: Applicant's Attachment NHC-4a
A4: AES INDIANA
A5: Operating Income Earnings Test
A6: Calculated Refund
A7: Period Ending January 31, 2022
A12: Line No. | B12: FAC Period | D12: FAC No. | E12: Determined | F12: Authorized | G12: Differential
A14: 1 | C14: January 31, 2022 | D14: 135 | E14: ='Ex 4-Earnings Test'!E10 -> 227361000 | F14: ='Ex 4-Earnings Test'!G10 -> 226529000 | G14: =E14-F14 -> 832000
A16: 2 | B16: Accumulated Earnings Bank Differential | G16: ='Ex 4-Earnings Test'!I30 -> 275608218.2
A18: =A16+1 -> 3 | B18: Over-Earnings Basis | G18: =G14 -> 832000
A20: =A18+1 -> 4 | B20: Quarterly Convention | G20: 0.25
A22: =A20+1 -> 5 | B22: Quarterly Amount - Basis for Revenue Credits (Show as Negative Value) | G22: =G18*G20*-1 -> -208000
A24: =A22+1 -> 6 | B24: Revenue Conversion Factor | G24: =I52 -> 1.35752
A26: =A24+1 -> 7 | B26: Revenue Credit Amount | G26: =G22*G24 -> -282364.16
B29: Revenue Conversion Factor
A31: 8 | C31: Calculated Rate of Return from page 3 of this exhibit | I31: 0.0665
A32: 9 | C32: Gross Rate for Borrowed Funds (1) | I32: 0.022
A33: 10 | C33: Gross Rate for Other Funds (Line 8 - Line 9) | I33: =I31-I32 -> 0.0445
A35: 11 | C35: Debt and Equity Revenue Conversion Factors
D39: For Debt & Expense | G39: For Equity
D40: Statutory | F40: Effective | G40: Statutory | I40: Effective
D41: Rate | F41: Rate | G41: Rate | I41: Rate
B42: 11a | C42: Utility Receipts Tax | D42: 0.0146 | F42: =ROUND((1-D44)*D42,6) -> 0.014548 | G42: 0.014 | I42: =ROUND((1-G44)*G42,6) -> 0.01395
B43: 11b | C43: Public Utility Fee | D43: 0.00127608 | F43: =+D43 -> 0.00127608 | G43: =+F43 -> 0.00127608 | I43: =+F43 -> 0.00127608
B44: 11c | C44: Uncollectibles | D44: 0.003562 | F44: =+D44 -> 0.003562 | G44: =+F44 -> 0.003562 | I44: =+G44 -> 0.003562
B45: 11d | C45: State Income Tax | D45: 0.049 | F45: =(+F42/ (1-D45))*D45 -> 0.0007495814932 | G45: =+D45 -> 0.049 | I45: =+G45*(1-G43-G44) -> 0.04876293408
B46: 11e | C46: Federal Income Tax | D46: 0.21 | F46: 0 | G46: =+D46 -> 0.21 | I46: =+G46*(1-I42-I43-I44-I45) -> 0.195814287 | X46: `
B47: 11f | C47: Effective Rate | F47: =SUM(F42:F46) -> 0.02013566149 | I47: =SUM(I42:I46) -> 0.2633653011
B49: 11g | C49: Complement (1-Line 8f) | F49: =1-F47 -> 0.9798643385 | I49: =1-I47 -> 0.7366346989
B51: 11h | C51: Revenue Conversion Factor for Debt & Expense | F51: =ROUND(1/F49,5) -> 1.02055
B52: 11i | C52: Revenue Conversion Factor for Equity | I52: =ROUND(1/I49,5) -> 1.35752
A54: 12 | C54: Revenue Conversion Factor for Capital [((Line 9 x Line 11h) + (Line 10 x Line 11i))/Line 8] | I54: =ROUND(((I32*F51)+(I33*I52))/I31,5) -> 1.24604

Sheet FCA_A8A
S2: Schedule 8A
A4: AES INDIANA
A5: ="Summary of Fuel Issues for "&'Date Input'!B9&", "&'Date Input'!C9 -> Summary of Fuel Issues for November, 2021
A7: Line | D7: Net Generation | H7: Coal Issues | L7: Oil Issues | P7: Natural Gas | S7: Total
A8: No. | B8: Burnings by Station | C8: MWH | E8: % | G8: Tons | I8: Cost | K8: Gallons | M8: Cost | P8: Cost | S8: Fuel Cost
A9: (1) | B9: (2) | C9: (3) | E9: (4) | G9: (5) | I9: (6) | K9: (7) | M9: (8) | P9: (9) | S9: (10)
B10: Production by Coal:
A12: 1 | B12: Perry K | C12: 0 | E12: =ROUND((C12/C16)*100,4) -> 0 | G12: 0 | I12: 0 | K12: 0 | M12: 0 | O12: $ | P12: 0 | R12: $ | S12: 0
A13: 2 | B13: Petersburg | C13: 184482 | E13: =ROUND((C13/C31)*100,2)+0.01 -> 32.52 | G13: 95768 | I13: 4706357 | K13: 109946 | M13: 268557 | P13: 0 | S13: =+I13+M13+P13 -> 4974914
A14: 3 | B14: Harding Street | C14: 0 | E14: =ROUND((C14/C31)*100,2) -> 0 | G14: 0 | I14: 0 | K14: 0 | M14: 0 | P14: 0 | S14: =+I14+M14+P14 -> 0
I15: 0
A16: 4 | B16: Total by Steam | C16: =SUM(C12:C15) -> 184482 | E16: =SUM(E12:E15) -> 32.52 | G16: =SUM(G12:G15) -> 95768 | I16: =SUM(I12:I15) -> 4706357 | K16: =SUM(K12:K15) -> 109946 | M16: =SUM(M12:M15) -> 268557 | O16: $ | P16: 0 | R16: $ | S16: =SUM(S12:S15) -> 4974914
B18: Produced by Other:
A20: 5 | B20: Eagle Valley - CCGT | C20: 1997 | E20: =ROUND((C20/C31)*100,2) -> 0.35 | G20: 0 | I20: 0 | K20: 0 | M20: 0 | O20: $ | P20: 831086 | R20: $ | S20: =+I20+M20+P20 -> 831086
A21: 6 | B21: CCGT - Financial Hedges(1) | C21: 0 | E21: =ROUND((C21/C31)*100,2) -> 0 | G21: 0 | I21: 0 | K21: 0 | M21: 0 | P21: 0 | S21: =+I21+M21+P21 -> 0
A22: 7 | B22: Georgetown #1 & 4 | C22: 44395 | E22: =ROUND((C22/C31)*100,2) -> 7.82 | G22: 0 | I22: 0 | K22: 0 | M22: 0 | P22: 2906968 | S22: =+I22+M22+P22 -> 2906968
A23: 8 | B23: Petersburg Int. Combus. | C23: 9 | E23: =ROUND((C23/C31)*100,2) -> 0 | G23: 0 | I23: 0 | K23: 701 | M23: 1712 | P23: 0 | S23: 1712
A24: 9 | B24: Harding Street Int. Combus. | C24: 10 | E24: =ROUND((C24/C31)*100,2) -> 0 | G24: 0 | I24: 0 | K24: 755 | M24: 1242.4 | P24: 0 | S24: 1242.4
A25: 10 | B25: Harding Street Natural Gas | C25: 336585 | E25: =ROUND((C25/C31)*100,2) -> 59.31 | G25: 0 | I25: 0 | K25: 728 | M25: 1198.4 | P25: 20833487 | S25: 20834685.4
A26: 11 | B26: Rental Diesels | C26: 0 | E26: =ROUND((C26/C31)*100,2) -> 0 | G26: 0 | I26: 0 | K26: 0 | M26: 0 | P26: 0 | S26: 0
A27: 12 | B27: Eagle Valley Int. Combus. | C27: 0 | E27: =ROUND((C27/C31)*100,2) -> 0 | G27: 0 | I27: 0 | K27: 0 | M27: 0 | P27: 0 | S27: 0
A29: 13 | B29: Total by Other | C29: =SUM(C20:C28) -> 382996 | E29: =SUM(E20:E28) -> 67.48 | G29: 0 | I29: 0 | K29: =SUM(K20:K28) -> 2184 | M29: =SUM(M20:M28) -> 4152.8 | O29: $ | P29: =SUM(P20:P28) -> 24571541 | R29: $ | S29: =SUM(S20:S28) -> 24575693.8
A31: 14 | B31: Total Burnings | C31: =SUM(+C16+C29) -> 567478 | E31: =SUM(+E16+E29) -> 100 | G31: =SUM(+G16+G29) -> 95768 | I31: =SUM(+I16+I29) -> 4706357 | K31: =SUM(+K16+K29) -> 112130 | M31: =SUM(+M16+M29) -> 272709.8 | O31: $ | P31: =SUM(+P16+P29) -> 24571541 | R31: $ | S31: =SUM(+S16+S29) -> 29550607.8
A34: 15 | B34: Total Production by Steam (Line 5) | G34: =+G16 -> 95768 | I34: =+I16 -> 4706357 | K34: =+K16 -> 109946 | M34: =+M16 -> 268557 | O34: $ | P34: =+P16 -> 0 | R34: $ | S34: =+S16 -> 4974914
A36: 16 | B36: Less: Allocated to Steam System - Perry K | G36: 0 | I36: 0 | K36: 0 | M36: 0 | P36: 0 | S36: 0
A38: 17 | B38: Net Electric Production by Steam | G38: =+G34-G36 -> 95768 | I38: =+I34-I36 -> 4706357 | K38: =+K34-K36 -> 109946 | M38: =+M34-M36 -> 268557 | O38: $ | P38: 0 | R38: $ | S38: =+I38+M38+P38 -> 4974914
A40: 18 | B40: Add: Total by Other (Line 12) | G40: 0 | I40: 0 | K40: =+K29 -> 2184 | M40: =+M29 -> 4152.8 | P40: =+P29 -> 24571541 | S40: =+I40+M40+P40 -> 24575693.8
A42: 19 | B42: Total Electric Fuel Cost for Generation | G42: =SUM(G38:G41) -> 95768 | I42: =SUM(I38:I41) -> 4706357 | K42: =SUM(K38:K41) -> 112130 | M42: =SUM(M38:M41) -> 272709.8 | O42: $ | P42: =SUM(P38:P41) -> 24571541 | R42: $ | S42: =+I42+M42+P42 -> 29550607.8
B44: * This includes realized gains/losses on Financial Hedges and Transactional Fees.
X46: `
W63: `

Sheet FCA_A8B
S2: Schedule 8B
A4: AES INDIANA
A5: ="Summary of Fuel Issues for "&'Date Input'!B10&", "&'Date Input'!C10 -> Summary of Fuel Issues for December, 2021
A7: Line | D7: Net Generation | H7: Coal Issues | L7: Oil Issues | P7: Natural Gas | S7: Total
A8: No. | B8: Burnings by Station | C8: MWH | E8: % | G8: Tons | I8: Cost | K8: Gallons | M8: Cost | P8: Cost | S8: Fuel Cost
A9: (1) | B9: (2) | C9: (3) | E9: (4) | G9: (5) | I9: (6) | K9: (7) | M9: (8) | P9: (9) | S9: (10)
B10: Production by Coal:
A12: 1 | B12: Perry K | C12: 0 | E12: =ROUND((C12/C31)*100,2) -> 0 | G12: 0 | H12: $ | I12: 0 | K12: 0 | L12: $ | M12: 0 | O12: $ | P12: 0 | R12: $ | S12: 0
A13: 2 | B13: Petersburg | C13: 623008 | E13: =ROUND((C13/C31)*100,2)-0.01 -> 74.67 | G13: 295875 | I13: 14448776 | K13: 131160 | M13: 321839 | P13: 0 | S13: =+I13+M13+P13 -> 14770615
A14: 3 | B14: Harding Street | C14: 0 | E14: =ROUND((C14/C31)*100,2) -> 0 | G14: 0 | I14: 0 | K14: 0 | M14: 0 | P14: 0 | S14: =+I14+M14+P14 -> 0
A16: 4 | B16: Total by Steam | C16: =SUM(C12:C15) -> 623008 | E16: =SUM(E12:E15) -> 74.67 | G16: =SUM(G12:G15) -> 295875 | H16: $ | I16: =SUM(I12:I15) -> 14448776 | K16: =SUM(K12:K15) -> 131160 | L16: $ | M16: =SUM(M12:M15) -> 321839 | O16: $ | P16: 0 | R16: $ | S16: =SUM(S12:S15) -> 14770615
B18: Produced by Other:
A20: 5 | B20: Eagle Valley - CCGT | C20: -1686 | E20: =ROUND((C20/C31)*100,2) -> -0.2 | G20: 0 | H20: $ | I20: 0 | K20: 0 | L20: $ | M20: 0 | O20: $ | P20: 442948 | R20: $ | S20: =+I20+M20+P20 -> 442948
A21: 6 | B21: CCGT - Financial Hedges(1) | C21: 0 | E21: =ROUND((C21/C31)*100,2) -> 0 | G21: 0 | I21: 0 | K21: 0 | M21: 0 | P21: 0 | S21: 0
A22: 7 | B22: Georgetown #1 & 4 | C22: 14808 | E22: =ROUND((C22/C31)*100,2) -> 1.78 | G22: 0 | I22: 0 | K22: 0 | M22: 0 | P22: 1093564 | S22: 1093564
A23: 8 | B23: Petersburg Int. Combus. | C23: 5 | E23: =ROUND((C23/C31)*100,2) -> 0 | G23: 0 | I23: 0 | K23: 404 | M23: 991 | P23: 0 | S23: 991
A24: 9 | B24: Harding Street Int. Combus. | C24: 10 | E24: =ROUND((C24/C31)*100,2) -> 0 | G24: 0 | I24: 0 | K24: 9 | M24: 18 | P24: 0 | S24: 18
A25: 10 | B25: Harding Street Natural Gas | C25: 198090 | E25: =ROUND((C25/C31)*100,2) -> 23.75 | G25: 0 | I25: 0 | K25: 112 | M25: 227 | P25: 13944800 | S25: 13945027
A26: 11 | B26: Rental Diesels | C26: 0 | E26: =ROUND((C26/C31)*100,2) -> 0 | G26: 0 | I26: 0 | K26: 0 | M26: 0 | P26: 0 | S26: 0
A27: 12 | B27: Eagle Valley Int. Combus. | C27: 0 | E27: =ROUND((C27/C31)*100,2) -> 0 | G27: 0 | I27: 0 | K27: 0 | M27: 0 | P27: 0 | S27: 0
A29: 13 | B29: Total by Other | C29: =SUM(C20:C28) -> 211227 | E29: =SUM(E20:E28) -> 25.33 | G29: 0 | H29: $ | I29: 0 | K29: =SUM(K20:K28) -> 525 | L29: $ | M29: =SUM(M20:M28) -> 1236 | O29: $ | P29: =SUM(P20:P28) -> 15481312 | R29: $ | S29: =SUM(S20:S28) -> 15482548
A31: 13 | B31: Total Burnings | C31: =SUM(+C16+C29) -> 834235 | E31: =SUM(+E16+E29) -> 100 | G31: =SUM(+G16+G29) -> 295875 | H31: $ | I31: =SUM(+I16+I29) -> 14448776 | K31: =SUM(+K16+K29) -> 131685 | L31: $ | M31: =SUM(+M16+M29) -> 323075 | O31: $ | P31: =SUM(+P16+P29) -> 15481312 | R31: $ | S31: =SUM(+S16+S29) -> 30253163
A34: 14 | B34: Total Production by Steam (Line 5) | G34: =+G16 -> 295875 | H34: $ | I34: =+I16 -> 14448776 | K34: =+K16 -> 131160 | L34: $ | M34: =+M16 -> 321839 | O34: $ | P34: 0 | R34: $ | S34: =+S16 -> 14770615
A36: 15 | B36: Less: Allocated to Steam System - Perry K | G36: 0 | I36: 0 | K36: 0 | M36: 0 | P36: 0 | S36: 0
A38: 16 | B38: Net Electric Production by Steam | G38: =+G34-G36 -> 295875 | H38: $ | I38: =+I34-I36 -> 14448776 | K38: =+K34-K36 -> 131160 | L38: $ | M38: =+M34-M36 -> 321839 | O38: $ | P38: 0 | R38: $ | S38: =+I38+M38+P38 -> 14770615
A40: 17 | B40: Add: Total by Other (Line 12) | G40: 0 | I40: 0 | K40: =+K29 -> 525 | M40: =+M29 -> 1236 | P40: =+P29 -> 15481312 | S40: =+I40+M40+P40 -> 15482548
A42: 18 | B42: Total Electric Fuel Cost for Generation | G42: =SUM(G38:G41) -> 295875 | H42: $ | I42: =SUM(I38:I41) -> 14448776 | K42: =SUM(K38:K41) -> 131685 | L42: $ | M42: =SUM(M38:M41) -> 323075 | O42: $ | P42: =SUM(P38:P41) -> 15481312 | R42: $ | S42: =+I42+M42+P42 -> 30253163
B44: * This includes realized gains/losses on Financial Hedges and Transactional Fees.
X46: `
W63: `

Sheet FCA_A8C
S2: Schedule 8C
A4: AES INDIANA
A5: ="Summary of Fuel Issues for "&'Date Input'!B11&", "&'Date Input'!C11 -> Summary of Fuel Issues for January, 2022
A7: Line | D7: Net Generation | H7: Coal Issues | L7: Oil Issues | P7: Natural Gas | S7: Total
A8: No. | B8: Burnings by Station | C8: MWH | E8: % | G8: Tons | I8: Cost | K8: Gallons | M8: Cost | P8: Cost | S8: Fuel Cost
A9: (1) | B9: (2) | C9: (3) | E9: (4) | G9: (5) | I9: (6) | K9: (7) | M9: (8) | P9: (9) | S9: (10)
B10: Production by Coal:
A12: 1 | B12: Perry K | C12: 0 | E12: =ROUND((C12/C31)*100,2) -> 0 | G12: 0 | H12: $ | I12: 0 | K12: 0 | L12: $ | M12: 0 | O12: $ | P12: 0 | R12: $ | S12: 0
A13: 2 | B13: Petersburg | C13: 913115 | E13: =ROUND((C13/C31)*100,2) -> 76.94 | G13: 432206 | I13: 22836155 | K13: 66826.00008 | M13: 165737 | P13: 0 | S13: =+I13+M13+P13 -> 23001892
A14: 3 | B14: Harding Street | C14: 0 | E14: =ROUND((C14/C31)*100,2) -> 0 | G14: 0 | I14: 0 | K14: 0 | M14: 0 | P14: 0 | S14: =+I14+M14+P14 -> 0
A16: 4 | B16: Total by Steam | C16: =SUM(C12:C15) -> 913115 | E16: =SUM(E12:E15) -> 76.94 | G16: =SUM(G12:G15) -> 432206 | H16: $ | I16: =SUM(I12:I15) -> 22836155 | K16: =SUM(K12:K15) -> 66826.00008 | L16: $ | M16: =SUM(M12:M15) -> 165737 | O16: $ | P16: 0 | R16: $ | S16: =SUM(S12:S15) -> 23001892
B18: Produced by Other:
A20: 5 | B20: Eagle Valley - CCGT | C20: -1751 | E20: =ROUND((C20/C31)*100,2) -> -0.15 | G20: 0 | H20: $ | I20: 0 | K20: 0 | L20: $ | M20: 0 | O20: $ | P20: 459759 | R20: $ | S20: =+I20+M20+P20 -> 459759
A21: 6 | B21: CCGT - Financial Hedges(1) | C21: 0 | E21: =ROUND((C21/C31)*100,2) -> 0 | G21: 0 | I21: 0 | K21: 0 | M21: 0 | P21: 0 | S21: =+I21+M21+P21 -> 0
A22: 7 | B22: Georgetown #1 & 4 | C22: 33125 | E22: =ROUND((C22/C31)*100,2) -> 2.79 | G22: 0 | I22: 0 | K22: 0 | M22: 0 | P22: 2579942 | S22: =+I22+M22+P22 -> 2579942
A23: 8 | B23: Petersburg Int. Combus. | C23: 4 | E23: =ROUND((C23/C31)*100,2) -> 0 | G23: 0 | I23: 0 | K23: 321 | M23: 796.12 | P23: 0 | S23: 796.12
A24: 9 | B24: Harding Street Int. Combus. | C24: 10 | E24: =ROUND((C24/C31)*100,2) -> 0 | G24: 0 | I24: 0 | K24: 693 | M24: 1407 | P24: 0 | S24: 1407
A25: 10 | B25: Harding Street Natural Gas | C25: 242304 | E25: =ROUND((C25/C31)*100,2) -> 20.42 | G25: 0 | I25: 0 | K25: 11507 | M25: 23371 | P25: 17164397 | S25: 17187768
A26: 11 | B26: Rental Diesels | C26: 0 | E26: =ROUND((C26/C31)*100,2) -> 0 | G26: 0 | I26: 0 | K26: 0 | M26: 0 | P26: 0 | S26: 0
A27: 12 | B27: Eagle Valley Int. Combus. | C27: 0 | E27: =ROUND((C27/C31)*100,2) -> 0 | G27: 0 | I27: 0 | K27: 0 | M27: 0 | P27: 0 | S27: 0
A29: 13 | B29: Total by Other | C29: =SUM(C20:C28) -> 273692 | E29: =SUM(E20:E28) -> 23.06 | G29: 0 | H29: $ | I29: 0 | K29: =SUM(K20:K28) -> 12521 | L29: $ | M29: =SUM(M20:M28) -> 25574.12 | O29: $ | P29: =SUM(P20:P28) -> 20204098 | R29: $ | S29: =SUM(S20:S28) -> 20229672.12
A31: 14 | B31: Total Burnings | C31: =SUM(+C16+C29) -> 1186807 | E31: =SUM(+E16+E29) -> 100 | G31: =SUM(+G16+G29) -> 432206 | H31: $ | I31: =SUM(+I16+I29) -> 22836155 | K31: =SUM(+K16+K29) -> 79347.00008 | L31: $ | M31: =SUM(+M16+M29) -> 191311.12 | O31: $ | P31: =SUM(+P16+P29) -> 20204098 | R31: $ | S31: =SUM(+S16+S29) -> 43231564.12
A34: 15 | B34: Total Production by Steam (Line 5) | G34: =+G16 -> 432206 | H34: $ | I34: =+I16 -> 22836155 | K34: =+K16 -> 66826.00008 | L34: $ | M34: =+M16 -> 165737 | O34: $ | P34: 0 | R34: $ | S34: =+S16 -> 23001892
A36: 16 | B36: Less: Allocated to Steam System - Perry K | G36: 0 | I36: 0 | K36: 0 | M36: 0 | P36: 0 | S36: 0
A38: 17 | B38: Net Electric Production by Steam | G38: =+G34-G36 -> 432206 | H38: $ | I38: =+I34-I36 -> 22836155 | K38: =+K34-K36 -> 66826.00008 | L38: $ | M38: =+M34-M36 -> 165737 | O38: $ | P38: 0 | R38: $ | S38: =+I38+M38+P38 -> 23001892
A40: 18 | B40: Add: Total by Other (Line 12) | G40: 0 | I40: 0 | K40: =+K29 -> 12521 | M40: =+M29 -> 25574.12 | P40: =+P29 -> 20204098 | S40: =+I40+M40+P40 -> 20229672.12
A42: 19 | B42: Total Electric Fuel Cost for Generation | G42: =SUM(G38:G41) -> 432206 | H42: $ | I42: =SUM(I38:I41) -> 22836155 | K42: =SUM(K38:K41) -> 79347.00008 | L42: $ | M42: =SUM(M38:M41) -> 191311.12 | O42: $ | P42: =SUM(P38:P41) -> 20204098 | R42: $ | S42: =+I42+M42+P42 -> 43231564.12
B44: * This includes realized gains/losses on Financial Hedges and Transactional Fees.
X46: `
W63: `

Sheet FCA_A10A
A1: EXCLUDED FROM PUBLIC ACCESS PER A.R. 9(G) | P1: Exhibit A
A2: PRINT ON GREEN PAPER | P2: Schedule 10A
A4: AES INDIANA
A5: Determination of Net Energy Costs of Other Purchased
A6: Power for Actual Month of November, 2021
A9: Line | F9: Purchased | H9: Demand | J9: Net Energy | L9: Other | N9: Emissions | P9: Total
A10: No. | C10: Supplier | D10: Type | F10: KWH (000's) | H10: Charges | J10: Costs | L10: Costs | N10: Costs | P10: Charges
A11: (1) | C11: (2) | D11: (3) | F11: (4) | H11: (5) | J11: (6) | L11: (7) | N11: (8) | P11: (9)
A14: 1 | C14: M-Rets Renewables Registry | F14: 0 | H14: 0 | J14: 0 | L14: 0 | N14: 0 | P14: =SUM(H14:N14) -> 0
A15: 1 | C15: M-Rets Renewables Registry | F15: 0 | H15: 0 | J15: 0 | L15: 0 | N15: 0 | P15: =SUM(H15:N15) -> 0
A16: =A15+1 -> 2 | C16: ICAP Energy LLLC | F16: 0 | H16: 0 | J16: 0 | L16: 0 | N16: 0 | P16: =SUM(H16:N16) -> 0
A17: =A16+1 -> 3 | C17: ACES | F17: 0 | H17: 0 | J17: 0 | L17: 0 | N17: 0 | P17: 0
A18: 4 | C18: TFS Energy | F18: 0 | H18: 0 | J18: 0 | L18: 0 | N18: 0 | P18: 0
A19: 5 | C19: BP | F19: 0 | H19: 0 | J19: 0 | L19: 0 | N19: 0 | P19: 0
A20: 6 | C20: NextEra | D20: Capacity | F20: 0 | H20: 0 | J20: 0 | L20: 0 | N20: 0 | P20: 0
A21: 1 | C21: MISO Resource Adequacy | D21: Capacity | F21: 0 | H21: -24416 | J21: 0 | L21: 0 | N21: 0 | P21: -24416
A22: 2 | C22: Hoosier Wind | F22: 28322 | H22: 0 | J22: 2653574 | L22: 0 | N22: 0 | P22: 2653574
A23: 3 | C23: Lakefield Wind | F23: 31468 | H23: 0 | J23: 5276412 | L23: 0 | N23: 0 | P23: 5276412
A24: 4 | C24: Melloh Enterprises | F24: 2 | H24: 0 | J24: 598 | L24: 0 | N24: 0 | P24: 598
A25: 5 | C25: GSA Finance Division | F25: 0 | H25: 0 | J25: 0 | L25: 0 | N25: 0 | P25: 0
A26: 6 | C26: Energy Solutions by JMS | F26: 4 | H26: 0 | J26: 912 | L26: 0 | N26: 0 | P26: 912
A27: 7 | C27: L&R | F27: 2 | H27: 0 | J27: 549 | L27: 0 | N27: 0 | P27: 549
A28: 8 | C28: L&R Housing | F28: 2 | H28: 0 | J28: 447 | L28: 0 | N28: 0 | P28: 447
A29: 9 | C29: Indiana Veneers | F29: 0 | H29: 0 | J29: 0 | L29: 0 | N29: 0 | P29: 0
A30: 10 | C30: JMS LLC | F30: 7 | H30: 0 | J30: 1656 | L30: 0 | N30: 0 | P30: 1656
A31: 11 | C31: Celedon Trucking | F31: 0 | H31: 0 | J31: 0 | L31: 0 | N31: 0 | P31: 0
A32: 12 | C32: IUPUI | F32: 4 | H32: 0 | J32: 886 | L32: 0 | N32: 0 | P32: 886
A33: 13 | C33: Bulldog Energy LLC | F33: 31 | H33: 0 | J33: 6200 | L33: 0 | N33: 0 | P33: 6200
A34: 14 | C34: Bulldog Energy LLC | F34: 8 | H34: 0 | J34: 1997 | L34: 0 | N34: 0 | P34: 1997
A35: 15 | C35: Bulldog Energy LLC | F35: 6 | H35: 0 | J35: 1488 | L35: 0 | N35: 0 | P35: 1488
A36: 16 | C36: Bulldog Energy LLC | F36: 193 | H36: 0 | J36: 38600 | L36: 0 | N36: 0 | P36: 38600
A37: 17 | C37: MCV Solar | F37: 1 | H37: 0 | J37: 210 | L37: 0 | N37: 0 | P37: 210
A38: 18 | C38: MCV Solar - Building 1 | F38: 1 | H38: 0 | J38: 284 | L38: 0 | N38: 0 | P38: 284
A39: 19 | C39: ET Energy Solutions | F39: 798 | H39: 0 | J39: 159600 | L39: 0 | N39: 0 | P39: 159600
A40: 20 | C40: WGL Energy Systems | F40: 646 | H40: 0 | J40: 129200 | L40: 0 | N40: 0 | P40: 129200
A41: 21 | C41: Merrell Brothers | F41: 8 | H41: 0 | J41: 1800 | L41: 0 | N41: 0 | P41: 1800
A42: 22 | C42: Merrell Brothers | F42: 60 | H42: 0 | J42: 12000 | L42: 0 | N42: 0 | P42: 12000
A43: 23 | C43: Indy Solar I | F43: 1017 | H43: 0 | J43: 111768 | L43: 0 | N43: 0 | P43: 111768
A44: 24 | C44: Indy Solar II | F44: 1036 | H44: 0 | J44: 93136 | L44: 0 | N44: 0 | P44: 93136
A45: 25 | C45: Indy Solar III | F45: 879 | H45: 0 | J45: 87812 | L45: 0 | N45: 0 | P45: 87812
A46: 26 | C46: A-Pallett-Bulldog Energy LLC | F46: 3 | H46: 0 | J46: 672 | L46: 0 | N46: 0 | P46: 672 | X46: `
A47: 27 | C47: A-Pallett-Bulldog Energy LLC | F47: 5 | H47: 0 | J47: 1224 | L47: 0 | N47: 0 | P47: 1224
A48: 28 | C48: HQC Maywood LLC | F48: 519 | H48: 0 | J48: 103800 | L48: 0 | N48: 0 | P48: 103800
A49: 29 | C49: Solscient Energy LLC | F49: 14 | H49: 0 | J49: 2800 | L49: 0 | N49: 0 | P49: 2800
A50: 30 | C50: Solscient Energy LLC | F50: 0 | H50: 0 | J50: 0 | L50: 0 | N50: 0 | P50: 0
A51: 31 | C51: Solscient Energy LLC | F51: 20 | H51: 0 | J51: 4060 | L51: 0 | N51: 0 | P51: 4060
A52: 32 | C52: Rockville Solar I LLC | F52: 196 | H52: 0 | J52: 39200 | L52: 0 | N52: 0 | P52: 39200
A53: 33 | C53: Blue Renewable Energy | F53: 712 | H53: 0 | J53: 142400 | L53: 0 | N53: 0 | P53: 142400
A54: 34 | C54: Rockville Solar II LLC | F54: 150 | H54: 0 | J54: 30000 | L54: 0 | N54: 0 | P54: 30000
A55: 35 | C55: HMV Indy I | F55: 121 | H55: 0 | J55: 24200 | L55: 0 | N55: 0 | P55: 24200
A56: 36 | C56: HMV Indy I | F56: 138 | H56: 0 | J56: 27600 | L56: 0 | N56: 0 | P56: 27600
A57: 37 | C57: HMV Indy I | F57: 113 | H57: 0 | J57: 22600 | L57: 0 | N57: 0 | P57: 22600
A58: 38 | C58: 5839 LLC | F58: 4 | H58: 0 | J58: 1046 | L58: 0 | N58: 0 | P58: 1046
A59: 39 | C59: GES Megaone LLC | F59: 72 | H59: 0 | J59: 14400 | L59: 0 | N59: 0 | P59: 14400
A60: 40 | C60: Marion Solar LLC | F60: 282 | H60: 0 | J60: 56400 | L60: 0 | N60: 0 | P60: 56400
A61: 41 | C61: Marion Solar LLC | F61: 129 | H61: 0 | J61: 25800 | L61: 0 | N61: 0 | P61: 25800
A62: 42 | C62: NRG Energy LLC | F62: 295 | H62: 0 | J62: 59000 | L62: 0 | N62: 0 | P62: 59000
A63: 43 | C63: SSA Solar of IN 5 LLC | F63: 107 | H63: 0 | J63: 21440 | L63: 0 | N63: 0 | P63: =SUM(H63:N63) -> 21440 | W63: `
A64: 44 | C64: Citizens- Perry K | F64: 0 | H64: 0 | J64: 0 | L64: 0 | N64: 0 | P64: 0
A65: 45 | C65: Rider 15 | D65: On Call Generation | F65: 0 | H65: 0 | J65: 0 | L65: 0 | N65: 0 | P65: 0
A66: 46 | C66: Purchases through MISO | F66: 427674 | H66: 0 | J66: 27481782 | L66: 0 | N66: 0 | P66: 27481782
A67: 47 | C67: MISO Components of the Cost of Fuel | F67: 0 | H67: 0 | J67: 7081450 | L67: 0 | N67: 0 | P67: 7081450
A68: 48 | C68: Rate CGS Customers | F68: 19.32 | H68: 235.56 | J68: 472.4 | L68: 0 | N68: 0 | P68: 707.96
A69: 49 | C69: JP Morgan - Hedge | F69: 0 | H69: 0 | J69: 0 | L69: 0 | N69: 0 | P69: 0
A70: =A68+1 -> 49 | C70: Total for Month | F70: =SUM(F14:F69) -> 495068.32 | G70: $ | H70: =SUM(H14:H69) -> -24180.44 | I70: $ | J70: =SUM(J14:J69) -> 43719475.4 | K70: $ | L70: =SUM(L14:L69) -> 0 | M70: $ | N70: =SUM(N14:N69) -> 0 | O70: $ | P70: =SUM(P14:P69) -> 43695294.96

Sheet FCA_A10B
A1: EXCLUDED FROM PUBLIC ACCESS PER A.R. 9(G) | P1: Exhibit A
A2: PRINT ON GREEN PAPER | P2: Schedule 10B
A4: AES INDIANA
A5: Determination of Net Energy Costs of Other Purchased
A6: Power for Actual Month of December, 2021
A9: Line | F9: Purchased | H9: Demand | J9: Net Energy | L9: Other | N9: Emissions | P9: Total
A10: No. | C10: Supplier | D10: Type | F10: KWH (000's) | H10: Charges | J10: Costs | L10: Costs | N10: Costs | P10: Charges
A11: (1) | C11: (2) | D11: (3) | F11: (4) | H11: (5) | J11: (6) | L11: (7) | N11: (8) | P11: (9)
A14: 1 | C14: M-Rets Renewables Registry | F14: 0 | H14: 0 | J14: 0 | L14: 0 | N14: 0 | P14: =SUM(H14:N14) -> 0
A15: =+A14+1 -> 2 | C15: ICAP Energy LLC | F15: 0 | H15: 0 | J15: 0 | L15: 0 | N15: 0 | P15: =SUM(H15:N15) -> 0
A16: =+A15+1 -> 3 | C16: ACES | F16: 0 | H16: 0 | J16: 0 | L16: 0 | N16: 0 | P16: 0
A17: 4 | C17: TFS Energy | F17: 0 | H17: 0 | J17: 0 | L17: 0 | N17: 0 | P17: 0
A18: 5 | C18: BP | D18: Capacity | F18: 0 | H18: 0 | J18: 0 | L18: 0 | N18: 0 | P18: 0
A19: 6 | C19: NextEra | D19: Capacity | F19: 0 | H19: 0 | J19: 0 | L19: 0 | N19: 0 | P19: 0
A20: 1 | C20: MISO Resource Adequacy | D20: Capacity | F20: 0 | H20: -25230 | J20: 0 | L20: 0 | N20: 0 | P20: -25230
A21: 2 | C21: Hoosier Wind | F21: 29541 | H21: 0 | J21: 2542298 | L21: 0 | N21: 0 | P21: 2542298
A22: 3 | C22: Lakefield Wind | F22: 45322 | H22: 0 | J22: 4941058 | L22: 0 | N22: 0 | P22: 4941058
A23: 4 | C23: Melloh Enterprises | F23: 2 | H23: 0 | J23: 561 | L23: 0 | N23: 0 | P23: 561
A24: 5 | C24: GSA Finance Center | F24: 0 | H24: 0 | J24: 0 | L24: 0 | N24: 0 | P24: 0
A25: 6 | C25: Energy Solutions by JMS | F25: 3 | H25: 0 | J25: 607 | L25: 0 | N25: 0 | P25: 607
A26: 7 | C26: L&R | F26: 2 | H26: 0 | J26: 475 | L26: 0 | N26: 0 | P26: 475
A27: 8 | C27: L&R Housing | F27: 2 | H27: 0 | J27: 386 | L27: 0 | N27: 0 | P27: 386
A28: 9 | C28: Indiana Veneers | F28: 0 | H28: 0 | J28: 0 | L28: 0 | N28: 0 | P28: 0
A29: 10 | C29: JMS LLC | F29: 7 | H29: 0 | J29: 1728 | L29: 0 | N29: 0 | P29: 1728
A30: 11 | C30: Celedon Trucking | F30: 0 | H30: 0 | J30: 0 | L30: 0 | N30: 0 | P30: 0
A31: 12 | C31: IUPUI | F31: 3 | H31: 0 | J31: 624 | L31: 0 | N31: 0 | P31: 624
A32: 13 | C32: Bulldog Energy LLC | F32: 28 | H32: 0 | J32: 5600 | L32: 0 | N32: 0 | P32: 5600
A33: 14 | C33: Bulldog Energy LLC | F33: 6 | H33: 0 | J33: 1517 | L33: 0 | N33: 0 | P33: 1517
A34: 15 | C34: Bulldog Energy LLC | F34: 6 | H34: 0 | J34: 1320 | L34: 0 | N34: 0 | P34: 1320
A35: 16 | C35: Bulldog Energy LLC | F35: 190 | H35: 0 | J35: 38000 | L35: 0 | N35: 0 | P35: 38000
A36: 17 | C36: MCV Solar | F36: 1 | H36: 0 | J36: 223 | L36: 0 | N36: 0 | P36: 223
A37: 18 | C37: MCV Solar - Building 1 | F37: 1 | H37: 0 | J37: 282 | L37: 0 | N37: 0 | P37: 282
A38: 19 | C38: ET Energy Solutions | F38: 798 | H38: 0 | J38: 159600 | L38: 0 | N38: 0 | P38: 159600
A39: 20 | C39: WGL Energy Systems | F39: 577 | H39: 0 | J39: 115400 | L39: 0 | N39: 0 | P39: 115400
A40: 21 | C40: Merrell Brothers | F40: 7 | H40: 0 | J40: 1728 | L40: 0 | N40: 0 | P40: 1728
A41: 22 | C41: Merrell Brothers | F41: 60 | H41: 0 | J41: 12000 | L41: 0 | N41: 0 | P41: 12000
A42: 23 | C42: Indy Solar I | F42: 843 | H42: 0 | J42: 92646 | L42: 0 | N42: 0 | P42: 92646
A43: 24 | C43: Indy Solar II | F43: 866 | H43: 0 | J43: 77853 | L43: 0 | N43: 0 | P43: 77853
A44: 25 | C44: Indy Solar III | F44: 341 | H44: 0 | J44: 34066 | L44: 0 | N44: 0 | P44: 34066
A45: 26 | C45: A-Pallett- Bulldog Energy LLC | F45: 3 | H45: 0 | J45: 720 | L45: 0 | N45: 0 | P45: 720
A46: 27 | C46: A-Pallett- Bulldog Energy LLC | F46: 5 | H46: 0 | J46: 1080 | L46: 0 | N46: 0 | P46: 1080 | X46: `
A47: 28 | C47: HQC Maywood LLC | F47: 256 | H47: 0 | J47: 51200 | L47: 0 | N47: 0 | P47: 51200
A48: 29 | C48: Solscient Energy LLC | F48: 12 | H48: 0 | J48: 2320 | L48: 0 | N48: 0 | P48: 2320
A49: 30 | C49: Solscient Energy LLC | F49: 16 | H49: 0 | J49: 3280 | L49: 0 | N49: 0 | P49: 3280
A50: 31 | C50: Solscient Energy LLC | F50: 16 | H50: 0 | J50: 3220 | L50: 0 | N50: 0 | P50: 3220
A51: 32 | C51: Rockville Solar I LLC | F51: 191 | H51: 0 | J51: 38200 | L51: 0 | N51: 0 | P51: 38200
A52: 33 | C52: Blue Renewable Energy | F52: 699 | H52: 0 | J52: 139800 | L52: 0 | N52: 0 | P52: 139800
A53: 34 | C53: Rockville Solar II LLC | F53: 142 | H53: 0 | J53: 28400 | L53: 0 | N53: 0 | P53: 28400
A54: 35 | C54: HMV Indy I | F54: 208 | H54: 0 | J54: 41600 | L54: 0 | N54: 0 | P54: 41600
A55: 36 | C55: HMV Indy I | F55: 144 | H55: 0 | J55: 28800 | L55: 0 | N55: 0 | P55: 28800
A56: 37 | C56: HMV Indy I | F56: 190 | H56: 0 | J56: 38000 | L56: 0 | N56: 0 | P56: 38000
A57: 38 | C57: 5839 LLC | F57: 3 | H57: 0 | J57: 787 | L57: 0 | N57: 0 | P57: 787
A58: 39 | C58: GES Megaone LLC | F58: 56 | H58: 0 | J58: 11200 | L58: 0 | N58: 0 | P58: 11200
A59: 40 | C59: Marion Solar LLC | F59: 287 | H59: 0 | J59: 57400 | L59: 0 | N59: 0 | P59: 57400
A60: 41 | C60: Marion Solar LLC | F60: 119 | H60: 0 | J60: 23800 | L60: 0 | N60: 0 | P60: 23800
A61: 42 | C61: NRG Energy LLC | F61: 320 | H61: 0 | J61: 64400 | L61: 0 | N61: 0 | P61: 64400
A62: 43 | C62: SSA Solar of IN 5 LLC | F62: 94 | H62: 0 | J62: 18880 | L62: 0 | N62: 0 | P62: =SUM(H62:N62) -> 18880
A63: 44 | C63: Citizens- Perry K | F63: 264 | H63: 0 | J63: 14559 | L63: 0 | N63: 0 | P63: 14559 | W63: `
A64: 45 | C64: Rider 15 | D64: On Call Generation | F64: 0 | H64: 0 | J64: 0 | L64: 0 | N64: 0 | P64: 0
A65: 46 | C65: Purchases through MISO | F65: 226904 | H65: 0 | J65: 9524139 | L65: 0 | N65: 0 | P65: 9524139
A66: 47 | C66: MISO Components of the Cost of Fuel | F66: 0 | H66: 0 | J66: 2546715 | L66: 0 | N66: 0 | P66: 2546715
A67: 48 | C67: Rate CGS Customers | F67: 14 | H67: 170 | J67: 337 | L67: 0 | N67: 0 | P67: =SUM(H67:N67) -> 507
A68: 49 | C68: JP Morgan - Hedge | F68: 0 | H68: 0 | J68: 482546 | L68: 0 | N68: 0 | P68: =SUM(H68:N68) -> 482546
A69: 50 | C69: Total for Month | F69: =SUM(F14:F68) -> 308549 | G69: $ | H69: =SUM(H14:H68) -> -25060 | I69: $ | J69: =SUM(J14:J68) -> 21149355 | K69: $ | L69: =SUM(L14:L68) -> 0 | M69: $ | N69: =SUM(N14:N68) -> 0 | O69: $ | P69: =SUM(P14:P68) -> 21124295

Sheet FCA_A10C
A1: EXCLUDED FROM PUBLIC ACCESS PER A.R. 9(G) | P1: Exhibit A
A2: PRINT ON GREEN PAPER | P2: Schedule 10C
A4: AES INDIANA
A5: Determination of Net Energy Costs of Other Purchased
A6: Power for Actual Month of January, 2022
A9: Line | F9: Purchased | H9: Demand | J9: Net Energy | L9: Other | N9: Emissions | P9: Total
A10: No. | C10: Supplier | D10: Type | F10: KWH (000's) | H10: Charges | J10: Costs | L10: Costs | N10: Costs | P10: Charges
A11: (1) | C11: (2) | D11: (3) | F11: (4) | H11: (5) | J11: (6) | L11: (7) | N11: (8) | P11: (9)
A12: 1 | C12: M-Rets Renewables Registry | F12: 0 | H12: 0 | J12: 0 | L12: 0 | N12: 0 | P12: =SUM(H12:N12) -> 0
A13: =+A12+1 -> 2 | C13: ICAP Energy LLC | F13: 0 | H13: 0 | J13: 0 | L13: 0 | N13: 0 | P13: 0
A14: =+A13+1 -> 3 | C14: ACES | F14: 0 | H14: 0 | J14: 0 | L14: 0 | N14: 0 | P14: 0
A15: 4 | C15: TFS Energy | F15: 0 | H15: 0 | J15: 0 | L15: 0 | N15: 0 | P15: 0
A16: 5 | C16: BP | D16: Capacity | F16: 0 | H16: 0 | J16: 0 | L16: 0 | N16: 0 | P16: 0
A17: 6 | C17: NextEra | D17: Capacity | F17: 0 | H17: 0 | J17: 0 | L17: 0 | N17: 0 | P17: 0
A18: 1 | C18: MISO Resource Adequacy | D18: Capacity | F18: 0 | H18: -25229.97 | J18: 0 | L18: 0 | N18: 0 | P18: -25229.97
A19: 2 | C19: Hoosier Wind | F19: 26600 | H19: 0 | J19: 2289196 | L19: 0 | N19: 0 | P19: 2289196
A20: 3 | C20: Lakefield Wind | F20: 64117 | H20: 0 | J20: 5872912 | L20: 0 | N20: 0 | P20: 5872912
A21: 4 | C21: Melloh Enterprises | F21: 2 | H21: 0 | J21: 521 | L21: 0 | N21: 0 | P21: 521
A22: 5 | C22: Energy Solutions by JMS | F22: 1 | H22: 0 | J22: 349 | L22: 0 | N22: 0 | P22: 349
A23: 6 | C23: AMF Astro LLC | F23: 812 | H23: 0 | J23: 152400 | L23: 0 | N23: 0 | P23: 152400
A24: 7 | C24: Indiana Veneers | F24: 0 | H24: 0 | J24: 0 | L24: 0 | N24: 0 | P24: 0
A25: 8 | C25: JMS LLC | F25: 7 | H25: 0 | J25: 1776 | L25: 0 | N25: 0 | P25: 1776
A26: 9 | C26: IUPUI | F26: 3 | H26: 0 | J26: 697 | L26: 0 | N26: 0 | P26: 697
A27: 10 | C27: Bulldog Energy LLC | F27: 27 | H27: 0 | J27: 5400 | L27: 0 | N27: 0 | P27: 5400
A28: 11 | C28: Bulldog Energy LLC | F28: 5 | H28: 0 | J28: 1296 | L28: 0 | N28: 0 | P28: 1296
A29: 12 | C29: Bulldog Energy LLC | F29: 5 | H29: 0 | J29: 1224 | L29: 0 | N29: 0 | P29: 1224
A30: 13 | C30: Bulldog Energy LLC | F30: 175 | H30: 0 | J30: 35000 | L30: 0 | N30: 0 | P30: 35000
A31: 14 | C31: MCV Solar | F31: 1 | H31: 0 | J31: 228 | L31: 0 | N31: 0 | P31: 228
A32: 15 | C32: MCV Solar - Building 1 | F32: 1 | H32: 0 | J32: 287 | L32: 0 | N32: 0 | P32: 287
A33: 16 | C33: WGL Energy Systems | F33: 553 | H33: 0 | J33: 110600 | L33: 0 | N33: 0 | P33: 110600
A34: 17 | C34: Merrell Brothers | F34: 7 | H34: 0 | J34: 1656 | L34: 0 | N34: 0 | P34: 1656
A35: 18 | C35: Merrell Brothers | F35: 58 | H35: 0 | J35: 11600 | L35: 0 | N35: 0 | P35: 11600
A36: 19 | C36: Novatus Fund Holdings LLC | F36: 670 | H36: 0 | J36: 73633 | L36: 0 | N36: 0 | P36: 73633
A37: 20 | C37: Novatus Fund Holdings LLC | F37: 589 | H37: 0 | J37: 52951 | L37: 0 | N37: 0 | P37: 52951
A38: 21 | C38: Novatus Fund Holdings LLC | F38: 659 | H38: 0 | J38: 65834 | L38: 0 | N38: 0 | P38: 65834
A39: 22 | C39: A-Pallett- Bulldog Energy LLC | F39: 3 | H39: 0 | J39: 696 | L39: 0 | N39: 0 | P39: 696
A40: 23 | C40: A-Pallett- Bulldog Energy LLC | F40: 5 | H40: 0 | J40: 1152 | L40: 0 | N40: 0 | P40: 1152
A41: 24 | C41: HQC Maywood LLC | F41: 391 | H41: 0 | J41: 78200 | L41: 0 | N41: 0 | P41: 78200
A42: 25 | C42: Solscient Energy LLC | F42: 11 | H42: 0 | J42: 2120 | L42: 0 | N42: 0 | P42: 2120 | X42: `
A43: 26 | C43: Marine Center of Ind | F43: 16 | H43: 0 | J43: 3168 | L43: 0 | N43: 0 | P43: 3168
A44: 27 | C44: Marine Center of Ind | F44: 13 | H44: 0 | J44: 2600 | L44: 0 | N44: 0 | P44: 2600
A45: 28 | C45: Rockville Solar I LLC | F45: 197 | H45: 0 | J45: 39400 | L45: 0 | N45: 0 | P45: 39400
A46: 29 | C46: Blue Renewable Energy | F46: 671 | H46: 0 | J46: 134200 | L46: 0 | N46: 0 | P46: 134200
A47: 30 | C47: Rockville Solar II LLC | F47: 143 | H47: 0 | J47: 28600 | L47: 0 | N47: 0 | P47: 28600
A48: 31 | C48: HMV Indy I | F48: 175 | H48: 0 | J48: 35000 | L48: 0 | N48: 0 | P48: 35000
A49: 32 | C49: HMV Indy I | F49: 125 | H49: 0 | J49: 25000 | L49: 0 | N49: 0 | P49: 25000
A50: 33 | C50: HMV Indy I | F50: 149 | H50: 0 | J50: 29800 | L50: 0 | N50: 0 | P50: 29800
A51: 34 | C51: 5839 LLC | F51: 3 | H51: 0 | J51: 672 | L51: 0 | N51: 0 | P51: 672
A52: 35 | C52: GES Megaone | F52: 64 | H52: 0 | J52: 12800 | L52: 0 | N52: 0 | P52: 12800
A53: 36 | C53: Marion Solar LLC | F53: 272 | H53: 0 | J53: 54400 | L53: 0 | N53: 0 | P53: 54400
A54: 37 | C54: Marion Solar LLC | F54: 102 | H54: 0 | J54: 20400 | L54: 0 | N54: 0 | P54: 20400
A55: 38 | C55: DGPV Fund II LLC Lenape II Solar LLC | F55: 155 | H55: 0 | J55: 31000 | L55: 0 | N55: 0 | P55: 31000
A56: 39 | C56: SSA Solar of IN 5 LLC | F56: 93 | H56: 0 | J56: 18640 | L56: 0 | N56: 0 | P56: =SUM(H56:N56) -> 18640
A57: 40 | C57: Citizens Energy- Perry K | F57: 1129 | H57: 0 | J57: 53515 | L57: 0 | N57: 0 | P57: 53515
A58: 41 | C58: Purchases through MISO | F58: 141264 | H58: 0 | J58: 7659290 | L58: 0 | N58: 0 | P58: =SUM(H58:N58) -> 7659290
A59: 42 | C59: MISO Components of the Cost of Fuel | F59: 0 | H59: 0 | J59: 1516613 | L59: 0 | N59: 0 | P59: 1516613
A60: 43 | C60: Rate CGS Customers | F60: 280 | H60: 2092 | J60: 6673 | L60: 0 | N60: 0 | P60: 8765
A61: 44 | C61: JP Morgan - Hedge | F61: 0 | H61: 0 | J61: 0 | L61: 0 | N61: 0 | P61: =SUM(H61:N61) -> 0
A62: 45 | C62: Total for Month | F62: =SUM(F12:F61) -> 239553 | G62: $ | H62: =SUM(H12:H61) -> -23137.97 | I62: $ | J62: =SUM(J12:J61) -> 18431499 | K62: $ | L62: =SUM(L12:L61) -> 0 | M62: $ | N62: =SUM(N12:N61) -> 0 | O62: $ | P62: =SUM(P12:P61) -> 18408361.03

Sheet FCA_A11A
AD1: Exhibit A
AD2: Schedule 11A
A5: AES INDIANA
A6: Determination of Fuel Costs Recovered Through Inter-System Sales
A7: and Fuel Costs Allocated to Non-Jurisdictional Retail Sales
A8: Sales for Actual Month of November, 2021
H11: IPL | L11: IPL | P11: IPL
D12: KWH | H12: Generated | J12: IPL | L12: Handling | N12: IPL | P12: Total | T12: Purchased Power Resold | Z12: Total | AB12: Total
A13: Line | D13: Sold | F13: Demand | H13: KWH | J13: Fuel | L13: Other | N13: Emissions | P13: Energy | R13: KWH | T13: Fuel | V13: Emissions | X13: Market | Z13: Energy | AB13: Other | AD13: Total
A14: No. | B14: Purchaser | C14: Type | D14: (000's) | F14: Charges | H14: (000's) | J14: Costs | L14: Costs | N14: Costs | P14: Costs | R14: (000's) | T14: Costs | V14: Costs | X14: Admin Cost | Z14: Costs | AB14: Costs | AD14: Charges
A15: (1) | B15: (2) | C15: (3) | D15: (4) | F15: (5) | H15: (6) | J15: (7) | L15: (8) | N15: (9) | P15: (10) | R15: (11) | T15: (12) | V15: (13) | Z15: (14) | AB15: (15) | AD15: (16)
A17: 1 | B17: MISO AUCTION | C17: APRC | D17: 0 | F17: 0 | H17: 0 | J17: 0 | L17: 0 | N17: 0 | P17: =SUM(J17:N17) -> 0 | R17: 0 | T17: 0 | V17: 0 | X17: 0 | Z17: =P17+T17+V17+X17 -> 0 | AB17: 0 | AD17: =F17+Z17+AB17 -> 0
A19: 2 | B19: NIPSCO | C19: APRC | D19: 0 | F19: 0 | H19: 0 | J19: 0 | L19: 0 | N19: 0 | P19: =SUM(J19:N19) -> 0 | R19: 0 | T19: 0 | V19: 0 | X19: 0 | Z19: =P19+T19+V19+X19 -> 0 | AB19: 0 | AD19: 0
A21: 3 | B21: HOOSIER | C21: APRC | D21: 0 | F21: 0 | H21: 0 | J21: 0 | L21: 0 | N21: 0 | P21: =SUM(J21:N21) -> 0 | R21: 0 | T21: 0 | V21: 0 | X21: 0 | Z21: =P21+T21+V21+X21 -> 0 | AB21: 0 | AD21: 0
A23: 4 | B23: LAKEFIELD | C23: WIND | D23: 0 | F23: 0 | H23: 0 | J23: 0 | L23: 0 | N23: 0 | P23: =SUM(J23:N23) -> 0 | R23: 0 | T23: 0 | V23: 0 | X23: 0 | Z23: =P23+T23+V23+X23 -> 0 | AB23: 71.46 | AD23: =F23+Z23+AB23 -> 71.46
A25: 5 | B25: Sales through MISO | C25: Under TEMT | D25: 0 | F25: 0 | H25: 0 | J25: 0 | L25: 0 | N25: 0 | P25: =SUM(J25:N25) -> 0 | R25: 0 | T25: 0 | V25: 0 | X25: 0 | Z25: =P25+T25+V25+X25 -> 0 | AB25: 756.83 | AD25: =F25+Z25+AB25 -> 756.83
A29: 6 | B29: Total for Month | D29: =SUM(D17:D28) -> 0 | E29: $ | F29: =SUM(F17:F28) -> 0 | H29: =SUM(H17:H28) -> 0 | I29: $ | J29: =SUM(J17:J28) -> 0 | K29: $ | L29: =SUM(L17:L28) -> 0 | M29: $ | N29: =SUM(N17:N28) -> 0 | O29: $ | P29: =SUM(P17:P28) -> 0 | R29: =SUM(R17:R28) -> 0 | S29: $ | T29: =SUM(T17:T28) -> 0 | U29: $ | V29: =SUM(V17:V28) -> 0 | W29: $ | X29: =SUM(X17:X28) -> 0 | Y29: $ | Z29: =SUM(Z17:Z28) -> 0 | AA29: $ | AB29: =SUM(AB17:AB28) -> 828.29 | AC29: $ | AD29: =SUM(AD17:AD28) -> 828.29
A32: 8 | B32: Non-Jurisdictional | C32: Elect Plan | D32: 0 | E32: $ | F32: 0 | H32: ICAP Energy LLC | I32: $ | J32: 0 | K32: $ | L32: 0 | M32: $ | N32: 0 | O32: $ | P32: =SUM(J32:N32) -> 0 | R32: 0 | S32: $ | T32: 0 | U32: $ | V32: 0 | Y32: $ | Z32: =P32+T32+V32 -> 0 | AA32: $ | AB32: 0 | AC32: $ | AD32: =F32+Z32+AB32 -> 0
X46: `

Sheet FCA_A11B
AD1: Exhibit A
AD2: Schedule 11B
A5: AES INDIANA
A6: Determination of Fuel Costs Recovered Through Inter-System Sales
A7: and Fuel Costs Allocated to Non-Jurisdictional Retail Sales
A8: Sales for Actual Month of December, 2021
H11: IPL | L11: IPL | P11: IPL
D12: KWH | H12: Generated | J12: IPL | L12: Handling | N12: IPL | P12: Total | T12: Purchased Power Resold | Z12: Total | AB12: Total
A13: Line | D13: Sold | F13: Demand | H13: KWH | J13: Fuel | L13: Other | N13: Emissions | P13: Energy | R13: KWH | T13: Fuel | V13: Emissions | X13: Market | Z13: Energy | AB13: Other | AD13: Total
A14: No. | B14: Purchaser | C14: Type | D14: (000's) | F14: Charges | H14: (000's) | J14: Costs | L14: Costs | N14: Costs | P14: Costs | R14: (000's) | T14: Costs | V14: Costs | X14: Admin Cost | Z14: Costs | AB14: Costs | AD14: Charges
A15: (1) | B15: (2) | C15: (3) | D15: (4) | F15: (5) | H15: (6) | J15: (7) | L15: (8) | N15: (9) | P15: (10) | R15: (11) | T15: (12) | V15: (13) | Z15: (14) | AB15: (15) | AD15: (16)
A17: 1 | B17: MISO AUCTION | C17: APRC | D17: 0 | F17: 0 | H17: 0 | J17: 0 | L17: 0 | N17: 0 | P17: =SUM(J17:N17) -> 0 | R17: 0 | T17: 0 | V17: 0 | X17: 0 | Z17: =P17+T17+V17+X17 -> 0 | AB17: 0 | AD17: =F17+Z17+AB17 -> 0
A19: 2 | B19: NIPSCO | C19: APRC | D19: 0 | F19: 0 | H19: 0 | J19: 0 | L19: 0 | N19: 0 | P19: =SUM(J19:N19) -> 0 | R19: 0 | T19: 0 | V19: 0 | X19: 0 | Z19: =P19+T19+V19+X19 -> 0 | AB19: 0 | AD19: 0
A21: 3 | B21: HOOSIER | C21: APRC | D21: 0 | F21: 0 | H21: 0 | J21: 0 | L21: 0 | N21: 0 | P21: =SUM(J21:N21) -> 0 | R21: 0 | T21: 0 | V21: 0 | X21: 0 | Z21: =P21+T21+V21+X21 -> 0 | AB21: 0 | AD21: 0
A23: 4 | B23: LAKEFIELD | C23: WIND | D23: 6033 | F23: 0 | H23: 6033 | J23: 184982.45 | L23: 15020.58 | N23: 13.53 | P23: =SUM(J23:N23) -> 200016.56 | R23: 0 | T23: 0 | V23: 0 | X23: 532.71 | Z23: =P23+T23+V23+X23 -> 200549.27 | AB23: 10114.02 | AD23: =F23+Z23+AB23 -> 210663.29
A25: 5 | B25: Sales through MISO | C25: Under TEMT | D25: 4494 | F25: 0 | H25: 4494 | J25: 146314 | L25: 9316.86 | N25: 6 | P25: =SUM(J25:N25) -> 155636.86 | R25: 0 | T25: 0 | V25: 0 | X25: 396.82 | Z25: =P25+T25+V25+X25 -> 156033.68 | AB25: 19801.93 | AD25: =F25+Z25+AB25 -> 175835.61
A29: 6 | B29: Total for Month | D29: =SUM(D17:D28) -> 10527 | E29: $ | F29: =SUM(F17:F28) -> 0 | H29: =SUM(H17:H28) -> 10527 | I29: $ | J29: =SUM(J17:J28) -> 331296.45 | K29: $ | L29: =SUM(L17:L28) -> 24337.44 | M29: $ | N29: =SUM(N17:N28) -> 19.53 | O29: $ | P29: =SUM(P17:P28) -> 355653.42 | R29: =SUM(R17:R28) -> 0 | S29: $ | T29: =SUM(T17:T28) -> 0 | U29: $ | V29: =SUM(V17:V28) -> 0 | W29: $ | X29: =SUM(X17:X28) -> 929.53 | Z29: =SUM(Z17:Z28)-1 -> 356581.95 | AA29: $ | AB29: =SUM(AB17:AB28)+1 -> 29916.95 | AC29: $ | AD29: =SUM(AD17:AD28) -> 386498.9
A32: 5 | B32: Non-Jurisdictional | C32: Elect Plan | D32: 0 | E32: $ | F32: 0 | H32: ICAP Energy LLC | I32: $ | J32: 0 | K32: $ | L32: 0 | M32: $ | N32: 0 | O32: $ | P32: =SUM(J32:N32) -> 0 | R32: 0 | S32: $ | T32: 0 | U32: $ | V32: 0 | W32: $ | Z32: =P32+T32+V32 -> 0 | AA32: $ | AB32: 0 | AC32: $ | AD32: =F32+Z32+AB32 -> 0
X46: `

Sheet FCA_A11C
AD1: Exhibit A
AD2: Schedule 11C
A5: AES INDIANA
A6: Determination of Fuel Costs Recovered Through Inter-System Sales
A7: and Fuel Costs Allocated to Non-Jurisdictional Retail Sales
A8: Sales for Actual Month of January, 2022
H11: IPL | L11: IPL | P11: IPL
D12: KWH | H12: Generated | J12: IPL | L12: Handling | N12: IPL | P12: Total | T12: Purchased Power Resold | Z12: Total | AB12: Total
A13: Line | D13: Sold | F13: Demand | H13: KWH | J13: Fuel | L13: Other | N13: Emissions | P13: Energy | R13: KWH | T13: Fuel | V13: Emissions | X13: Market | Z13: Energy | AB13: Other | AD13: Total
A14: No. | B14: Purchaser | C14: Type | D14: (000's) | F14: Charges | H14: (000's) | J14: Costs | L14: Costs | N14: Costs | P14: Costs | R14: (000's) | T14: Costs | V14: Costs | X14: Admin Cost | Z14: Costs | AB14: Costs | AD14: Charges
A15: (1) | B15: (2) | C15: (3) | D15: (4) | F15: (5) | H15: (6) | J15: (7) | L15: (8) | N15: (9) | P15: (10) | R15: (11) | T15: (12) | V15: (13) | Z15: (14) | AB15: (15) | AD15: (16)
A17: 1 | B17: MISO AUCTION | C17: APRC | D17: 0 | F17: 0 | H17: 0 | J17: 0 | L17: 0 | N17: 0 | P17: =SUM(J17:N17) -> 0 | R17: 0 | T17: 0 | V17: 0 | X17: 0 | Z17: =P17+T17+V17+X17 -> 0 | AB17: 0 | AD17: =F17+Z17+AB17 -> 0
A19: 2 | B19: NIPSCO | C19: APRC | D19: 0 | F19: 0 | H19: 0 | J19: 0 | L19: 0 | N19: 0 | P19: =SUM(J19:N19) -> 0 | R19: 0 | T19: 0 | V19: 0 | X19: 0 | Z19: =P19+T19+V19+X19 -> 0 | AB19: 0 | AD19: 0
A21: 3 | B21: HOOSIER | C21: APRC | D21: 0 | F21: 0 | H21: 0 | J21: 0 | L21: 0 | N21: 0 | P21: =SUM(J21:N21) -> 0 | R21: 0 | T21: 0 | V21: 0 | X21: 0 | Z21: =P21+T21+V21+X21 -> 0 | AB21: 0 | AD21: 0
A23: 4 | B23: LAKEFIELD | C23: WIND | D23: 21957 | F23: 0 | H23: 21957 | J23: 973581 | L23: 43334 | N23: 35 | P23: =SUM(J23:N23) -> 1016950 | R23: 0 | T23: 0 | V23: 0 | X23: 1743 | Z23: =P23+T23+V23+X23 -> 1018693 | AB23: 267374 | AD23: =F23+Z23+AB23 -> 1286067
A25: 5 | B25: Sales through MISO | C25: Under TEMT | D25: 22679 | F25: 0 | H25: 22679 | J25: 902190 | L25: 36993 | N25: 25 | P25: =SUM(J25:N25) -> 939208 | R25: 0 | T25: 0 | V25: 0 | X25: 1801 | Z25: =P25+T25+V25+X25 -> 941009 | AB25: 350845 | AD25: =F25+Z25+AB25 -> 1291854
A29: 6 | B29: Total for Month | D29: =SUM(D17:D28) -> 44636 | E29: $ | F29: =SUM(F17:F28) -> 0 | H29: =SUM(H17:H28) -> 44636 | I29: $ | J29: =SUM(J17:J28) -> 1875771 | K29: $ | L29: =SUM(L17:L28) -> 80327 | M29: $ | N29: =SUM(N17:N28) -> 60 | O29: $ | P29: =SUM(P17:P28) -> 1956158 | R29: =SUM(R17:R28) -> 0 | S29: $ | T29: =SUM(T17:T28) -> 0 | U29: $ | V29: =SUM(V17:V28) -> 0 | W29: $ | X29: =SUM(X17:X28) -> 3544 | Z29: =SUM(Z17:Z28) -> 1959702 | AA29: $ | AB29: =SUM(AB17:AB28) -> 618219 | AC29: $ | AD29: =SUM(AD17:AD28) -> 2577921
A32: 5 | B32: Non-Jurisdictional | C32: Elect Plan | D32: APRC | E32: $ | F32: 0 | H32: 0 | I32: $ | J32: 0 | K32: $ | L32: 0 | M32: $ | N32: 0 | O32: $ | P32: =SUM(J32:N32) -> 0 | R32: 0 | S32: $ | T32: 0 | U32: $ | V32: 0 | W32: $ | Z32: =P32+T32+V32 -> 0 | AA32: $ | AB32: 0 | AC32: $ | AD32: =F32+Z32+AB32 -> 0
X46: `

Sheet Change Calculation
J4: ='Ex 4-Earnings Test'!A1 -> Cause No. 38703-FAC135
C6: The following table summarizes the differences between the estimated and actual fuel costs for the reconciliation period:
C7: (used in testimony)
N8: Percent Estimate
H9: Actual | K9: Estimated | N9: Over (Under)
E10: Month | H10: Cost | K10: Cost | N10: Actual
D12: Nov, 2021 | H12: =+'Sch 5 p1'!E58 -> 72.563 | K12: =+'Sch 5 p1'!G58 -> 32.116 | N12: =ROUND(((K12-H12)/H12),4) -> -0.5574
D13: Dec, 2021 | H13: =+'Sch 5 p2'!E58 -> 47.423 | K13: =+'Sch 5 p2'!G58 -> 33.462 | N13: =ROUND(((K13-H13)/H13),4) -> -0.2944
D14: Jan, 2022 | H14: =+'Sch 5 p3'!E58 -> 45.097 | K14: =+'Sch 5 p3'!G58 -> 35.601 | N14: =ROUND(((K14-H14)/H14),4) -> -0.2106
C16: Testimony - 12A:
C17: Difference in Estimated Cost from Base Cost = | K17: =+'Sch 1'!L49 -> 37.366 | L17: - | N17: 12.456 = | Q17: =ROUND(K17-12.456,3) -> 24.91
C18: Testimony - 16A:
C19: Weighted Average Actual =
C20: Weighted Average Estimated =
J22: The error of the weighted average is an underestimate of: | K22: =ROUND((K20-H19)/H19,4) ->  | N22: and
J24: the absolute average error is: | K24: =ROUND((N12+N13+N14)/3,4) -> -0.3541 | N24: .
N26: 137.47 | Q26: =+H27-N26 -> -8.39
C27: 1,000 kWh Customer: | D27: @ | E27: =+'Sch 1'!L75 -> 13.472 | F27: = | H27: =ROUND((E27+K50),2) -> 129.08 | Q27: =+Q26/N26 -> -0.06103149778
C28: Less 1,000 kWh customer using fuel
C29: increment from previous filing: | H29: 123.03
H30: =ROUND((H27-H29),2) -> 6.05 | J30: Decrease
H32: =ROUND((H30/H29)*100,2) -> 4.92 | J32: % | K32: Decrease
B43: Per New Tariff Sheets Eff December | E43: Customer Charge | K43: 17
E45: Energy
E46: 1st 500 kwh | H46: 0.106454 | K46: =ROUND(500*H46,2) -> 53.23
E47: 2nd 500 kwh | H47: 0.090752 | K47: =ROUND(500*H47,2) -> 45.38
E50: Total Bill | K50: =+K43+K46+K47 -> 115.61
E51: Base Cost of Fuel
E52: Adj for URT
E54: Sch 1 FAC factor | K54: =+K56 -> 0
E55: Total New Bill | K55: =+K50+K51+K54 -> 115.61
